Workbook

Sheet Logos (hidden)
A4: Mise en garde juridique interface :
A6: ="L'utilisation de cet outil est une aide à la saisie de matériel SAUNIER DUVAL et VAILLANT pour la réalisation d'une étude thermique RE 2020."&" Il repose sur l'interprétation de la méthode Th-BCE 2020, sur la version disponible des logiciels de calcul Clima-Win et Perrenoud et sur les caractéristiques des produits SAUNIER DUVAL et VAILLANT, lesquelles sont susceptibles d'évoluer. "&"Par conséquent, les informations délivrées dans cet outil ont une valeur uniquement indicative et non contractuelle. La société "&C20&" commercialisant les produits SAUNIER DUVAL et VAILLANT ne saurait être tenue responsable de toute autre utilisation du présent outil et ne peut garantir l'exactitude des résultats." -> L'utilisation de cet outil est une aide à la saisie de matériel SAUNIER DUVAL et VAILLANT pour la réalisation d'une étude thermique RE 2020. Il repose sur l'interprétation de la méthode Th-BCE 2020, sur la version disponible des logiciels de calcul Clima-Win et Perrenoud et sur les caractéristiques des produits SAUNIER DUVAL et VAILLANT, lesquelles sont susceptibles d'évoluer. Par conséquent, les informations délivrées dans cet outil ont une valeur uniquement indicative et non contractuelle. La société Saunier Duval Eau Chaude Chauffage - SAS commercialisant les produits SAUNIER DUVAL et VAILLANT ne saurait être tenue responsable de toute autre utilisation du présent outil et ne peut garantir l'exactitude des résultats.
A12: ="L'utilisation de cette fiche est une aide à la saisie de matériel "&UPPER('Gestion menus inputs'!C11)&" pour la réalisation d'une étude thermique RE 2020. Il repose sur l'interprétation de la méthode Th-BCE 2020, sur la version disponible des logiciels de calcul Clima-Win et Perrenoud et sur les caractéristiques des produits "&UPPER('Gestion menus inputs'!C11)&", lesquelles sont susceptibles d'évoluer. Par conséquent, les informations délivrées dans cet outil ont une valeur uniquement indicative et non contractuelle. La société "&C20&" commercialisant les produits "&UPPER('Gestion menus inputs'!C11)&" ne saurait être tenue responsable de toute autre utilisation du présent outil et ne peut garantir l'exactitude des résultats." -> L'utilisation de cette fiche est une aide à la saisie de matériel SAUNIER DUVAL pour la réalisation d'une étude thermique RE 2020. Il repose sur l'interprétation de la méthode Th-BCE 2020, sur la version disponible des logiciels de calcul Clima-Win et Perrenoud et sur les caractéristiques des produits SAUNIER DUVAL, lesquelles sont susceptibles d'évoluer. Par conséquent, les informations délivrées dans cet outil ont une valeur uniquement indicative et non contractuelle. La société Saunier Duval Eau Chaude Chauffage - SAS commercialisant les produits SAUNIER DUVAL ne saurait être tenue responsable de toute autre utilisation du présent outil et ne peut garantir l'exactitude des résultats.
C18: SDECC SAS (une société de Vaillant Group en France)
C19: Saunier Duval Eau Chaude Chauffage - SAS
C20: =IF('Gestion menus inputs'!D1="SAUNIER DUVAL",Logos!C19,Logos!C18) -> Saunier Duval Eau Chaude Chauffage - SAS | D20: si VT ou SD
E26: Nouveau ! Le régulateur Exacontrol E7C est désormais considéré comme "Optimiseur". De même, la gestion de la température de départ chauffage peut être considérée comme étant à "température variable en fonction de la température extérieure" même sans sonde extérieure.

Sheet Gabarit BDD (hidden)
F1: Désignation gamme SD | G1: Gamme 1 | H1: Gamme 1 | I1: Gamme 2 | J1: Gamme 2 | K1: Gamme 2 | L1: Gamme 3 | M1: Gamme 3
A2: Feuille de référence | F2: Désignation gamme V | G2: Gamme 1 | H2: Gamme 1 | I2: Gamme 2 | J2: Gamme 2 | K2: Gamme 2 | L2: Gamme 3 | M2: Gamme 3
A3: CW CETI | F3: Désignation modèle SD | G3: Modèle 1 | H3: Modèle 2 | I3: Modèle 3 | J3: Modèle 4 | K3: Modèle 5 | L3: Modèle 6 | M3: Modèle 7
F4: Désignation modèle V | G4: Modèle 1 | H4: Modèle 2 | I4: Modèle 3 | J4: Modèle 4 | K4: Modèle 5 | L4: Modèle 6 | M4: Modèle 7
F5: Champs RT 2012 | G5: Valeurs | H5: Valeurs | I5: Valeurs | J5: Valeurs | K5: Valeurs | L5: Valeurs | M5: Valeurs
E7: =ROW(#REF!) ->  | G7: =INDEX(INDIRECT("'"&$A$3&"'!$A$1:$DZ$200"),INDIRECT("$E"&ROW()),COLUMN()) ->  | H7: =INDEX(INDIRECT("'"&$A$3&"'!$A$1:$DZ$200"),INDIRECT("$E"&ROW()),COLUMN()) ->  | N7: =INDEX(INDIRECT("'"&$A$3&"'!$A$1:$DZ$200");INDIRECT("$E"&LIGNE());COLONNE())
E8: =ROW(#REF!) ->  | G8: =INDEX(INDIRECT("'"&$A$3&"'!$A$1:$DZ$200"),INDIRECT("$E"&ROW()),COLUMN()) -> 
E9: =ROW(#REF!) ->  | N9: =RECHERCHEV(INDEX(INDIRECT("'"&$A$3&"'!$A$1:$DZ$200");INDIRECT("$E"&LIGNE());COLONNE());'table CW-P-F'!$B$2:$D$200;2;FAUX)
E10: =ROW(#REF!) -> 
E11: =ROW(#REF!) -> 
E12: =ROW(#REF!) -> 
E13: =ROW(#REF!) -> 
E14: =ROW(#REF!) -> 
E15: =ROW(#REF!) -> 
E16: =ROW(#REF!) -> 
E17: =ROW(#REF!) -> 
E18: =ROW(#REF!) -> 
E19: =ROW(#REF!) -> 
E20: =ROW(#REF!) -> 
E21: =ROW(#REF!) -> 
E22: =ROW(#REF!) -> 
E23: =ROW(#REF!) -> 
E24: =ROW(#REF!) -> 
E25: =ROW(#REF!) -> 
E26: =ROW(#REF!) -> 
E27: =ROW(#REF!) -> 
E28: =ROW(#REF!) -> 
E29: =ROW(#REF!) -> 
E30: =ROW(#REF!) -> 
E31: =ROW(#REF!) -> 
E32: =ROW(#REF!) -> 
E33: =ROW(#REF!) -> 
E34: =ROW(#REF!) -> 
E35: =ROW(#REF!) -> 
E36: =ROW(#REF!) -> 
E37: =ROW(#REF!) -> 
E38: =ROW(#REF!) -> 
E39: =ROW(#REF!) -> 
E40: =ROW(#REF!) -> 
E41: =ROW(#REF!) -> 
E42: =ROW(#REF!) -> 
E43: =ROW(#REF!) -> 

Sheet Gestion inputs non cds (hidden)
B3: BDD_PRODUITS_SD
A4: 1 | B4: Famille | C4: Gamme | D4: Modèle 1 | E4: Modèle 2 | F4: Modèle 3 | G4: Modèle 4 | H4: Modèle 5 | I4: Modèle 6 | J4: Modèle 7 | K4: Modèle 8 | L4: Modèle 9 | M4: Modèle 10
A5: 2 | B5: Ballons ECS ou solaires | C5: HelioSet monovalent | D5: HelioSet 150 | E5: HelioSet 250 | F5: HelioSet 250 P | G5: HelioSet 350 P
A6: 3 | C6: HelioSet bivalent | D6: HelioSet 250 C | E6: HelioSet 250 CP | F6: HelioSet 350 CP
A7: 4 | C7: HelioSet électro-solaire | D7: HelioSet 150 E | E7: HelioSet 250 E / E-c | F7: HelioSet 350 EP / EP-c
A8: 5 | C8: HelioConcept monovalent | D8: HelioConcept 300 | E8: HelioConcept 400 | F8: HelioConcept 500
A9: 6 | C9: HelioConcept bivalent | D9: HelioConcept 300 C
A10: 7 | C10: FE-S | D10: FE 120 S | E10: FE 150 S | F10: FE 200 S | G10: FE 300 S | H10: FE 400 S | I10: FE 500 S
A11: 8 | C11: SDE | D11: SDE 75 | E11: SDE 100 | F11: SDE 150 | G11: SDE 80 | H11: SDE 120
A12: 9 | C12: SDK | D12: SDK 75 | E12: SDK 100 | F12: SDK 150
A13: 10
A14: 11
A15: 12
A16: 13
A17: 14
A18: 15 | B18: Capteurs solaires | C18: HelioPlan (autovidangeable) | D18: SRDV 2.3 Vertical | E18: SRD 2.3 Horizontal
A19: 16 | C19: HelioPlan (pressurisé) | D19: SRV 2.3 Vertical | E19: SRH 2.3 Horizontal
A20: 17
A21: 18
A22: 19
A23: 20
A24: 21
A25: 22
A26: 23
A27: 24
A28: 25
A29: 26
A30: 27
A31: 28 | B31: Chaudières | C31: Duotwin Condens | D31: Duotwin Condens F 30
A32: 29 | C32: Isofast 21 Condens | D32: Isofast 21 Condens F 25
A33: 30 | C33: Isomax Condens | D33: Isomax Condens F 30 GN | E33: Isomax Condens F 30 BP | F33: Isomax Condens F 35 GN | G33: Isomax Condens F 35 BP
A34: 31 | C34: Isosplit | D34: Isosplit C 24 EV | E34: Isosplit C 28 E GN | F34: Isosplit C 28 E BP | G34: Isosplit F 30 E H-MOD GN | H34: Isosplit F 30 E H-MOD BP | I34: Isosplit C 35 E GN | J34: Isosplit C 35 E BP | K34: Isosplit F 35 E H-MOD GN | L34: Isosplit F 35 E H-MOD BP
A35: 32 | C35: Isotwin | D35: Isotwin C 25 GN | E35: Isotwin C 25 BP | F35: Isotwin V 25 | G35: Isotwin F 25 H-MOD GN | H35: Isotwin F 25 H-MOD BP | I35: Isotwin C 30 GN | J35: Isotwin C 30 BP | K35: Isotwin F 30 H-MOD GN | L35: Isotwin F 30 H-MOD BP
A36: 33 | C36: Isotwin Condens | D36: Isotwin Condens F 25
A37: 34 | C37: Thema | D37: Thema C 25 E/EV GN | E37: Thema C 25 E/EV BP | F37: Thema F 25 E GN | G37: Thema F 25 E BP
A38: 35 | C38: Thema AS | D38: Thema CAS 16 E/EV | E38: Thema CAS 25 E/EV GN | F38: Thema CAS 25 E BP | G38: Thema FAS 25 E GN | H38: Thema FAS 25 E BP
A39: 36 | C39: Thema AS Condens | D39: Thema AS Condens F 12 | E39: Thema AS Condens F 25
A40: 37 | C40: Thema Condens | D40: Thema Condens F 25 | E40: Thema Condens F 30
A41: 38 | C41: ThemaClassic | D41: ThemaClassic C 25 E/EV GN | E41: ThemaClassic C 25 E BP | F41: ThemaClassic F 25 E GN | G41: ThemaClassic F 25 E BP
A42: 39 | C42: ThemaPlus | D42: ThemaPlus C 25 E/EV GN | E42: ThemaPlus C 25 E/EV BP | F42: ThemaPlus F 25 E GN | G42: ThemaPlus F 25 E BP | H42: ThemaPlus F 25 E H-MOD GN | I42: ThemaPlus F 25 E H-MOD BP | J42: ThemaPlus C 30 E | K42: ThemaPlus F 30 E | L42: ThemaPlus F 30 E H-MOD
A43: 40 | C43: ThemaPlus Condens | D43: ThemaPlus Condens F 25 | E43: ThemaPlus Condens F 30 GN | F43: ThemaPlus Condens F 30 BP | G43: ThemaPlus Condens F 35
A44: 41 | B44: Chauffe-eau gaz | C44: Opalia
A45: 42
A46: 43
A47: 44
A48: 45
A49: 46
A50: 47
A51: 48
A52: 49
A53: 50
A54: 51
A55: 52
A56: 53
A57: 54 | B57: PAC air/eau | C57: Genia Air
A58: 55
A59: 56
A60: 57
A61: 58
A62: 59
A63: 60
A64: 61
A65: 62
A66: 63
A67: 64
A68: 65
A69: 66
A70: 67 | B70: PAC eau glycolée/eau
A71: 68
A72: 69
A73: 70
A74: 71
A75: 72
A76: 73
A77: 74
A78: 75
A79: 76
A80: 77
A81: 78
A82: 79
B87: BDD_PRODUITS_V
A88: 1 | B88: Famille | C88: Gamme | D88: Modèle 1 | E88: Modèle 2 | F88: Modèle 3 | G88: Modèle 4 | H88: Modèle 5 | I88: Modèle 6 | J88: Modèle 7 | K88: Modèle 8 | L88: Modèle 9 | M88: Modèle 10
A89: 2 | B89: Ballons ECS ou solaires | C89: auroSTOR plus bivalent | D89: VIH S 300 BR | E89: VIH S 400 BR | F89: VIH S 500 BR
A90: 3 | C90: auroSTEP plus monovalent | D90: VIH SN 150/3 Mi | E90: VIH SN 250/3 Mi
A91: 4 | C91: auroSTEP plus bivalent | D91: VIH SN 250/3 i | E91: VIH SN 350/3 iP
A92: 5 | C92: auroSTEP plus électro-solaire | D92: VEH SN 150/3 i | E92: VEH SN 250/3 i | F92: VEH SN 350/3 iP
A93: 6 | C93: actoSTOR | D93: VIH K 300
A94: 7 | C94: uniSTOR | D94: VIH CK 70 | E94: VIH CB 70 | F94: VIH CB 75 | G94: VIH R 120 | H94: VIH R 150 | I94: VIH R 200 | J94: VIH R 300 | K94: VIH R 400 | L94: VIH R 500
A95: 8 | C95: geoSTOR | D95: VIH RW 300 | E95: VDH 300
A96: 9
A97: 10
A98: 11
A99: 12
A100: 13
A101: 14
A102: 15 | B102: Capteurs solaires | C102: auroTHERM classic (autovidangeable) | D102: VFK 135 VD Vertical | E102: VFK 135 D Horizontal
A103: 16 | C103: auroTHERM plus (pressurisé) | D103: VFK 150 V Vertical | E103: VFK 150 H Horizontal
A104: 17 | C104: auroTHERM exclusiv (tubulaire) | D104: VTK 570 | E104: VTK 1140
A105: 18
A106: 19
A107: 20
A108: 21
A109: 22
A110: 23
A111: 24
A112: 25
A113: 26
A114: 27
A115: 28 | B115: Chaudières | C115: aquaPLUS | D115: aquaPLUS VUI FR 240-7 GN | E115: aquaPLUS VUI FR 280-7 GN | F115: aquaPLUS VUI FR 242-7 GN | G115: aquaPLUS VUI FR 282-7 GN
A116: 29 | C116: atmoTEC - turboTEC plus | D116: atmoTEC plus VUW FR 250/3-5 GN | E116: atmoTEC plus VUW FR 280/3-5 GN | F116: atmoTEC plus VUW FR 253/3-5 VMC GN | G116: turboTEC plus VUW FR 252/3-5 GN | H116: turboTEC plus VUW FR 322/3-5 GN
A117: 30 | C117: atmoTEC - turboTEC plus systèmes | D117: atmoTEC plus systèmes VU 240/3-5 | E117: turboTEC plus systèmes VU 242/3-5
A118: 31 | C118: atmoTEC - turboTEC pro | D118: atmoTEC pro VUW FR 250/3-3 GN | E118: turboTEC pro VUW FR 252/3-3 GN
A119: 32 | C119: auroCOMPACT | D119: auroCOMPACT VSC S FR 196/2 GN + VFK 150 V | E119: auroCOMPACT VSC S FR 196/2 GN + VFK 150 H | F119: auroCOMPACT VSC S FR 196/2 P + VFK 150 V | G119: auroCOMPACT VSC S FR 196/2 P + VFK 150 H
A120: 33 | C120: ecoCOMPACT | D120: ecoCOMPACT VSC 196/2 - C150 GN | E120: ecoCOMPACT VSC 196/2 - C150 BP | F120: ecoCOMPACT VSC 246/2 - C170 GN | G120: ecoCOMPACT VSC 246/2 - C170 BP | H120: ecoCOMPACT VSC 306/2 - C200 GN
A121: 34 | C121: ecoCRAFT exclusiv | D121: ecoCRAFT exclusiv VKK 806/3-E-HL | E121: ecoCRAFT exclusiv VKK 1206/3-E-HL | F121: ecoCRAFT exclusiv VKK 1606/3-E-HL | G121: ecoCRAFT exclusiv VKK 2006/3-E-HL | H121: ecoCRAFT exclusiv VKK 2406/3-E-HL | I121: ecoCRAFT exclusiv VKK 2806/3-E-HL
A122: 35 | C122: ecoTEC plus | D122: ecoTEC plus VUW FR 296/3-5 GN | E122: ecoTEC plus VUW FR 296/3-5 BP | F122: ecoTEC plus VUW FR 346/3-5 GN | G122: ecoTEC plus VUW FR 346/3-5 BP
A123: 36 | C123: ecoTEC plus VCI | D123: ecoTEC plus VCI VUW FR 296/3-5 GN | E123: ecoTEC plus VCI VUW FR 296/3-5 BP | F123: ecoTEC plus VCI VUW FR 346/3-5 GN | G123: ecoTEC plus VCI VUW FR 346/3-5 BP
A124: 37 | C124: ecoTEC plus systèmes | D124: ecoTEC plus systèmes VU 156/3-5 GN | E124: ecoTEC plus systèmes VU 246/3-5 GN | F124: ecoTEC plus systèmes VU 246/3-5 BP | G124: ecoTEC plus systèmes VU FR 466/4-5 GN | H124: ecoTEC plus systèmes VU FR 466/4-5 BP | I124: ecoTEC plus systèmes VU FR 656/4-5 GN
A125: 38 | C125: ecoTEC pro | D125: ecoTEC pro VUW FR 286/3-3
A126: 39 | C126: ecoVIT exclusiv | D126: ecoVIT exclusiv VKK 226/4-7 GN | E126: ecoVIT exclusiv VKK 286/4-7 GN | F126: ecoVIT exclusiv VKK 366/4-7 GN | G126: ecoVIT exclusiv VKK 476/4-7 GN | H126: ecoVIT exclusiv VKK 656/4-7 GN
A127: 40 | C127: ecoVIT plus | D127: ecoVIT plus VKS INT 196 GN | E127: ecoVIT plus VKS INT 246 GN | F127: ecoVIT plus VKS INT 306 GN | G127: ecoVIT plus VKS INT 356 GN
C128: icoVIT exclusiv | D128: icoVIT exclusiv VKO 156/3-7 | E128: icoVIT exclusiv VKO 256/3-7 | F128: icoVIT exclusiv VKO 356/3-7
A129: 41 | B129: Chauffe-eau gaz | C129: atmoMAG - turboMAG
A130: 42
A131: 43
A132: 44
A133: 45
A134: 46
A135: 47
A136: 48
A137: 49
A138: 50
A139: 51
A140: 52
A141: 53
A142: 54 | B142: PAC air/eau
A143: 55
A144: 56
A145: 57
A146: 58
A147: 59
A148: 60
A149: 61
A150: 62
A151: 63
A152: 64
A153: 65
A154: 66
A155: 67 | B155: PAC eau glycolée/eau | C155: geoTHERM VWS
A156: 68 | C156: geoTHERM VWS exclusiv
A157: 69
A158: 70
A159: 71
A160: 72
A161: 73
A162: 74
A163: 75
A164: 76
A165: 77
A166: 78
A167: 79

Sheet Gestion menus inputs (hidden)
B1: Choix de la marque pour diffusion | D1: SAUNIER DUVAL | F1: LISTE_MARQUES | G1: Familles_produits
D4: LOGO_interface | E4: =IF($D$1="Bi-MARQUES",0,2) -> 2 | F4: =SI($D$1="Bi-MARQUES";0;2) | H4: Recherche les familles de produits à afficher selon la marque
D5: LOGO2_interface | E5: =IF($D$1="SAUNIER DUVAL",0,1) -> 0 | F5: =SI($D$1="SAUNIER DUVAL";0;1)
B6: cellules à modifier pour mise à jour | D6: InfoPremierePage | E6: =IF(Interface!J18="Saunier Duval",0,2) -> 0 | F6: =SI(="SAUNIER DUVAL";0;2)
F7: message d'erreur affiché en cas de mauvaise sélection | G7: Modifier la sélection
F8: Gestion des erreurs de sélection et affichage données d'entrée: | J8: Recherche la gamme et le modèle à afficher
B9: SELECTIONS (données d'entrée) | D9: =EQUIV(C..;INDIRECT(...);0) | E9: index données entrée corrigé des #NA | F9: =SI(ESTERREUR(D..);$G$7;"") | G9: défaut | H9: défaut actif / données entrée à afficher | J9: Gamme selectionnée | K9: Modèle selectionné | L9: Gamme & Modèle
B10: =Interface!I17 -> Logiciel RE | C10: =Interface!J17 -> Clima-Win (BBS Slama) | D10: =MATCH(C10,Logiciel_RT,0) -> 1 | E10: =IF(ISERROR(D10),0,D10) -> 1 | F10: =IF(ISERROR(D10),$G$7,"") ->  | G10: =IF(ISERROR(D10),1,0) -> 0 | H10: 1 | L10: =IF(H10=1,C10,"") -> Clima-Win (BBS Slama)
B11: =Interface!I18 -> Marque | C11: =Interface!J18 -> Saunier Duval | D11: =MATCH(C11,LISTE_MARQUES,0) -> 1 | E11: =IF(ISERROR(D11),0,D11) -> 1 | F11: =IF(ISERROR(D11),$G$7,"") ->  | G11: =IF(ISERROR(D11),1,0) -> 0 | H11: =IF(D1="BI-MARQUES",1,0) -> 0
B12: =Interface!I19 -> Famille produits | C12: =Interface!J19 -> PAC air/eau | D12: =MATCH(C12,INDIRECT(LISTE_VAR_FAMILLE),0) -> 4 | E12: 4 | F12: =IF(OR(C12="",ISERROR(D12)),$G$7,"") ->  | G12: 0 | H12: 1 | L12: PAC air/eau
B13: =Interface!I20 -> Ballon ECS | C13: =Interface!I20 -> Ballon ECS | E13: 0 | G13: 0 | H13: 0
B14: =Interface!I21 -> Gamme ballon | C14: =Interface!J21 -> HelioSet bivalent | D14: =MATCH(C14,INDIRECT(LISTE_VAR_BAL),0) -> 2 | E14: 2 | G14: 0 | H14: =IF($E$12=1,1,0) -> 0 | J14: =H14 -> 0
B15: =Interface!I22 -> Modèle ballon | C15: =Interface!J22 -> FES2 250 BiD | D15: =MATCH(C15,LISTE_MODELE_BAL,0) -> 1 | E15: 1 | G15: 0 | H15: =H14 -> 0 | K15: =H15 -> 0 | L15: =IF(H15=1,C15,"") -> 
B16: =Interface!I23 -> Capteurs solaires | C16: =Interface!J23 -> 0 | E16: 0 | G16: 0 | H16: 0 | K16: =H16 -> 0
B17: =Interface!I24 -> Gamme capteur | C17: =Interface!J24 -> HelioPlan (autovidangeable) | D17: =MATCH(C17,INDIRECT(LISTE_VAR_CAPT),0) -> 1 | E17: 1 | G17: 0 | H17: =IF($E$12=2,1,0) -> 0 | J17: =H17 -> 0
B18: =Interface!I25 -> Modèle capteur | C18: =Interface!J25 -> SRDV 2.3/2 Vertical | D18: =MATCH(C18,LISTE_MODELE_CAPT,0) -> 1 | E18: 1 | G18: 0 | H18: =H17 -> 0 | K18: 0
B19: =Interface!I26 -> Chaudières | C19: =Interface!J26 -> 0 | E19: 0 | G19: 0 | H19: 0 | K19: 0
B20: =Interface!I27 -> Gamme chaudière | C20: =Interface!J27 -> ThemaPlus Condens | D20: =MATCH(C20,INDIRECT(LISTE_VAR_GAMME_CHD),0) -> 6 | E20: 6 | G20: 0 | H20: =IF($E$12=3,1,0) -> 0 | J20: =H20 -> 0
B21: =Interface!I28 -> Modèle chaudière | C21: =Interface!J28 -> ThemaPlus Condens F 25 - A | D21: =MATCH(C21,LISTE_MODELE_CHD,0) -> 1 | E21: 1 | G21: 0 | H21: =H20 -> 0 | K21: 0
B22: =Interface!I29 -> PAC AIR/EAU | C22: =Interface!J29 -> 0 | E22: 0 | G22: 0 | H22: 0 | K22: 0
B23: =Interface!I30 -> Gamme PAC | C23: =Interface!J30 -> Kit GeniaSet Split | D23: =MATCH(C23,INDIRECT(LISTE_VAR_GAMME_PACro),0) -> 3 | E23: 3 | G23: 0 | H23: =IF($E$12=4,1,0) -> 1 | J23: =H23 -> 1 | L23: Kit GeniaSet Split
B24: =Interface!I31 -> Modèle PAC | C24: =Interface!J31 -> Kit GeniaSet Split 5 | D24: =MATCH(C24,LISTE_MODELE_PACro,0) -> 2 | E24: 2 | G24: 0 | H24: =H23 -> 1 | K24: 1 | L24: Kit GeniaSet Split 5
B25: =Interface!I32 -> Chauffe-eau thermodynamique | C25: =Interface!J32 -> 0 | E25: 0 | G25: 0 | H25: 0 | K25: 0
B26: =Interface!I33 -> Gamme CETI | C26: =Interface!J33 -> Magna Aqua appoint électrique | D26: =MATCH(C26,INDIRECT(LISTE_VAR_GAMME_CETI),0) -> 1 | E26: 1 | G26: 0 | H26: =IF($E$12=5,1,0) -> 0 | J26: =H26 -> 0
B27: =Interface!I34 -> Modèle CETI | C27: =Interface!J34 -> Magna Aqua 200/3 Performance RT (électrique) | D27: =MATCH(C27,LISTE_MODELE_CETI,0) -> 3 | E27: 3 | G27: 0 | H27: =H26 -> 0 | K27: 0
B28: =Interface!I35 -> Micro PV | C28: =Interface!J35 -> 0 | E28: 0 | G28: 0 | H28: 0 | K28: 0
B29: =Interface!I36 -> Gamme PV | C29: =Interface!J36 -> HelioPV | D29: =MATCH(C29,INDIRECT(LISTE_VAR_GAMME_PV),0) -> 1 | E29: 1 | G29: 0 | H29: =IF(AND(E11=1,$E$12=6),1,0) -> 0 | I29: Si SD et PV | J29: =H29 -> 0
B30: =Interface!I37 -> Modèle PV | C30: =Interface!J37 -> HelioPV 1V TT 60 cellules | D30: =MATCH(C30,LISTE_MODELE_PV,0) -> 1 | E30: 1 | G30: 0 | H30: =H29 -> 0 | I30: Si SD et PV | K30: 0
B31: =Interface!I38 -> PAC EAU/EAU | C31: =Interface!J38 -> 0 | E31: 0 | G31: 0 | H31: 0 | K31: 0
B32: =Interface!I39 -> Gamme PAC | C32: =Interface!J39 -> flexoCOMPACT exclusive | D32: =MATCH(C32,INDIRECT(LISTE_VAR_GAMME_PACoo),0) ->  | E32: 0 | F32: Modifier la sélection | G32: 1 | H32: =IF(AND(E11=2,$E$12=6),1,0) -> 0 | I32: Si V et PACoo | J32: =H32 -> 0 | L32: =IF(H32=1,C32,"") ->  | M32: =IF($H32=1,$C32,"") -> 
B33: =Interface!I40 -> Modèle PAC | C33: =Interface!J40 -> flexoCOMPACT exclusive VWF 88/4 | D33: =MATCH(C33,LISTE_MODELE_PACoo,0) ->  | E33: 0 | F33: Modifier la sélection | G33: 1 | H33: =H32 -> 0 | I33: Si V et PACoo | K33: =H33 -> 0
B34: =Interface!I41 -> Accessoires | C34: =Interface!J41 -> 0 | E34: 0 | G34: 0 | H34: 0 | K34: 0
B35: =Interface!I42 -> Système | C35: =Interface!J42 -> CETI optimisé | D35: =MATCH(C35,INDIRECT(LISTE_VAR_SYS),0) -> 2 | E35: 2 | G35: 0 | H35: =IF($E$12=10,1,0) -> 0 | J35: =H35 -> 0
B36: =Interface!I43 -> Modèle CESI | C36: =Interface!J43 -> FES1 150 BiD & FES1 150 B M + GHSD 8 | D36: =MATCH(C36,LISTE_MODELE_BAL_SYS,0) ->  | E36: 0 | F36: Modifier la sélection | G36: 1 | H36: =IF(AND($E$12+10,E35=1),1,0) -> 0 | I36: si système et CESI opti | K36: 0
B37: =Interface!I44 -> Modèle capteur | C37: =Interface!J44 -> SRDV 2.3 Vertical | D37: =MATCH(C37,Liste_Cap_Auto,0) ->  | E37: 0 | F37: Modifier la sélection | G37: 1 | H37: =H36 -> 0 | K37: 0 | M37: =IF($H37=1,$C37,"") -> 
B38: =Interface!I45 -> Modèle CETI | C38: =Interface!J45 -> Magna Aqua 150/3 OptiGaz | D38: =MATCH(C38,LISTE_MODELE_BAL_SYS,0) -> 3 | E38: 3 | G38: 0 | H38: =+IF(AND($E$12=10,E35=2),1,0) -> 0 | I38: si système et CETI opti | K38: 0
B39: =Interface!I46 -> Gamme chaudière d'appoint | C39: =Interface!J46 -> ThemaPlus Condens | D39: =MATCH(C39,INDIRECT(LISTE_VAR_GAMME_CHD_SYS),0) -> 5 | E39: 5 | G39: 0 | H39: =IF($E$12=10,1,0) -> 0 | I39: si système | K39: 0
B40: =Interface!I47 -> Modèle chaudière d'appoint | C40: =Interface!J47 -> ThemaPlus Condens MA 26-CS/1 (N-FR) | D40: =MATCH(C40,LISTE_VAR_MODELE_CHD2,0) -> 3 | E40: 3 | G40: 0 | H40: =H39 -> 0 | K40: 0 | M40: =IF($H40=1,$C40,"") -> 
B41: =Interface!I48 -> Modèle PAC | C41: =Interface!J48 -> Kit Genia Hybrid 5/2 | D41: =MATCH(C41,LISTE_MODELE_PAC_SYS,0) ->  | E41: 0 | F41: Modifier la sélection | G41: 1 | H41: =IF(AND($E$12=10,OR(E35=3,E35=4)),1,0) -> 0 | I41: si système et Hybride | K41: 0
B42: =Interface!I49 -> Accessoires | C42: =Interface!J49 -> 0 | E42: 0 | G42: 0 | H42: 0 | K42: 0 | M42: =IF($H42=1,$C42,"") -> 
B43: =Interface!I50 -> Gamme accessoires | C43: =Interface!J50 -> Moduzone | D43: =MATCH(C43,INDIRECT(LISTE_VAR_GAMME_ACC),0) -> 1 | E43: 1 | G43: 0 | H43: =IF(E12=7,1,0) -> 0 | J43: =H43 -> 0 | K43: 0 | M43: =IF($H43=1,$C43,"") -> 
B44: =Interface!I51 -> Modèle accessoires | C44: =Interface!J51 -> Moduzone Z 11 C | D44: =MATCH(C44,LISTE_MODELE_ACC,0) -> 1 | E44: =IF(ISERROR(D44),0,D44) -> 1 | G44: 0 | H44: =H43 -> 0 | K44: =H44 -> 0 | L44: =IF(H44=1,C44,"") -> 
B45: =Interface!I52 -> Onduleur | C45: =Interface!J52 -> 0 | E45: =IF(ISERROR(D45),0,D45) -> 0 | G45: 0 | H45: 0 | K45: =H45 -> 0 | L45: =IF(H45=1,C45,"") -> 
B46: =Interface!I53 -> Gamme Onduleur | C46: =Interface!J53 -> Onduleur Triphasé (400 V) | D46: =MATCH(C46,INDIRECT(LISTE_VAR_GAMME_OND),0) ->  | E46: =IF(ISERROR(D46),0,D46) -> 0 | F46: Modifier la sélection | G46: 1 | H46: =IF($E$12=8,1,0) -> 0 | J46: =H46 -> 0 | L46: =IF(H46=1,C46,"") -> 
B47: =Interface!I54 -> Modèle Onduleur | C47: =Interface!J54 -> VPV I 4000/1 400 V | D47: =MATCH(C47,LISTE_MODELE_OND,0) ->  | E47: =IF(ISERROR(D47),0,D47) -> 0 | F47: Modifier la sélection | G47: 1 | H47: =H46 -> 0 | K47: =H47 -> 0 | L47: =IF(H47=1,C47,"") -> 
B48: =Interface!I55 -> Module PV | C48: =Interface!J55 -> 0 | E48: =IF(ISERROR(D48),0,D48) -> 0 | G48: 0 | H48: 0 | K48: 0 | L48: =IF(H48=1,C48,"") -> 
B49: =Interface!I56 -> Gamme Module PV | C49: =Interface!J56 -> auroPOWER | D49: =MATCH(C49,INDIRECT(LISTE_VAR_GAMME_MODPV),0) ->  | E49: 0 | F49: Modifier la sélection | G49: 1 | H49: =IF($E$12=9,1,0) -> 0 | J49: =H49 -> 0
B50: =Interface!I57 -> Modèle Module PV | C50: =Interface!J57 -> VPV P 325/5 M BBF | D50: =MATCH(C50,LISTE_MODELE_MODPV,0) ->  | E50: =IF(ISERROR(D50),0,D50) -> 0 | F50: Modifier la sélection | G50: 1 | H50: =H49 -> 0 | K50: =H50 -> 0 | L50: =IF(H50=1,C50,"") -> 
E51: Nb de défaut blocant | F51: =SUMPRODUCT(G10:G49,H10:H49) -> 0
E52: Blocage total | F52: =IF(F51>0,1,0) -> 0
B53: Logiciel RT
B54: Clima-Win (BBS Slama)
B55: Perrenoud
B56: Visual TTH (Fauconnet)
B57: Marque
B58: =IF($D$1<>"Vaillant","Saunier Duval","") -> Saunier Duval
B59: =IF($D$1<>"Saunier duval","Vaillant","") -> 
B60: Familles produits
B61: LISTE_FAMILLE
B62: Saunier Duval | C62: Vaillant
B63: Ballons ECS ou solaires | C63: =B63 -> Ballons ECS ou solaires | G63: Ballons ECS ou solaires | H63: =G63 -> Ballons ECS ou solaires
B64: Capteurs solaires | C64: =B64 -> Capteurs solaires | G64: Capteurs solaires | H64: =G64 -> Capteurs solaires
B65: Chaudières | C65: =B65 -> Chaudières | G65: Chaudières | H65: =G65 -> Chaudières
B66: =IF($C$10="Visual TTH (Fauconnet)","PAC air/eau","PAC air/eau") -> PAC air/eau | C66: =B66 -> PAC air/eau | G66: =IF($C$10="Visual TTH (Fauconnet)","PAC air/eau","PAC air/eau") -> PAC air/eau | H66: =G66 -> PAC air/eau
B67: =IF($C$10="Visual TTH (Fauconnet)","Chauffe-eau thermodynamique","Chauffe-eau thermodynamique") -> Chauffe-eau thermodynamique | C67: =B67 -> Chauffe-eau thermodynamique | G67: =IF($C$10="Visual TTH (Fauconnet)","Chauffe-eau thermodynamique","Chauffe-eau thermodynamique") -> Chauffe-eau thermodynamique | H67: =G67 -> Chauffe-eau thermodynamique
B68: Micro PV | C68: =IF(D10=3,"","PAC eau glycolée / eau") -> PAC eau glycolée / eau | G68: Micro PV | H68: =IF(I10=3,"","PAC eau glycolée / eau") -> PAC eau glycolée / eau
B69: Systèmes | C69: =B69 -> Systèmes | G69: Accessoires | H69: =G69 -> Accessoires
B70: Accessoires | C70: =B70 -> Accessoires | H70: Onduleur
C71: Onduleur | H71: Module PV
C72: Module PV
B73: Modifier ici les noms des familles
B74: =$B$58 -> Saunier Duval | C74: Familles_produits_SD
B75: =$B$59 ->  | C75: Familles_produits_V
B76: Retenue | C76: =VLOOKUP(C11,B74:C75,2,FALSE) -> Familles_produits_SD | D76: Nom de la liste déroulante (INDIRECT)en fonction de la marque
B77: Systèmes
B78: =$B$58 -> Saunier Duval | C78: LISTE_SYS_SD
B79: =$B$59 ->  | C79: LISTE_SYS_V
B80: Retenue | C80: =VLOOKUP(C11,B78:C79,2,FALSE) -> LISTE_SYS_SD
B81: Modèle Systèmes Ballon opti
B82: n° ligne recherche | C82: =IF($C$11="Saunier Duval",MATCH($C$35,$C$436:$C$591,0),MATCH($C$35,$C$597:$C$740,0)) -> 119 | F82: (en fonction de la marque, de la famille de produit et de la gamme)
B83: n° colonne recherche | C83: 3 | D83: =IF($C$11="Saunier Duval",INDEX(BDD_PRODUITS_SD,$C$82,C83),INDEX(BDD_PRODUITS_V,$C$82,C83)) -> Magna Aqua 100/3 OptiGaz
B84: n° colonne recherche | C84: 4 | D84: Magna Aqua 100/3 S (monovalent)
B85: n° colonne recherche | C85: 5 | D85: Magna Aqua 150/3 OptiGaz
B86: n° colonne recherche | C86: 6 | D86: Magna Aqua 200/3 S (monovalent)
B87: n° colonne recherche | C87: 7 | D87: Magna Aqua 200/3 Performance RT (monovalent)
B88: n° colonne recherche | C88: 8 | D88: 0
B89: n° colonne recherche | C89: 9 | D89: 0
B90: n° colonne recherche | C90: 10 | D90: 0
B91: n° colonne recherche | C91: 11 | D91: 0
B92: n° colonne recherche | C92: 12 | D92: 0
B93: n° colonne recherche | C93: 13 | D93: 0
B94: n° colonne recherche | C94: 14 | D94: 0
B95: n° colonne recherche | C95: 15 | D95: 0
B96: n° colonne recherche | C96: 16 | D96: 0
B97: n° colonne recherche | C97: 17 | D97: 0
B98: n° colonne recherche | C98: 18 | D98: 0
B99: n° colonne recherche | C99: 19 | D99: 0
B100: n° colonne recherche | C100: 20 | D100: 0
B101: n° colonne recherche | C101: 21 | D101: 0
B102: n° colonne recherche | C102: 22 | D102: 0
B103: n° colonne recherche | C103: 23 | D103: 0
B104: Gamme CHD
B105: =$B$58 -> Saunier Duval | C105: =IF($C$12="chaudières","LISTE_GAMME_CHD_SD",IF(AND($C$12="Systèmes",OR(C13="CESI optimisé",C13="CETI")=TRUE)=TRUE,"Liste_Ch_opti","LISTE_GAMME_CHD_SD")) -> LISTE_GAMME_CHD_SD | F105: Conditionnelle pour les systémes | H105: =SI($C$12="chaudières";"LISTE_GAMME_CHD_SD";SI(DROITE($C$13;8)="optimisé";"Liste_Ch_opti";"LISTE_GAMME_CHD_SD"))
B106: =$B$59 ->  | C106: =IF($C$12="chaudières","LISTE_GAMME_CHD_V",IF(RIGHT($C$13,8)="optimisé","Liste_Ch_opti","LISTE_GAMME_CHD_V")) -> LISTE_GAMME_CHD_V | F106: Conditionnelle pour les systémes
B107: Retenue | C107: =VLOOKUP(C11,B105:C106,2,FALSE) -> LISTE_GAMME_CHD_SD
B108: Modèle CHD
B109: n° ligne recherche | C109: =IF($C$11="Saunier Duval",MATCH($C$20,$C$436:$C$591,0),MATCH($C$20,$C$597:$C$740,0)) -> 31 | F109: (en fonction de la marque, de la famille de produit et de la gamme)
B110: n° colonne recherche | C110: 3 | D110: =IF($C$11="Saunier Duval",INDEX(BDD_PRODUITS_SD,$C$109,C110),INDEX(BDD_PRODUITS_V,$C$109,C110)) -> ThemaPlus Condens F 25 - A
B111: n° colonne recherche | C111: 4 | D111: ThemaPlus Condens F 30 - A
B112: n° colonne recherche | C112: 5 | D112: ThemaPlus Condens MA 26-CS/1 (N-FR)
B113: n° colonne recherche | C113: 6 | D113: ThemaPlus Condens MA 31-CS/1 (N-FR)
B114: n° colonne recherche | C114: 7 | D114: ThemaPlus Condens MA 36-CS/1 (N-FR)
B115: n° colonne recherche | C115: 8 | D115: 0
B116: n° colonne recherche | C116: 9 | D116: 0
B117: n° colonne recherche | C117: 10 | D117: 0
B118: n° colonne recherche | C118: 11 | D118: 0
B119: n° colonne recherche | C119: 12 | D119: 0
B120: n° colonne recherche | C120: 13 | D120: 0
B121: n° colonne recherche | C121: 14 | D121: 0
B122: n° colonne recherche | C122: 15 | D122: 0
B123: n° colonne recherche | C123: 16 | D123: 0
B124: n° colonne recherche | C124: 17 | D124: 0
B125: n° colonne recherche | C125: 18 | D125: 0
B126: n° colonne recherche | C126: 19 | D126: 0
B127: n° colonne recherche | C127: 20 | D127: 0
B128: n° colonne recherche | C128: 21 | D128: 0
B129: n° colonne recherche | C129: 22 | D129: 0
B130: n° colonne recherche | C130: 23 | D130: 0
B131: Gamme ballon | H131: Table de compatibilité
B132: =$B$58 -> Saunier Duval | C132: =IF(AND($C$13="CESI optimisé",$C$12="Systèmes"),"Liste_Bal_CESI_opti",IF(AND($C$13="CETI optimisé",$C$12="Systèmes"),"Liste_Bal_CETI_opti","LISTE_GAMME_BAL_SD")) -> LISTE_GAMME_BAL_SD | F132: Conditionnelle pour les systémes | H132: Gamme CESI optimisé | I132: Gamme HelioSet | J132: Gamme Capteurs autividangeables
B133: =$B$59 ->  | C133: =IF(AND($C$13="CESI optimisé",$C$12="Systèmes"),"Liste_Bal_CESI_opti",IF(AND($C$13="CETI optimisé",$C$12="Systèmes"),"Liste_Bal_CETI_opti","LISTE_GAMME_BAL_V")) -> LISTE_GAMME_BAL_V | F133: =SI(ET($C$13="CESI optimisé";$C$12="Systèmes")=VRAI;"Liste_Bal_CESI_opti";"LISTE_GAMME_BAL_V") | I133: Gamme HelioConcept | J133: Gamme Capteurs présurisés
B134: Retenue | C134: =VLOOKUP(C11,B132:C133,2,FALSE) -> LISTE_GAMME_BAL_SD
B135: Modèle ballon
B136: n° ligne recherche | C136: =IF($C$11="Saunier Duval",MATCH(C14,$C$436:$C$591,0),MATCH(C14,$C$597:$C$740,0)) -> 3 | F136: (en fonction de la marque, de la famille de produit et de la gamme)
B137: n° colonne recherche | C137: 3 | D137: =IF($C$11="Saunier Duval",INDEX(BDD_PRODUITS_SD,$C$136,C137),INDEX(BDD_PRODUITS_V,$C$136,C137)) -> FES2 250 BiD
A138: 4 | B138: n° colonne recherche | C138: =IF(AND($E$12=7,$E$13=1)=TRUE,24,A138) -> 4 | D138: 0
A139: 5 | B139: n° colonne recherche | C139: =IF(AND($E$12=7,$E$13=1)=TRUE,24,A139) -> 5 | D139: 0
A140: 6 | B140: n° colonne recherche | C140: 6 | D140: 0
A141: 7 | B141: n° colonne recherche | C141: 7 | D141: 0
A142: 8 | B142: n° colonne recherche | C142: 8 | D142: 0
A143: 9 | B143: n° colonne recherche | C143: 9 | D143: 0
A144: 10 | B144: n° colonne recherche | C144: 10 | D144: 0
A145: 11 | B145: n° colonne recherche | C145: 11 | D145: 0
A146: 12 | B146: n° colonne recherche | C146: 12 | D146: 0
A147: 13 | B147: n° colonne recherche | C147: 13 | D147: 0
A148: 14 | B148: n° colonne recherche | C148: 14 | D148: 0
A149: 15 | B149: n° colonne recherche | C149: 15 | D149: 0
A150: 16 | B150: n° colonne recherche | C150: 16 | D150: 0
A151: 17 | B151: n° colonne recherche | C151: 17 | D151: 0
A152: 18 | B152: n° colonne recherche | C152: 18 | D152: 0
A153: 19 | B153: n° colonne recherche | C153: 19 | D153: 0
A154: 20 | B154: n° colonne recherche | C154: 20 | D154: 0
A155: 21 | B155: n° colonne recherche | C155: 21 | D155: 0
A156: 22 | B156: n° colonne recherche | C156: 22 | D156: 0
A157: 23 | B157: n° colonne recherche | C157: 23 | D157: 0
B158: Gamme capteur
B159: =$B$58 -> Saunier Duval | C159: =IF(AND($C$12="Systèmes",LEFT($C$33,8)="HelioSet")=TRUE,"Liste_Cap_Auto",IF(AND($C$12="Systèmes",LEFT($C$33,12)="HelioConcept")=TRUE,"Liste_Cap_Pres","LISTE_GAMME_CAPT_SD")) -> LISTE_GAMME_CAPT_SD | F159: Conditionnelle en fonction des systémes et du ballon
B160: =$B$59 ->  | C160: =IF(AND($C$12="Systèmes",LEFT($C$33,8)="auroSTEP")=TRUE,"Liste_Cap_Auto",IF(AND($C$12="Systèmes",LEFT($C$33,9)="auroTHERM")=TRUE,"Liste_Cap_Pres","LISTE_GAMME_CAPT_V")) -> LISTE_GAMME_CAPT_V | F160: =SI(ET($C$12="Systèmes";GAUCHE($C$16;8)="auroSTEP")=VRAI;"Liste_Cap_Auto";SI(ET($C$12="Systèmes";GAUCHE($C$16;9)="auroTHERM")=VRAI;"Liste_Cap_Pres";"LISTE_GAMME_CAPT_V"))
B161: Retenue | C161: =VLOOKUP(C11,B159:C160,2,FALSE) -> LISTE_GAMME_CAPT_SD
B162: Modèle capteur
B163: n° ligne recherche | C163: =IF($C$11="Saunier Duval",MATCH(C17,$C$436:$C$591,0),MATCH(C17,$C$597:$C$740,0)) -> 13 | F163: (en fonction de la marque, de la famille de produit et de la gamme)
B164: n° colonne recherche | C164: 3 | D164: =IF($C$11="Saunier Duval",INDEX(BDD_PRODUITS_SD,$C$163,C164),INDEX(BDD_PRODUITS_V,$C$163,C164)) -> SRDV 2.3/2 Vertical
B165: n° colonne recherche | C165: 4 | D165: SRD 2.3/2 Horizontal
B166: n° colonne recherche | C166: 5 | D166: 0
B167: n° colonne recherche | C167: 6 | D167: 0
B168: n° colonne recherche | C168: 7 | D168: 0
B169: n° colonne recherche | C169: 8 | D169: 0
B170: n° colonne recherche | C170: 9 | D170: 0
B171: n° colonne recherche | C171: 10 | D171: 0
B172: n° colonne recherche | C172: 11 | D172: 0
B173: n° colonne recherche | C173: 12 | D173: 0
B174: n° colonne recherche | C174: 13 | D174: 0
B175: n° colonne recherche | C175: 14 | D175: 0
B176: n° colonne recherche | C176: 15 | D176: 0
B177: n° colonne recherche | C177: 16 | D177: 0
B178: n° colonne recherche | C178: 17 | D178: 0
B179: n° colonne recherche | C179: 18 | D179: 0
B180: n° colonne recherche | C180: 19 | D180: 0
B181: n° colonne recherche | C181: 20 | D181: 0
B182: n° colonne recherche | C182: 21 | D182: 0
B183: n° colonne recherche | C183: 22 | D183: 0
B184: n° colonne recherche | C184: 23 | D184: 0
B185: Gamme CETI
B186: =$B$58 -> Saunier Duval | C186: LISTE_GAMME_CETI_SD
B187: =$B$59 ->  | C187: LISTE_GAMME_CETI_V
B188: Retenue | C188: =VLOOKUP(C11,B186:C187,2,FALSE) -> LISTE_GAMME_CETI_SD
B189: Modèle CETI
B190: n° ligne recherche | C190: =IF($C$11="Saunier Duval",MATCH(C26,$C$436:$C$591,0),MATCH(C26,$C$597:$C$740,0)) -> 79 | F190: (en fonction de la marque, de la famille de produit et de la gamme)
B191: n° colonne recherche | C191: 3 | D191: =IF($C$11="Saunier Duval",INDEX(BDD_PRODUITS_SD,$C$190,C191),INDEX(BDD_PRODUITS_V,$C$190,C191)) -> Magna Aqua 100/3 (électrique)
A192: 4 | B192: n° colonne recherche | C192: =IF(AND($E$12=7,$E$13=2)=TRUE,24,A192) -> 4 | D192: Magna Aqua 150/3 (électrique) | F192: en fonction du système CETI optimisé '=SI(ET($D$12=7;$D$13=2)=VRAI;24;A146)
A193: 5 | B193: n° colonne recherche | C193: =IF(AND($E$12=7,$E$13=2)=TRUE,24,A193) -> 5 | D193: Magna Aqua 200/3 Performance RT (électrique)
A194: 6 | B194: n° colonne recherche | C194: 6 | D194: Magna Aqua 200/3 (électrique)
A195: 7 | B195: n° colonne recherche | C195: 7 | D195: Magna Aqua 270/3 (électrique)
A196: 8 | B196: n° colonne recherche | C196: 8 | D196: Magna Aqua 80/3 CC (électrique)
A197: 9 | B197: n° colonne recherche | C197: 9 | D197: Magna Aqua 100/3 CC (électrique)
A198: 10 | B198: n° colonne recherche | C198: 10 | D198: Magna Aqua 150/3 CC (électrique)
A199: 11 | B199: n° colonne recherche | C199: 11 | D199: 0
A200: 12 | B200: n° colonne recherche | C200: 12 | D200: 0
A201: 13 | B201: n° colonne recherche | C201: 13 | D201: 0
A202: 14 | B202: n° colonne recherche | C202: 14 | D202: 0
... 531 more rows

Sheet FIO (hidden)
A1: Nom de l'outil | B1: Outil RE 2020
A2: Nom du Fichier | B2: Outil RE 2020 Saunier Duval-Vaillant
A3: Date d'application de la version | B3: 2022-05-16
A4: Date limite d'application
A5: Version de l'outil | B5: Outil RE 2020 Mai 2022 / BDD
A6: Nom de la version (visible) | B6: 16 Mai 2022
A7: Version logiciel CLIMAWIN | B7: Clima-Win de BBS Slama, version 4.6.4.1
A8: Version logiciel PERRENOUD | B8: U21Win / U22Win de Perrenoud, version 5.1.34
A9: Version logiciel FAUCONNET

Sheet To do (hidden)
A1: Date | B1: Version VGF | C1: Feuille | D1: Modification faite / à faire | E1: 0.25 | F1: 0.5 | G1: 0.75 | H1: 1 | I1: Date réalisé à 100% | J1: réalisé à 100% par qui | K1: Réponse ou commentaire | L1: Nom du fichier
B2: Outil RT 2012 V1.1 Oct. 2012 / BDD Mai 2013 | D2: Ajouter les ecoTEC plus VCI | E2: x | F2: x | G2: x | H2: x
D3: Ajouter les PAC SD Et VAILLANT | E3: x | F3: x | G3: x | H3: x
D4: Résoudre la question des matrices PAC | E4: x | F4: x | G4: x | H4: x
D5: Ajouter les systèmes hybrides | E5: x | F5: x | G5: x | H5: x
D6: Ajouter les PAC double service | E6: x | F6: x | G6: x | H6: x
D7: Ajouter les CETI | E7: x | F7: x | G7: x | H7: x
D8: Ajouter les chauffe-bain | E8: x | F8: x | G8: x | H8: x | I8: 2015-06-15 | K8: NON
D9: Ajouter les SSC ? | E9: x | F9: x | G9: x | H9: x | I9: 2015-06-15 | K9: NON
D10: Prendre en compte le processeur NF CESI | E10: x | F10: x | G10: x | H10: x | I10: 2015-06-15 | K10: NON | L10: Moins avantageux
D11: Récupérer les données manquantes des SDE 80 et 120 | E11: x | F11: x | G11: x | H11: x | I11: 2015-06-12 | J11: ES | K11: ANNULE
D12: Ajouter appareil RT chaudiere | E12: x | F12: x | G12: x | H12: x
D13: Ajouter Fauconnet | E13: x | F13: x | G13: x | H13: x
D14: Corriger circulateur SD | E14: x | F14: x | G14: x | H14: x | K14: quelle valeur modifier par quelle valeur pour verifieé si Eric les a bien modifier?
D15: mettre les valeurs par defaut dans la saisie cesi | K15: quelle valeur modifier par quelle valeur pour verifieé si Eric les a bien modifier?
D16: Chaudiere vaillant 2013 ecoTEC.. | E16: x | F16: x | G16: x | H16: x
A17: 2013-06-05 | B17: Outil RT 2012 V1.1 Oct. 2012 / BDD Juin 2013 | C17: Calculs | D17: Creation de la LISTE_FEUILLES | E17: x | F17: x | G17: x | H17: x | I17: 2013-06-05 | J17: GM | L17: Outil RT 2012 INTERNE2013-06-05.xls
A18: 2013-06-05 | B18: Outil RT 2012 V1.1 Oct. 2012 / BDD Juin 2013 | C18: Gestion menus inputs | D18: Ajout PAC Genia Air 8/1 et 11 | E18: x | F18: x | G18: x | H18: x | I18: 2013-06-05 | J18: GM | L18: Outil RT 2012 INTERNE2013-06-05.xls
A19: 2013-06-05 | B19: Outil RT 2012 V1.1 Oct. 2012 / BDD Juin 2013 | C19: CW PAC AIR-EAU CHAUFF | D19: Ajout PAC Genia Air 8/1 et 11 | E19: x | F19: x | G19: x | H19: x | I19: 2013-06-05 | J19: GM | L19: Outil RT 2012 INTERNE2013-06-05.xls
A20: 2013-06-05 | B20: Outil RT 2012 V1.1 Oct. 2012 / BDD Juin 2013 | C20: P PAC AIR-EAU CHAUFF | D20: Ajout PAC Genia Air 8/1 et 11 | E20: x | F20: x | G20: x | H20: x | I20: 2013-06-05 | J20: GM | L20: Outil RT 2012 INTERNE2013-06-05.xls
A21: 2013-06-05 | B21: Outil RT 2012 V1.1 Oct. 2012 / BDD Juin 2013 | C21: V TTH PAC AIR-EAU CHAUFF | D21: Ajout PAC Genia Air 8/1 et 11 | E21: x | F21: x | G21: x | H21: x | I21: 2013-06-05 | J21: GM | K21: à vérifier par CDS (le formule "= la case d'à coté) | L21: Outil RT 2012 INTERNE2013-06-05.xls
A22: 2013-06-05 | B22: Outil RT 2012 V1.1 Oct. 2012 / BDD Juin 2013 | C22: V TTH PAC AIR-EAU CHAUFF | D22: Ajout PAC Genia Air 8/1 et 11 a verifier par CDS
A23: 2013-07-24 | B23: Outil RT 2012 V1.1 Oct. 2012 / BDD Juillet 2013 | C23: Gestion menus inputs | D23: Ajout ThemaPlus Condens F 30 RT | E23: X | F23: X | G23: X | H23: X | I23: 2013-07-24 | J23: GM
A24: 2013-07-24 | B24: Outil RT 2012 V1.1 Oct. 2012 / BDD Juillet 2013 | C24: CW Chaudières | D24: Ajout ThemaPlus Condens F 30 RT | E24: X | F24: X | G24: X | H24: X | I24: 2013-07-24 | J24: GM
A25: 2013-07-24 | B25: Outil RT 2012 V1.1 Oct. 2012 / BDD Juillet 2013 | C25: CW Chaudières | D25: Température mini de fonctionnement (°C) | E25: x | F25: x | G25: x | H25: x | I25: 2013-07-24 | J25: GM | K25: =SI(ET(H13="Chaudière condensation";H14="Gaz");MAX(70+(H17-111)/0,2;33+(H19-111)/0,2;19)+1;SI(ET(H13="Chaudière condensation";H14="GPL");MAX(70+(H17-109)/0,2;33+(H19-109)/0,2;19)+1;SI(ET(H13="Chaudière condensation";H14="Fioul");MAX(70+(H17-107)/0,2;33+(H19-107)/0,2;19)+1;SI(ET(H13="Chaudière basse température";H14="Gaz");MAX(70+(H17-111)/0,04;40+(H19-111)/0,05;19)+1;SI(ET(H13="Chaudière basse température";H14="GPL");MAX(70+(H17-109)/0,04;40+(H19-109)/0,05;19)+1;SI(H13="Chaudière standard";30;""))))))
A26: 2013-07-24 | B26: Outil RT 2012 V1.1 Oct. 2012 / BDD Juillet 2013 | C26: P Chaudières | D26: Ajout ThemaPlus Condens F 30 RT | E26: X | F26: X | G26: X | H26: X | I26: 2013-07-24 | J26: GM
A27: 2013-07-24 | B27: Outil RT 2012 V1.1 Oct. 2012 / BDD Juillet 2013 | C27: V TTH Chaudières | D27: Ajout ThemaPlus Condens F 30 RT | E27: X | F27: X | G27: X | H27: X | I27: 2013-07-24 | J27: GM
A28: 2013-07-31 | B28: Outil RT 2012 V1.1 Oct. 2012 / BDD Juillet 2013 | C28: Gestion menus inputs | D28: chamgement du non ThemaPlus Condens F 30 RT par Performance RT | E28: x | F28: x | G28: x | H28: x | I28: 2013-07-31 | J28: GM
A29: 2013-07-31 | B29: Outil RT 2012 V1.1 Oct. 2012 / BDD Juillet 2013 | C29: CW Chaudières | D29: Ajout ThemaPlus Condens F 30 RT | E29: x | F29: x | G29: x | H29: x | I29: 2013-07-31 | J29: GM
C30: V TTH Chaudières | D30: Est-ce normal que pour le logiciel TTH, les consommations en veille ne sont pas renseignée
C31: TTH CETI | D31: logiciel TTH, la puissance de l'appoint électrique n'est pas renseignée | E31: x | F31: x | G31: x | H31: x | I31: 2015-06-15 | J31: ES | K31: c'est fait
A32: 2013-07-31 | B32: Outil RT 2012 V1.1 Oct. 2012 / BDD Juillet 2013 | C32: Gestion menus inputs | D32: ajout gamme Aqua Magna 150 | E32: x | F32: x | G32: x | H32: x | I32: 2013-07-31 | J32: GM
A33: 2013-07-31 | B33: Outil RT 2012 V1.1 Oct. 2012 / BDD Juillet 2013 | C33: CW CETI | D33: ajout gamme Aqua Magna 150 monovalent & électrique | E33: x | F33: x | G33: x | H33: x | I33: 2013-07-31 | J33: GM
A34: 2013-07-31 | B34: Outil RT 2012 V1.1 Oct. 2012 / BDD Juillet 2013 | C34: T CETI | D34: ajout gamme Aqua Magna 150 monovalent & électrique | E34: x | F34: x | G34: x | H34: x | I34: 2013-07-31 | J34: GM
A35: 2013-07-31 | B35: Outil RT 2012 V1.1 Oct. 2012 / BDD Juillet 2013 | C35: V TTH CETI | D35: ajout gamme Aqua Magna 150 monovalent & électrique | E35: x | F35: x | G35: x | H35: x | I35: 2013-07-31 | J35: GM
A36: 2013-08-01 | B36: Outil RT 2012 V1.1 Oct. 2012 / BDD Août 2013 | C36: CW PAC AIR-EAU CHAUFF | D36: lrcontmin + …. Genia 8/1 et 11 | E36: x | F36: x | G36: x | H36: x | I36: 2013-08-01 | J36: GM | L36: Outil RT 2012 INTERNE2013-08-01-16h.xls
A37: 2013-08-01 | B37: Outil RT 2012 V1.1 Oct. 2012 / BDD Août 2013 | C37: P PAC AIR-EAU CHAUFF | D37: lrcontmin + …. Genia 8/1 et 11 | E37: x | F37: x | G37: x | H37: x | I37: 2013-08-01 | J37: GM | L37: Outil RT 2012 INTERNE2013-08-01-16h.xls
A38: 2013-08-01 | B38: Outil RT 2012 V1.1 Oct. 2012 / BDD Août 2013 | C38: V TTH PAC AIR-EAU CHAUFF | D38: lrcontmin + …. Genia 8/1 et 11 | E38: x | F38: x | G38: x | H38: x | I38: 2013-08-01 | J38: GM | L38: Outil RT 2012 INTERNE2013-08-01-16h.xls
A39: 2013-10-14 | D39: Mise à jour valeur chaudiére suivant fichr "valeurs certifiées RT2012" | E39: x | F39: x | G39: x | H39: x | I39: 2013-10-17 | J39: GM
A40: 2013-10-14 | C40: V TTH PAC AIR-EAU CHAUFF | D40: Mise à jour questionliste de choix double service | J40: CDS
A41: 2013-10-17 | C41: Fiche | D41: CORRECTION BUG | E41: x | F41: x | G41: x | H41: x | J41: GM | L41: OUTIL RT 2012 INTERN-AVV_2012-10-17
A42: 2013-10-17 | B42: Outil RT 2012 V1.1 Oct. 2012 / BDD Oct. 2013 | D42: modification magna aqua suivant fiche Auer | E42: x | F42: x | G42: x | H42: x | J42: GM | L42: OUTIL RT 2012 INTERN-AVV_2012-10-17
A43: 2013-10-22 | D43: valeur des chaudiere vaillant suivant certificat r&d Remch. | E43: x | F43: x | G43: x | H43: x
A44: 2013-10-31 | C44: P Chaudières | D44: Mise à jour valeur chaudiére suivant fichr "valeurs certifiées RT2012" | E44: x | F44: x | G44: x | H44: x | I44: 2013-10-31 | J44: GM
A45: 2013-10-31 | C45: VTTH chaudière | D45: Mise à jour valeur chaudiére suivant fichr "valeurs certifiées RT2012" | E45: x | F45: x | G45: x | H45: x | I45: 2013-10-31 | J45: GM
A46: 2013-11-04 | B46: Outil RT 2012 V1.4 Nov. 2013 / BDD Nov. 2013 | D46: suppression des onglets PAC eau glycolée-eau pour avoir tous sur un seul onglet PAC | E46: x | F46: x | G46: x | H46: x | I46: 2013-11-04 | J46: GM
A47: 2013-11-25 | B47: Outil RT 2012 V1.4 Nov. 2013 / BDD Nov. 2012 | C47: Gestion menus inputs | D47: "geoTHERM VWS exclusiv" à ajouter en C232 | E47: x | F47: x | G47: x | H47: x | I47: 2013-11-25 | J47: GM
A48: 2013-11-07 | B48: Outil RT 2012 V1.4 Nov. 2013 / BDD Nov. 2013 | C48: P Chaudières | D48: isofast 21 valeur de 0,715 pour Cr (cellule s51) | E48: x | F48: x | G48: x | H48: x | I48: 2013-11-07 | J48: GM
C49: CW PAC AIR-EAU CHAUFF | D49: T. aux. Genia 6 et 15 | E49: x | F49: x | G49: x | H49: x | J49: GM
A50: 2013-12-12 | C50: Fiche | D50: AJOUT 1 PAGES | E50: X | F50: X | G50: X | H50: X | I50: 2013-12-12 | J50: GM
A51: 2013-12-12 | C51: CW PAC AIR-EAU CHAUFF | D51: Ajout PAC Kit Genia Air ECS 6 Performance RT | E51: X | F51: X | G51: X | H51: X | I51: 2013-12-12 | J51: GM | O51: 15
A52: 2013-12-20 | B52: Outil RT 2012 V1.4 Nov. 2013 / BDD Déc. 2013 | C52: CW PAC AIR-EAU CHAUFF | D52: T. aux Genia 6 de 0,8% à 1,08% | E52: x | F52: x | G52: x | H52: x | I52: 2013-12-12 | J52: GM | O52: 11 | P52: 0.8 | Q52: =O52/P52*100 -> 1375
A53: 2013-12-20 | B53: Outil RT 2012 V1.4 Nov. 2013 / BDD Déc. 2013 | C53: CW PAC AIR-EAU CHAUFF | D53: supression du t.aux sur genia 15 | E53: x | F53: x | G53: x | H53: x | I53: 2013-12-12 | J53: GM | O53: =O52*P53/P52 -> 14.85 | P53: 1.08 | Q53: =O52/Q52 -> 0.008
A54: 2014-02-27 | B54: Outil RT 2012 V1.4 Nov. 2013 / BDD Fév. 2014 | C54: CW Chaudières-P Chaudières-V TTH Chaudières | D54: Ajout auroCOMPACT | E54: x | F54: x | G54: x | H54: X | I54: 2014-03-14 | J54: ES | K54: reste à vérifier que ça fonctionne toujours | O54: 15 | P54: =O54/Q54 -> 0.01086956522 | Q54: 1380
A55: 2014-02-27 | B55: Outil RT 2012 V1.4 Nov. 2013 / BDD Fév. 2014 | C55: CW Chaudières-P Chaudières-V TTH Chaudières | D55: Ajout ecoCOMPACT | E55: x | F55: x | G55: x | H55: X | I55: 2014-03-14 | J55: ES | K55: reste à vérifier que ça fonctionne toujours
A56: 2014-02-27 | B56: Outil RT 2012 V1.4 Nov. 2013 / BDD Fév. 2014 | C56: CW Chaudières-P Chaudières-V TTH Chaudières | D56: supprimer auroCOMPACT (ancienne gamme) | E56: x | F56: x | G56: x | H56: x | I56: 2014-04-01 | J56: GM | O56: 11 | P56: 0.31
A57: 2014-02-27 | B57: Outil RT 2012 V1.4 Nov. 2013 / BDD Fév. 2014 | C57: CW Chaudières-P Chaudières-V TTH Chaudières | D57: supprimer ecoCOMPACT (ancienne gamme) | E57: x | F57: x | G57: x | H57: x | I57: 2014-04-01 | J57: GM | N57: t.aux genia 15 | O57: 15 | P57: =O57*P56/O56 -> 0.4227272727
A58: 2014-03-04 | B58: Outil RT 2012 V1.4 Nov. 2013 / BDD Mars 2014 | C58: CW PAC AIR-EAU CHAUFF | D58: T. aux Genia 6 de 1,08% à 1,09% | E58: X | F58: X | G58: X | H58: X | I58: 2014-03-04 | J58: GM | K58: SUIVANT NF 414-962
A59: 2014-03-04 | B59: Outil RT 2012 V1.4 Nov. 2013 / BDD Mars 2014 | C59: CW PAC AIR-EAU CHAUFF | D59: T. aux Genia 15 à 0,42% | E59: x | F59: x | G59: x | H59: x | I59: 2014-03-04 | J59: GM | K59: SUIVANT NF 414-962
A60: 2014-03-04 | B60: Outil RT 2012 V1.4 Nov. 2013 / BDD Mars 2014 | C60: CW PAC AIR-EAU CHAUFF | D60: f aux ballon modif de 0,37 à par défaut | E60: x | F60: x | G60: x | H60: x | I60: 2014-03-04 | J60: GM | K60: Suivant fiche d'application f aux RT2012 V3
A61: 2014-03-05 | B61: Outil RT 2012 V1.4 Nov. 2013 / BDD Mars 2014 | C61: CW PAC AIR-EAU CHAUFF | D61: Appoint : hauteur échangeur (%) / modification de 31% à 63% | E61: x | F61: x | G61: x | H61: x | I61: 2014-03-05 | J61: GM | K61: Suivant fiche d'application f aux RT2012 V3
A62: 2014-03-05 | B62: Outil RT 2012 V1.4 Nov. 2013 / BDD Mars 2014 | C62: CW PAC AIR-EAU CHAUFF | D62: Appoint : n° de zone régulation / modif de Zone 3 à Zone 4 | E62: x | F62: x | G62: x | H62: x | I62: 2014-03-05 | J62: GM | K62: Suivant fiche d'application f aux RT2012 V3
A63: 2014-03-07 | B63: Outil RT 2012 V1.4 Nov. 2013 / BDD Mars 2014 | C63: CW CET | D63: tous les CET f aux par défaut | E63: x | F63: x | G63: x | H63: x | I63: 2014-03-07 | J63: GM | K63: Suivant fiche d'application f aux RT2012 V3
A64: 2014-03-07 | B64: Outil RT 2012 V1.4 Nov. 2013 / BDD Mars 2014 | C64: CW CET | D64: valeur Magna Aqua 150 suivant rapport d'essai n°115474-630316 page 5 cycle"L" | E64: x | F64: x | G64: x | H64: x | I64: 2014-03-07 | J64: GM | K64: Suivant rapport d'essai n°115474-630316 page 5 cycle"L"
A65: 2014-03-07 | B65: Outil RT 2012 V1.4 Nov. 2013 / BDD Mars 2014 | C65: CW PAC AIR-EAU CHAUFF | D65: Matrice performace Genia 15 SUIVANT NF 414-962 | E65: x | F65: x | G65: x | H65: x | I65: 2014-03-07 | J65: GM | K65: SUIVANT NF 414-962
A66: 2014-03-07 | B66: Outil RT 2012 V1.4 Nov. 2013 / BDD Mars 2014 | C66: CW Ballon | D66: f aux ballons solaire Par défaut si > 0,5 | E66: x | F66: x | G66: X | H66: X | I66: 2014-03-07 | J66: GM
A67: 2014-03-07 | B67: Outil RT 2012 V1.4 Nov. 2013 / BDD Mars 2014 | C67: CW Chaudières-P Chaudières-V TTH Chaudières | D67: f aux ballons solaire auroCOMPACT | E67: x | F67: x | G67: x | H67: x | I67: 2014-03-07 | J67: GM | K67: Suivant fiche d'application CET V2 de 12/2013
A68: 2014-03-26 | B68: Outil RT 2012 V1.4 Nov. 2013 / BDD Mars 2014 | C68: CW CET | D68: T.aux CET PAR DEFAUT | E68: x | F68: x | G68: x | H68: x | I68: 2014-03-26 | J68: GM | K68: impact +1,5 à +2% sur Cep Suivant fiche d'application CET V2 de 12/2013
A69: 2014-03-26 | B69: Outil RT 2012 V1.4 Nov. 2013 / BDD Mars 2014 | C69: CW CET | D69: Zone pour appoint et regul appoint | E69: x | F69: x | G69: x | H69: x | I69: 2014-03-26 | J69: GM | K69: pas d'impact sur Cep Suivant fiche d'application CET V2 de 12/2013
C70: CW CET | D70: hauteur resistance cet 150 / demandé à AUER | E70: x | F70: x | G70: x | H70: x | I70: 2015-06-15 | J70: ES | K70: ANNULE
D71: Puissance des pompes ballons solaires Eric vois avec 'Julien Heintz' Cetiat
D72: Calculette IdCESI version Excel Eric vois avec 'Julien Heintz' Cetiat
D73: Ajouter en accessoire les stations solaires auroFLOW (pnp Pompe)
A74: 2014-03-28 | B74: Outil RT 2012 V1.4 Nov. 2013 / BDD Mars 2014 | C74: Gestion menus inputs | D74: Modification de la taille de BDD_PRODUITS_SD | E74: x | F74: x | G74: x | H74: x | I74: 2014-03-28 | J74: GM
A75: 2014-03-28 | B75: Outil RT 2012 V1.4 Nov. 2013 / BDD Mars 2014 | C75: Gestion menus inputs | D75: Modification de la taille de BDD_PRODUITS_VA | E75: x | F75: x | G75: x | H75: x | I75: 2014-03-28 | J75: GM
A76: 2014-03-28 | B76: Outil RT 2012 V1.4 Nov. 2013 / BDD Mars 2014 | C76: Gestion menus inputs | D76: Modification de la taille de LISTE_VAR_MODELES | E76: x | F76: x | G76: x | H76: x | I76: 2014-03-28 | J76: GM
A77: 2014-04-01 | B77: Outil RT 2012 V1.4 Avril 2014 / BDD Avril 2014 | C77: CW Chaudières-P Chaudières-V TTH Chaudières | D77: Ajout Thema Condens F AS 18 RT | E77: x | F77: x | G77: x | H77: x | I77: 2014-04-01 | J77: GM
A78: 2014-04-01 | B78: Outil RT 2012 V1.4 Avril 2014 / BDD Avril 2014 | C78: FIO | D78: Création feuille FIO | E78: x | F78: x | G78: x | H78: x | I78: 2014-04-01 | J78: GM
A79: 2014-04-01 | B79: Outil RT 2012 V1.4 Avril 2014 / BDD Avril 2014 | C79: CALCUL | D79: MODIFICATION CELLULE E60 | E79: x | F79: x | G79: x | H79: x | I79: 2014-04-01 | J79: GM
A80: 2014-04-04 | B80: Outil RT 2012 V1.4 Avril 2014 / BDD Avril 2014 | C80: CW Chaudières-P Chaudières-V TTH Chaudières | D80: Designation de Thema Condens F AS 18 corrigé | E80: x | F80: x | G80: x | H80: x | I80: 2014-04-04 | J80: GM
A81: 2014-04-16 | B81: Outil RT 2012 V1.4 Avril 2014 / BDD Avril 2014 | C81: P Chaudières | D81: Type d'ECS = Chauffage seul ou Lié au chauffage (en association avec un ballon) | E81: x | F81: x | G81: x | H81: x | I81: 2014-04-16 | J81: GM
A82: 2014-04-16 | B82: Outil RT 2012 V1.4 Avril 2014 / BDD Avril 2014 | C82: P Chaudières | D82: Type de distribution =SI(#REF!="Chauffage seul";"NA";"Prod individuelle en vol. chauffé (en association avec un ballon)") | E82: x | F82: x | G82: x | H82: x | I82: 2014-04-16 | J82: GM
A83: 2014-04-16 | B83: Outil RT 2012 V1.4 Avril 2014 / BDD Avril 2014 | C83: P Chaudières | D83: Type de générateur = Chauffage seul ou chauffage et ECS (en association avec un ballon) | E83: x | F83: x | G83: x | H83: x | I83: 2014-04-16 | J83: GM
A84: 2014-05-30 | C84: CW CET | D84: Zone 1 par zone 2 | E84: x | F84: x | G84: x | H84: x | I84: 2014-05-30 | J84: GM
A85: 2014-06-06 | B85: Outil RT 2012 V1.4 juin 2014 / BDD juin 2014 | C85: CW CET | D85: Puissance des ventilateurs sur air gainé (W) = à 0 | E85: x | F85: x | G85: x | H85: x | I85: 2014-06-06 | J85: GM
A86: 2014-07-29 | C86: CW Chaudières | D86: heliotwin provisoire valeur à certifié | E86: X | F86: X | G86: X | H86: X | I86: 2014-09-18 | J86: GM | K86: 2 modèles; capteurs SRD SRDV
A87: 2014-09-02 | D87: Part puissance électrique auxiliaires chaud T aux (en %) genia 8/1 modif de 1,12% à 0,41% | E87: X | F87: X | G87: X | H87: X | I87: 2014-09-18 | J87: GM | K87: suivant naf PAC 1021 DU 24/06/2014
A88: 2014-09-02 | D88: Part puissance électrique auxiliaires chaud T aux (en %) genia 11 modif de 0,77% à 0,28% | E88: X | F88: X | G88: X | H88: X | I88: 2014-09-18 | J88: GM | K88: suivant naf PAC 1021 DU 24/06/2014
A89: 2014-09-02 | D89: Dans PAC, cellule J70, L70, N70, les pertes étant définies par défaut, le type de ballon devrait être renseigné. | E89: X | F89: X | G89: X | H89: X | I89: 2014-09-18 | J89: GM
A90: 2014-09-02 | D90: COP ECS genia 8/1 | E90: X | F90: X | G90: X | H90: X | I90: 2014-09-18 | J90: GM | K90: 2.52
A91: 2014-09-02 | D91: Puissance absorbée ECS (kW) | E91: X | F91: X | G91: X | H91: X | I91: 2014-09-18 | J91: GM | K91: 1.61
A92: 2014-09-02 | D92: Indicateurs de certification ECS | E92: X | F92: X | G92: X | H92: X | I92: 2014-09-18 | J92: GM | K92: 1
A93: 2014-09-02 | D93: Pertes thermiques ballon (W/K) | E93: X | F93: X | G93: X | H93: X | I93: 2014-09-18 | J93: GM | K93: 3.86
A94: 2014-09-02 | D94: Appoint : n° de zone régulation | E94: X | F94: X | G94: X | H94: X | I94: 2014-09-18 | J94: GM | K94: Zone 4
A95: 2014-09-18 | C95: P chaudières | D95: heliotwin provisoire valeur à certifié | E95: X | F95: X | G95: X | H95: X | I95: 2014-09-18 | J95: GM | K95: 2 modèles; capteurs SRD SRDV
A96: 2014-09-18 | C96: VTTH chaudières | D96: heliotwin provisoire valeur à certifié | E96: X | F96: X | G96: X | H96: X | I96: 2014-09-18 | J96: GM | K96: 2 modèles; capteurs SRD SRDV
A97: 2014-09-18 | C97: CW Chaudières | D97: Duomax condens F30 - F34 90/1 - F34 150C/1 | E97: X | F97: X | G97: X | H97: X | I97: 2014-09-19 | J97: GM
A98: 2014-09-18 | C98: P chaudières | D98: Duomax condens F30 - F34 90/1 - F34 150C/1 | E98: X | F98: X | G98: X | H98: X | I98: 2014-09-19 | J98: GM
A99: 2014-09-18 | B99: Outil RT 2012 V3 septembre 2014 / BDD Sept.2014 | C99: VTTH chaudières | D99: Duomax condens F30 - F34 90/1 - F34 150C/1 | E99: X | F99: X | G99: X | H99: X | I99: 2014-09-19 | J99: GM
A100: 2014-09-18 | B100: Outil RT 2012 V3 septembre 2014 / BDD Sept.2014 | C100: Gestion menus inputs | D100: =SI($C$11="Saunier Duval";EQUIV(C26;$C$249:$C$366;0);EQUIV(C14;$C$372:$C$489;0)) | E100: X | F100: X | G100: X | H100: X | K100: C14 remplacer par c26
A101: 2014-09-19 | B101: Outil RT 2012 V3 septembre 2014 / BDD Sept.2014 | C101: P systemes | D101: a finir | E101: X | F101: X | G101: X | H101: X | I101: 2014-11-04 | J101: GM
A102: 2014-09-19 | B102: Outil RT 2012 V3 septembre 2014 / BDD Sept.2014 | C102: VTTH systémes | D102: à fini | E102: X | F102: X | G102: X | H102: X | I102: 2014-11-04 | J102: GM
A103: 2014-09-19 | B103: Outil RT 2012 V3 septembre 2014 / BDD Sept.2014 | C103: CW systemes | D103: à fini | E103: X | F103: X | G103: X | H103: X | I103: 2014-11-04 | J103: GM
A104: 2014-09-19 | B104: Outil RT 2012 V3 septembre 2014 / BDD Sept.2014 | C104: Gestion menus inputs | D104: Cellule B47 en veille (effacer) | E104: X | F104: X | G104: X | H104: X
A105: 2014-09-19 | B105: Outil RT 2012 V3 septembre 2014 / BDD Sept.2014 | C105: Gestion menus inputs | D105: Ajout accessoires dans les listes variables…. | E105: X | F105: X | G105: X | H105: X | I105: 2014-09-19 | J105: GM
A106: 2014-09-23 | C106: CW CET | D106: faute chaudière é è | E106: X | F106: X | G106: X | H106: X | I106: 2014-09-23 | J106: GM
A107: 2014-09-24 | C107: Gestion menus inputs | D107: correction bug choix de ceti cellule h20 | E107: X | F107: X | G107: X | H107: X | I107: 2014-09-24 | J107: GM
A108: 2014-09-30 | B108: Outil RT 2012 V3 septembre 2014 / BDD Sept.2014 | C108: CW PAC | D108: Ajout des CETI | E108: X | F108: X | G108: X | H108: X | I108: 2014-09-30 | J108: GM
C109: Gestion menus inputs | D109: Cellule H21 =SI(ET(E11=1;E12=7;E13=3);1;SI(ET(E11=1;E12=5);1;0)) | E109: X | F109: X | G109: X | H109: X | I109: 2014-10-08 | J109: GM
C110: P ballon | D110: =LIGNE('CW Ballons'!E26) | E110: X | F110: X | G110: X | H110: X | I110: 2014-10-08 | J110: GM
C111: Gestion menus inputs | D111: cellule C167'=SI(ET($C$12="Systèmes";$C$13="PAC Hybride")=VRAI;"Liste_PACro_Hyb";"LISTE_GAMME_PACro_SD") | E111: X | F111: X | G111: X | H111: X | I111: 2014-10-08 | J111: GM
C112: CW PAC | D112: Cellule [Référence Produit] '=SI('Gestion menus inputs'!$C$11="Saunier Duval";'CW PAC'!H$3;'CW PAC'!H$4) | E112: X | F112: X | G112: X | H112: X | I112: 2014-10-08 | J112: GM
C113: CW PAC | D113: Pac Hybride 5/1 15/1 8/1 et 11 | E113: X | F113: X | G113: X | H113: X | I113: 2014-11-04 | J113: GM
C114: P PAC | D114: Pac Hybride 5/1 15/1 8/1 et 11 | E114: X | F114: X | G114: X | H114: X | I114: 2014-11-04 | J114: GM
C115: V TTH PAC | D115: Pac Hybride 5/1 15/1 8/1 et 11 | E115: X | F115: X | G115: X | H115: X | I115: 2014-11-04 | J115: GM
C116: P PAC | D116: Génération / Service assurés "chauffage seul" Kit Genia Air | E116: X | F116: X | G116: X | H116: x | I116: 2014-10-08 | J116: GM
C117: CW PAC | D117: Pac Hybride 5/1 Titre V oui | E117: X | F117: X | G117: X | H117: X | I117: 2014-10-22 | J117: GM
C118: P PAC | D118: Pac Hybride 5/1 Titre V pas affiché | E118: X | F118: X | G118: X | H118: X | I118: 2014-10-22 | J118: GM
C119: V TTH PAC | D119: Pac Hybride 5/1 Titre V pas affiché | E119: X | F119: X | G119: X | H119: X | I119: 2014-10-22 | J119: GM
C120: VBA | D120: Modif module 2 et 3 | E120: X | F120: X | G120: X | H120: X | I120: 2014-10-13 | J120: GM
C121: P PAC | D121: Type de limite de température en mode ECS | E121: X | F121: X | G121: X | H121: X | I121: 2014-10-16 | J121: GM
C122: P PAC | D122: Temp. mini amont en mode chaud où la machine ne fonctionne plus (° C) mode ECS | E122: X | F122: X | G122: X | H122: X | I122: 2014-10-16 | J122: GM
C123: P PAC | D123: Temp. maxi aval en mode chaud où la machine ne fonctionne plus (° C) mode ECS | E123: X | F123: X | G123: X | H123: X | I123: 2014-10-16 | J123: GM
C124: P PAC | D124: MODIF TYPE DE STOCKAGE | E124: X | F124: X | G124: X | H124: X | I124: 2014-10-16 | J124: GM
B125: V4 | C125: Gestion menus inputs | D125: Gestion des systèmes avec la Marque Vaillant | E125: x | F125: x | G125: x | H125: x | I125: 2015-06-17 | J125: ES
C126: CW systemes | D126: Correction / Gestion des systèmes avec la Marque Vaillant correction ligne 4 et 2 | E126: x | F126: x | G126: x | H126: x | I126: 2014-10-29 | J126: GM
C127: P systemes | D127: Correction / Gestion des systèmes avec la Marque Vaillant correction ligne 4 et 2 | E127: x | F127: x | G127: x | H127: x | I127: 2014-10-29 | J127: GM
C128: V TTH sytemes | D128: Correction / Gestion des systèmes avec la Marque Vaillant correction ligne 4 et 2 | E128: x | F128: x | G128: x | H128: x | I128: 2014-10-29 | J128: GM
C129: Gestion menus inputs | D129: Correction / ajout de "=SI($C$12="chaudières";"LISTE_GAMME_CHD_V";SI(DROITE($C$13;8)="optimisé";"Liste_Ch_opti";"LISTE_GAMME_CHD_V")) | E129: x | F129: x | G129: x | H129: x | I129: 2014-10-29 | J129: GM
D130: Relire les CETI suite au supression onglets CW CETI, P et V TTH | E130: x | F130: x | G130: x | H130: x | I130: 2014-11-03 | J130: GM
C131: CW PAC | D131: Pac Hybride 5/1 Titre V oui Vaillant | E131: X | F131: X | G131: X | H131: X | I131: 2014-10-29 | J131: GM
C132: P PAC | D132: Pac Hybride 5/1 Titre V pas affiché Vaillant | E132: X | F132: X | G132: X | H132: X | I132: 2014-10-29 | J132: GM
A133: 2014-10-29 | C133: V TTH PAC | D133: Pac Hybride 5/1 Titre V pas affiché Vaillant | E133: X | F133: X | G133: X | H133: X | I133: 2014-10-29 | J133: GM
D134: Correction zone appoint de 2 à 3 | E134: X | F134: X | G134: X | H134: X | I134: 2014-10-29 | J134: GM
C135: Interface | D135: S18 = [STOP] | E135: X | F135: X | G135: X | H135: X | I135: 2014-10-29 | J135: GM
C136: Interface | D136: modif VBA feuille "interface" | E136: X | F136: X | G136: X | H136: X | I136: 2014-10-29 | J136: GM
C137: Gestion menus inputs | D137: Correction en VA titre V ou pas | E137: X | F137: X | G137: X | H137: X | I137: 2014-10-29 | J137: GM
A138: 2014-11-03 | C138: CW systemes | D138: Correction de accumulée "ée" | E138: x | F138: x | G138: x | H138: x | I138: 2014-11-03 | J138: GM
C139: P Chaudières | D139: Performances du générateur maque le "/" ecoTECplus | E139: x | F139: x | G139: x | H139: x | I139: 2014-11-04 | J139: GM
C140: CW capteurs | D140: ajout nombre de capteur | E140: x | F140: x | G140: x | H140: x | I140: 2014-11-04 | J140: GM
C141: CW Ballon | D141: ajout Appoint | E141: x | F141: x | G141: x | H141: x | I141: 2014-11-04 | J141: GM
C142: Gestion menus inputs | D142: CORRECTION LIGNE D226 =SI($C$11="Saunier Duval";INDEX(BDD_PRODUITS_SD;$C$225;C226);INDEX(BDD_PRODUITS_V;$C$225;C226)) | E142: x | F142: x | G142: x | H142: x | I142: 2014-11-04 | J142: GM
C143: Gestion menus inputs | D143: PAC 5 que sur Titre 5 avec CW | E143: x | F143: x | G143: x | H143: x | I143: 2014-11-04 | J143: GM
C144: Fiche | D144: 10 lignes d'affichage en plus | E144: x | F144: x | G144: x | H144: x | I144: 2014-11-05 | J144: GM
C145: Calcul | D145: 10 lignes d'affichage en plus | E145: x | F145: x | G145: x | H145: x | I145: 2014-11-05 | J145: GM
A146: 2014-09-02 | C146: CW Ballon | D146: Erreur "appoint integre" unistor collectif changer en "sans appoint" | E146: X | F146: X | G146: x | H146: x | I146: 2014-11-05 | J146: GM
A147: 2014-11-05 | C147: Gestion menus inputs | D147: B38 =SI($D$1<>"Vaillant";"Saunier Duval";"") | E147: X | F147: X | G147: x | H147: x | I147: 2014-11-05 | J147: GM
A148: 2014-11-05 | C148: Gestion menus inputs | D148: B39 =SI($D$1<>"Saunier duval";"Vaillant";"") | E148: X | F148: X | G148: x | H148: x | I148: 2014-11-05 | J148: GM
C149: CW Chaudières | D149: correction pour fonctionnement EDIBATEC | E149: X | F149: X | G149: x | H149: x | I149: 2014-11-13 | J149: GM
C150: CW PAC | D150: Correction CETI "°C" | E150: X | F150: X | G150: x | H150: x | I150: 2014-11-13 | J150: GM
C151: CW PAC | D151: Ajout genia air ecs 5/1 200 8/1 200 8/1 300 | E151: X | F151: X | G151: x | H151: x | I151: 2014-11-18 | J151: GM
C152: P PAC | D152: Ajout genia air ecs 5/1 200 8/1 200 8/1 300 | E152: X | F152: X | G152: x | H152: x | I152: 2014-11-18 | J152: GM
C153: V TTH PAC | D153: Ajout genia air ecs 5/1 200 8/1 200 8/1 300 | E153: X | F153: X | G153: x | H153: x | I153: 2014-11-18 | J153: GM
D154: Correction des "ESC seule" pour ECS seule | E154: X | F154: X | G154: x | H154: x | I154: 2014-11-21 | J154: GM
A155: 2014-12-23 | C155: CW Ballon | D155: Modification des valeurs "Base : hauteur échangeur (%)" des VIHR 750; VIHR 1500 & VIHR 2000 | E155: X | F155: X | G155: X | H155: X | I155: 2014-12-23 | J155: CDS | K155: Erreur d'interpretation de promotelec
A156: 2014-12-23 | C156: CW Ballon | D156: Mettre à jour l'ensemble des valeurs Faux des ballons échangeurs suivant RT2012 via fiche RT Batiment | E156: x | F156: x | G156: x | H156: X | I156: 2015-03-25 | J156: GM | K156: Erreur d'interpretation de promotelec
A157: 2014-12-23 | C157: FIO | D157: Maj des version outils | E157: X | F157: X | G157: X | H157: X | I157: 2014-12-23 | J157: CDS
A158: 2015-02-05 | C158: CW PV | D158: création de l'onglet | E158: x | F158: x | G158: x | H158: x | I158: 2015-02-05 | J158: ES
A159: 2015-02-05 | C159: P PV | D159: création de l'onglet | E159: x | F159: x | G159: x | H159: x | I159: 2015-02-05 | J159: ES
A160: 2015-02-05 | C160: Interface | D160: Ajout PV | E160: x | F160: x | G160: x | H160: x | I160: 2015-02-05 | J160: ES
A161: 2015-02-05 | C161: calculs | D161: ajout PV | E161: x | F161: x | G161: x | H161: x | I161: 2015-02-05 | J161: ES
A162: 2015-02-05 | C162: Fiche | D162: ajuster la zone d'impression | E162: x | F162: x | G162: x | H162: x | I162: 2015-04-17 | J162: ES | K162: sur la base de l'outil chaufferie
A163: 2015-02-06 | C163: CW Chaudières | D163: ajout des appareil ThemaPlus Thema AS et ThemaFast | E163: x | F163: x | G163: x | H163: X | I163: 2015-05-06 | J163: ES/GM
A164: 2015-03-24 | C164: CW Chaudières | D164: gamme themaPlus condens en Thema AS condens | E164: x | F164: x | G164: x | H164: x | I164: 2015-03-24 | J164: GM | K164: erreur de copier coller
A165: 2015-03-24 | C165: CW PAC | D165: effacer gamme aroTHERM [V2] pour PAC DS | E165: x | F165: x | G165: x | H165: x | I165: 2015-03-24 | J165: GM | K165: erreur de copier coller
A166: 2015-03-24 | B166: Outil RT 2012 V3 mars 2014 / BDD Sept.2014 | C166: CW PAC | D166: CW PAC Modification valeur PAC DS suite au NF 1123E | E166: X | F166: x | G166: x | H166: x | I166: 2015-03-24 | J166: GM | K166: COP, Ua, Pabs, et volume
A167: 2015-03-24 | B167: Outil RT 2012 V3 mars 2014 / BDD Sept.2014 | C167: CW Ballon | D167: ANNULER LES MODIFICATIONS DU 23/12/2014 CDS | E167: x | F167: x | G167: x | H167: x | I167: 2015-03-25 | J167: GM | K167: VIH R 750,1000,1500,2000 Erreur d'interpretation de promotelec
A168: 2015-03-26 | B168: Outil RT 2012 V3 mars 2014 / BDD Sept.2014 | C168: Fiche | D168: Mise en page sur 3 feuilles au lieu de 1 | E168: x | F168: x | G168: x | H168: x | I168: 2015-03-26 | J168: GM
A169: 2015-04-07 | B169: V4 | C169: CW PAC | D169: modif valeur 1 ligne 50 pour pac ECS certifié | E169: x | F169: x | G169: x | H169: x | I169: 2015-03-27 | J169: GM
A170: 2015-04-07 | B170: V4 | C170: CW Chaudières | D170: Modif de "Chauffage et ECS (en association avec un ballon)" en "Chauffage seul ou chauffage et ECS (en association avec un ballon)" | E170: x | F170: x | G170: x | H170: x | I170: 2015-04-07 | J170: GM
A171: 2015-04-07 | B171: V4 | C171: CW PV | D171: Mise à jour des données | E171: x | F171: x | G171: x | H171: x | I171: 2015-04-10 | J171: ES
A172: 2015-04-07 | B172: V4 | C172: P PV | D172: Mise à jour des données | E172: x | F172: x | G172: x | H172: x | I172: 2015-04-10 | J172: ES
A173: 2015-04-10 | B173: V4 | C173: Fiche | D173: Revoir les mises en forme conditionnelles | E173: x | F173: x | G173: x | H173: x | I173: 2015-04-17 | J173: ES
A174: 2015-04-17 | B174: V4 | C174: CW Chaudières | D174: Les valeurs des données ont été vérifiées et comparées au données des certification RT2012 de la R&D pour : - ThemaPlus Condens F25 30 et 35 - A - ThemaFast Condens F25 30 35 - A - Thema Condens AS 12 25 - A | E174: x | F174: x | G174: x | H174: x | I174: 2015-04-17 | J174: ES
A175: 2015-04-28 | B175: V4 | C175: VTTH PAC | D175: tout refaire à relire les PAC et PAC DS | E175: x | F175: x | G175: x | H175: x | I175: 2015-06-15 | J175: ES | K175: selon mail de CDS du 19/05
A176: 2015-05-04 | B176: V4 | C176: CW PAC | D176: PAC ECS GENIA 15/1 ECS FEW 300 ME | E176: X | F176: X | G176: X | H176: x | I176: 2015-06-15
A177: 2015-05-04 | B177: V4 | C177: P PAC | D177: PAC ECS GENIA 15/1 ECS FEW 300 ME | E177: X | F177: X | G177: X | H177: x | I177: 2015-06-15
A178: 2015-05-04 | B178: V4 | C178: V TTH PAC | D178: PAC ECS GENIA 15/1 ECS FEW 300 ME | E178: x | F178: x | G178: x | H178: x | I178: 2015-06-15
A179: 2015-05-04 | B179: V4 | C179: CW PAC | D179: VERIFIER Appoint : n° de zone élément chauffant | E179: x | F179: x | G179: x | H179: x | I179: 2015-05-05 | J179: GM
A180: 2015-05-04 | B180: V4 | C180: V TTH PV | D180: création de l'onglet | E180: x | F180: x | G180: x | H180: x | I180: 2015-05-04 | J180: ES
B181: V4 | C181: Interface | D181: ajouter les FEW | E181: x | F181: x | G181: x | H181: x | I181: 2015-06-10 | J181: ES
B182: V4 | C182: CW Ballon | D182: ajouter les ballons ECS SD ==> FE BA | E182: x | F182: x | G182: x | J182: ES | K182: attente Hrelbase (demandé à Louis MOULIN le 12/06)
B183: V4 | C183: CW Ballon | D183: ajouter les ballons ECS SD ==> WE ME | E183: x | F183: x | G183: x | J183: ES | K183: attente Hrelbase (demandé à Louis MOULIN le 12/06)
B184: V4 | C184: CW Ballon | D184: ajouter les ballons ECS SD ==> WE MEL | E184: x | F184: x | G184: x | J184: ES | K184: attente Hrelbase (demandé à Louis MOULIN le 12/06)
B185: V4 | C185: CW Ballon | D185: ajouter les ballons ECS V ==> VIH R BA et HA | E185: x | F185: x | G185: x | J185: ES | K185: attente Hrelbase (demandé à Louis MOULIN le 12/06)
B186: V4 | C186: Interface | D186: ajouter aroSTOR | E186: x | F186: x | G186: x | H186: x | I186: 2015-06-09
B187: V4 | C187: P Chaudières | D187: Les valeurs des données ont été vérifiées et comparées au données des certification RT2012 de la R&D pour : - ThemaPlus Condens F25 30 et 35 - A - ThemaFast Condens F25 30 35 - A - Thema Condens AS 12 25 - A | E187: x | F187: x | G187: x | H187: x | I187: 2015-05-06 | J187: ES
B188: V4 | C188: VTTH Chaudières | D188: Les valeurs des données ont été vérifiées et comparées au données des certification RT2012 de la R&D pour : - ThemaPlus Condens F25 30 et 35 - A - ThemaFast Condens F25 30 35 - A - Thema Condens AS 12 25 - A | E188: x | F188: x | G188: x | H188: x | I188: 2015-05-06 | J188: ES
B189: V4 | C189: Gestion menus inputs | D189: supprimer les anciennes gammes | E189: x | F189: x | G189: x | H189: x | I189: 2015-06-11 | J189: ES
B190: V4 | C190: CW toutes | D190: marquer les anciennes gammes " anciennes gammes" L7 pour edibatec | E190: x | F190: x
B191: V4 | C191: CW PAC | D191: PAC ECS GENIA 11 ECS 300 ME | E191: X | F191: X | G191: X | H191: x | J191: ES
B192: V4 | C192: P PAC | D192: PAC ECS GENIA 11 ECS 300 ME | E192: X | F192: X | G192: X | H192: x | J192: ES
B193: V4 | C193: V TTH PAC | D193: PAC ECS GENIA 11 ECS 300 ME | E193: X | F193: X | G193: X | H193: x | J193: ES
B194: V4 | C194: P chaudières | D194: ligne 42 à 99 = NA (Pas de Ballon) | E194: X | F194: X | G194: X | H194: X | I194: 2015-05-06 | J194: GM
B195: V4 | C195: P chaudières | D195: Correction ligne 18 "/" | E195: X | F195: X | G195: X | H195: X | I195: 2015-05-06 | J195: GM
B196: V4 | C196: CW Chaudières | D196: ajout Isotwin et isomax 2015 | E196: x | F196: x | G196: x | H196: x | I196: 2015-06-10 | J196: ES
B197: V4 | C197: P chaudières | D197: ajout Isotwin et isomax 2015 | E197: x | F197: x | G197: x | H197: x | I197: 2015-06-10 | J197: ES
B198: V4 | C198: V TTH Chaudières | D198: ajout Isotwin et isomax 2015 | E198: x | F198: x | G198: x | H198: x | I198: 2015-06-10 | J198: ES
B199: V4 | C199: CW PAC | D199: vérifier les valeur du CETI 150/2 avec rapport d'essai
A200: 2015-06-15 | B200: V4 | C200: Tous | D200: ajuster les plages nommées pour éviter les problème d'"ascensseur" | E200: x | F200: x | I200: 2015-06-15 | J200: ES | K200: ok pour LISTE_MODELE mais pas pour LISTE_GAMME | L200: Ne fonctionne pas si il y a un INDIRECT
... 297 more rows

Sheet table CW-P-F (hidden)
A2: Type de production ECS | B2: CW | C2: P
B3: Pas d'ECS instantanée | C3: Décentralisée instantanée (ne concerne que la saisie en logements collectifs)
B4: Production d'ECS instantanée | C4: Décentralisée instantanée (ne concerne que la saisie en logements collectifs)
A5: [CW PAC...Ligne 18 | C5: Décentralisée avec stockage
C6: Décentralisée mixte (chauffage et ECS)
C7: Centralisée instantanée
C8: Centralisée avec stockage
C9: Centralisé mixte (Chauffage et ECS)
C10: Centralisée avec appoint décentralisés
A14: Production de générateur | B14: CW | C14: P
B15: Système thermodynamique | C15: PAC à compression électrique
A16: [CW PAC...Ligne 30
A18: Type de générateur | B18: CW | C18: P
A19: [CW CETI...Ligne 38 | B19: Electrique | C19: PAC à compression électrique | J19: Ballons ECS ou solaires
A22: Limite temp.sources | B22: CW | C22: P
B23: Chauff. | C23: Chauffage seul
A24: [CW PAC...Ligne 29 | B24: Refroidissement seul
B25: Chauffage et refroidissement
B26: Ch./ECS | C26: Chauffage et ECS
B27: ECS seule | C27: ECS seule
A29: Limite temp.sources | B29: CW | C29: P | D29: F
A30: champ CW 108 | B30: Pas de limite | C30: Pas de limite
A31: [CW CETI] Ligne 46 | B31: Sur l'une et l'autre des températures de source | C31: Limite sur les températures des deux sources simultanément
B32: Sur l'une ou l'autre des températures de source | C32: Limite sur l'une ou l'autre des températures de source
A34: Sytéme thermodynamique ECS | B34: CW | C34: P | D34: F
A35: champ CW 38 | B35: Pac air extérieur/eau | C35: Air extérieur
A36: [CW CETI] Ligne 39 | B36: Pac air extrait/eau | C36: Air extrait
B37: Pac air ambiant/eau | C37: Air ambiant de volume non-chauffé
B38: Pac eau de nappe/eau | C38: NA
B39: Pac sol/eau | C39: NA
A41: Statut des données | B41: CW | C41: P | D41: F
A42: champ CW 42 | B42: Valeurs de performance certifiées ou mesurées | C42: Il existe des valeurs certifiées ou mesurées
A43: [CW CETI] Ligne 40 | B43: Pas de valeurs de performance certifiées ou mesurées | C43: Il n'existe aucune valeur certifiée ou mesurée
B44: Valeurs certifiées ou mesurées | C44: Il existe des valeurs certifiées ou mesurées | D44: Valeur par défaut des règles Th-CE
B45: Pas de valeurs certifiées ou mesurées | C45: Il n'existe aucune valeur certifiée ou mesurée | D45: Valeur par défaut des règles Th-CE
B47: CW | C47: P | D47: F
B48: Zone 1 | C48: 1
B49: Zone 2 | C49: 2
B50: Zone 3 | C50: 3
B51: Zone 4 | C51: 4
B53: CW | C53: P | D53: F
B54: NA | C54: NA | D54: Valeur par défaut des règles Th-CE
A56: T° Amont eau glycolé / eau | B56: -6,5 °C | C56: -8/-5
B57: -1,5 °C | C57: -3/0
B58: 3,5 °C | C58: 2/5
B59: 8,5 °C | C59: 7/10
B60: 13,5 °C | C60: 12/15
A61: T° Amont air / eau | B61: -7 °C , 7 °C | C61: -7 °C , 7 °C | D61: -7 °C , 7 °C
B62: -7 °C , 2°C, 7 °C | C62: -7 °C , 2°C, 7 °C | D62: -7 °C , 2°C, 7 °C
B63: -15°C, -7°C, 2 °C, 7 °C, 20°C | C63: -15°C, -7°C, 2 °C, 7 °C, 20°C
A66: T° Aval | B66: 23,5 °C | C66: 22/25
B67: 32,5 °C | C67: 35/30
B68: 42,5 °C | C68: 45/40
B69: 51 °C | C69: 55/47
B70: 60 °C | C70: 65/55
B71: 32,5 °C, 42,5 °C | C71: 35/30; 45/40
B72: 32,5 °C, 42,5 °C, 51 °C | C72: 35/30; 45/40; 55/47
B73: 32,5 °C, 42,5 °C, 51 °C, 60 °C | C73: 35/30; 45/40; 55/47; 55/65
B74: 23,5 °C, 32,5 °C, 42,5 °C, 51 °C, 60 °C | C74: 22/25; 35/30; 45/40; 55/47; 55/65
A93: Type de gestion de captage | B93: Tout ou rien | C93: Tout ou rien en fonction de la demande en énergie
B95: CW | C95: P | D95: F
B96: Valeur certifiée | C96: Valeur certifiée | D96: C
B97: Valeur déclarée | C97: Valeur déclarée | D97: J
B98: Valeur par défaut | C98: Valeur par défaut | D98: Valeur par défaut des règles Th-CE
B99: Pas de résistance d'appoint | C99: Décoché
B100: Présent | C100: Coché
B101: Régulation à débit variable
B102: Horloge à heure fixe | C102: Horloge à heure fixe
B103: Heure fixe avec contrôle d'ambiance | C103: Horloge à heure fixe avec contrôle d'ambiance
B104: Optimiseur | C104: Optimiseur
B106: Valeur par défaut

Sheet Interface
G9: Principe : | H9: 1- Sélectionner le logiciel RE2020 que vous utilisez
H10: 2- Sélectionner les caractéristiques du produit souhaité
H11: 3- Cliquez sur le bouton "GO !"
G13: Vous obtiendrez alors en quelques clics la fiche d'aide à la saisie du produit dans le logiciel RE 2020 !
H15: Données d'entrée :
A16: ligne à afficher(oui=1)
A17: ='Gestion menus inputs'!H10 -> 1 | I17: Logiciel RE | J17: Clima-Win (BBS Slama) | L17: ='Gestion menus inputs'!F10 -> 
A18: ='Gestion menus inputs'!H11 -> 0 | I18: Marque | J18: Saunier Duval | L18: ='Gestion menus inputs'!F11 ->  | S18: =STOP -> 0 | T18: Blocage
A19: ='Gestion menus inputs'!H12 -> 1 | I19: Famille produits | J19: PAC air/eau | L19: ='Gestion menus inputs'!F12 ->  | S19: ='Gestion menus inputs'!G7 -> Modifier la sélection
A20: ='Gestion menus inputs'!H13 -> 0 | I20: Ballon ECS | L20: ='Gestion menus inputs'!F13 -> 
A21: ='Gestion menus inputs'!H14 -> 0 | I21: Gamme ballon | J21: HelioSet bivalent | L21: ='Gestion menus inputs'!F14 -> 
A22: ='Gestion menus inputs'!H15 -> 0 | I22: Modèle ballon | J22: FES2 250 BiD | L22: ='Gestion menus inputs'!F15 -> 
A23: ='Gestion menus inputs'!H16 -> 0 | I23: Capteurs solaires | L23: ='Gestion menus inputs'!F16 -> 
A24: ='Gestion menus inputs'!H17 -> 0 | I24: Gamme capteur | J24: HelioPlan (autovidangeable) | L24: ='Gestion menus inputs'!F17 -> 
A25: ='Gestion menus inputs'!H18 -> 0 | I25: Modèle capteur | J25: SRDV 2.3/2 Vertical | L25: ='Gestion menus inputs'!F18 -> 
A26: ='Gestion menus inputs'!H19 -> 0 | I26: Chaudières | L26: ='Gestion menus inputs'!F19 -> 
A27: ='Gestion menus inputs'!H20 -> 0 | I27: Gamme chaudière | J27: ThemaPlus Condens | L27: ='Gestion menus inputs'!F20 -> 
A28: ='Gestion menus inputs'!H21 -> 0 | I28: Modèle chaudière | J28: ThemaPlus Condens F 25 - A | L28: ='Gestion menus inputs'!F21 -> 
A29: ='Gestion menus inputs'!H22 -> 0 | I29: PAC AIR/EAU | L29: ='Gestion menus inputs'!F22 -> 
A30: ='Gestion menus inputs'!H23 -> 1 | I30: Gamme PAC | J30: Kit GeniaSet Split | L30: ='Gestion menus inputs'!F23 -> 
A31: ='Gestion menus inputs'!H24 -> 1 | I31: Modèle PAC | J31: Kit GeniaSet Split 5 | L31: ='Gestion menus inputs'!F24 -> 
A32: ='Gestion menus inputs'!H25 -> 0 | I32: Chauffe-eau thermodynamique | L32: ='Gestion menus inputs'!F25 -> 
A33: ='Gestion menus inputs'!H26 -> 0 | I33: Gamme CETI | J33: Magna Aqua appoint électrique | L33: ='Gestion menus inputs'!F26 -> 
A34: ='Gestion menus inputs'!H27 -> 0 | I34: Modèle CETI | J34: Magna Aqua 200/3 Performance RT (électrique) | L34: ='Gestion menus inputs'!F27 -> 
A35: ='Gestion menus inputs'!H28 -> 0 | I35: Micro PV | L35: ='Gestion menus inputs'!F28 -> 
A36: ='Gestion menus inputs'!H29 -> 0 | I36: Gamme PV | J36: HelioPV | L36: ='Gestion menus inputs'!F29 -> 
A37: ='Gestion menus inputs'!H30 -> 0 | I37: Modèle PV | J37: HelioPV 1V TT 60 cellules | L37: ='Gestion menus inputs'!F30 -> 
I38: PAC EAU/EAU | L38: ='Gestion menus inputs'!F31 -> 
A39: ='Gestion menus inputs'!H32 -> 0 | I39: Gamme PAC | J39: flexoCOMPACT exclusive | L39: ='Gestion menus inputs'!F32 -> Modifier la sélection
A40: =IF('Gestion menus inputs'!D10=3,0,'Gestion menus inputs'!H33) -> 0 | I40: Modèle PAC | J40: flexoCOMPACT exclusive VWF 88/4 | L40: ='Gestion menus inputs'!F33 -> Modifier la sélection
A41: ='Gestion menus inputs'!H34 -> 0 | I41: Accessoires | L41: ='Gestion menus inputs'!F34 -> 
A42: ='Gestion menus inputs'!H35 -> 0 | I42: Système | J42: CETI optimisé | L42: ='Gestion menus inputs'!F35 -> 
A43: ='Gestion menus inputs'!H36 -> 0 | I43: Modèle CESI | J43: FES1 150 BiD & FES1 150 B M + GHSD 8 | L43: ='Gestion menus inputs'!F36 -> Modifier la sélection
A44: ='Gestion menus inputs'!H37 -> 0 | I44: Modèle capteur | J44: SRDV 2.3 Vertical | L44: ='Gestion menus inputs'!F37 -> Modifier la sélection
A45: ='Gestion menus inputs'!H38 -> 0 | I45: Modèle CETI | J45: Magna Aqua 150/3 OptiGaz | L45: ='Gestion menus inputs'!F38 -> 
A46: ='Gestion menus inputs'!H39 -> 0 | I46: Gamme chaudière d'appoint | J46: ThemaPlus Condens | L46: ='Gestion menus inputs'!F39 -> 
A47: ='Gestion menus inputs'!H40 -> 0 | I47: Modèle chaudière d'appoint | J47: ThemaPlus Condens MA 26-CS/1 (N-FR) | L47: ='Gestion menus inputs'!F40 -> 
A48: ='Gestion menus inputs'!H41 -> 0 | I48: Modèle PAC | J48: Kit Genia Hybrid 5/2 | L48: ='Gestion menus inputs'!F41 -> Modifier la sélection
A49: ='Gestion menus inputs'!H42 -> 0 | I49: Accessoires | L49: ='Gestion menus inputs'!F42 -> 
A50: ='Gestion menus inputs'!H43 -> 0 | I50: Gamme accessoires | J50: Moduzone | L50: ='Gestion menus inputs'!F43 -> 
A51: ='Gestion menus inputs'!H44 -> 0 | I51: Modèle accessoires | J51: Moduzone Z 11 C | L51: ='Gestion menus inputs'!F44 -> 
A52: ='Gestion menus inputs'!H45 -> 0 | I52: Onduleur | L52: ='Gestion menus inputs'!F45 -> 
A53: ='Gestion menus inputs'!H46 -> 0 | I53: Gamme Onduleur | J53: Onduleur Triphasé (400 V) | L53: ='Gestion menus inputs'!F46 -> Modifier la sélection
A54: ='Gestion menus inputs'!H47 -> 0 | I54: Modèle Onduleur | J54: VPV I 4000/1 400 V | L54: ='Gestion menus inputs'!F47 -> Modifier la sélection
A55: ='Gestion menus inputs'!H48 -> 0 | I55: Module PV | L55: ='Gestion menus inputs'!F48 -> 
A56: ='Gestion menus inputs'!H49 -> 0 | I56: Gamme Module PV | J56: auroPOWER | L56: ='Gestion menus inputs'!F49 -> Modifier la sélection
A57: ='Gestion menus inputs'!H50 -> 0 | I57: Modèle Module PV | J57: VPV P 325/5 M BBF | L57: ='Gestion menus inputs'!F50 -> Modifier la sélection
H60: Description du produit sélectionné :
I61: =Calculs!I66 -> Pompe à chaleur air / eau split Inverter Puissance 4,4 kW, COP 4,7 _ Certifiée NF PAC double service _ Classe d'efficacité énergétique : A+++/A++ (départ 35 °C/55 °C) _ Classe d’efficacité énergétique ECS : A _ Profil de puisage : L
D70: =Logos!A6 -> L'utilisation de cet outil est une aide à la saisie de matériel SAUNIER DUVAL et VAILLANT pour la réalisation d'une étude thermique RE 2020. Il repose sur l'interprétation de la méthode Th-BCE 2020, sur la version disponible des logiciels de calcul Clima-Win et Perrenoud et sur les caractéristiques des produits SAUNIER DUVAL et VAILLANT, lesquelles sont susceptibles d'évoluer. Par conséquent, les informations délivrées dans cet outil ont une valeur uniquement indicative et non contractuelle. La société Saunier Duval Eau Chaude Chauffage - SAS commercialisant les produits SAUNIER DUVAL et VAILLANT ne saurait être tenue responsable de toute autre utilisation du présent outil et ne peut garantir l'exactitude des résultats.
D75: =FIO!B5&" "&FIO!B6 -> Outil RE 2020 Mai 2022 / BDD 16 Mai 2022
D76: ="pour les logiciels "&FIO!B7&" / "&FIO!B8&"" -> pour les logiciels Clima-Win de BBS Slama, version 4.6.4.1 / U21Win / U22Win de Perrenoud, version 5.1.34

Sheet Fiche
B1: Fiche d'aide à la saisie des données d'entrée RE 2020 | H1: N° de ligne | I1: Ligne active
B2: ="dans le logiciel "&Interface!J17 -> dans le logiciel Clima-Win (BBS Slama) | H2: 2 | I2: 1 | K2: Zone d'impression | L2: ="B1:C"&L3 -> B1:C139
H3: 3 | I3: 1 | K3: dernière ligne à imprimer | L3: =SUM(I2:I188)+1 -> 139
H4: 4 | I4: 1
B5: =Logos!A12 -> L'utilisation de cette fiche est une aide à la saisie de matériel SAUNIER DUVAL pour la réalisation d'une étude thermique RE 2020. Il repose sur l'interprétation de la méthode Th-BCE 2020, sur la version disponible des logiciels de calcul Clima-Win et Perrenoud et sur les caractéristiques des produits SAUNIER DUVAL, lesquelles sont susceptibles d'évoluer. Par conséquent, les informations délivrées dans cet outil ont une valeur uniquement indicative et non contractuelle. La société Saunier Duval Eau Chaude Chauffage - SAS commercialisant les produits SAUNIER DUVAL ne saurait être tenue responsable de toute autre utilisation du présent outil et ne peut garantir l'exactitude des résultats. | H5: 5 | I5: 1
H6: 6 | I6: 1
H7: 7 | I7: 1
H8: 8 | I8: 1
H9: 9 | I9: 1
B10: =IF(G14="OK",IF('Gestion menus inputs'!C12="systèmes",Calculs!J76,Calculs!C7),"MODIFIER LA SELECTION") -> Kit GeniaSet Split 5 | F10: Marque : | G10: =Interface!$J$18 -> Saunier Duval | H10: 10 | I10: 1
H11: 11 | I11: 1
B12: =Calculs!I66 -> Pompe à chaleur air / eau split Inverter Puissance 4,4 kW, COP 4,7 _ Certifiée NF PAC double service _ Classe d'efficacité énergétique : A+++/A++ (départ 35 °C/55 °C) _ Classe d’efficacité énergétique ECS : A _ Profil de puisage : L | H12: 12 | I12: 1
H13: 13 | I13: 1
B14: ="Données en date de : "&FIO!B6 -> Données en date de : 16 Mai 2022 | F14: Sélection : | G14: =IF('Gestion menus inputs'!F51=0,"OK","PB") -> OK | H14: 14 | I14: 1
H15: 15 | I15: 1
B16: =IF(ISERROR(Calculs!I438),0,Calculs!I438) -> Champs RE 2020 | C16: =IF(ISERROR(Calculs!J438),0,Calculs!J438) -> Valeurs | H16: 16 | I16: =IF(B16=0,0,1) -> 1 | K16: Pour mise en forme
B17: =IF(ISERROR(Calculs!I439),0,Calculs!I439) -> Générateur : PAC ou CETI | C17: =IF(ISERROR(Calculs!J439),0,Calculs!J439) -> - | H17: 17 | I17: =IF(B17=0,0,1) -> 1 | K17: =IF(C17="-","A",IF(C17="/","B",IF(B17=0,"C","D"))) -> A
B18: =IF(ISERROR(Calculs!I440),0,Calculs!I440) -> Référence | C18: =IF(ISERROR(Calculs!J440),0,Calculs!J440) -> (libre) | H18: 18 | I18: 1 | K18: =IF(C18="-","A",IF(C18="/","B",IF(B18=0,"C","D"))) -> D
B19: =IF(ISERROR(Calculs!I441),0,Calculs!I441) -> Production de générateur | C19: =IF(ISERROR(Calculs!J441),0,Calculs!J441) -> Ch./ECS | H19: 19 | I19: 1 | J19: Ballons ECS ou solaires | K19: D
B20: =IF(ISERROR(Calculs!I442),0,Calculs!I442) -> Type de générateur | C20: =IF(ISERROR(Calculs!J442),0,Calculs!J442) -> Système thermodynamique | H20: 20 | I20: 1 | K20: D
B21: =IF(ISERROR(Calculs!I443),0,Calculs!I443) -> Référence Produit | C21: =IF(ISERROR(Calculs!J443),0,Calculs!J443) -> Kit GeniaSet Split 5 | H21: 21 | I21: 1 | K21: D
B22: =IF(ISERROR(Calculs!I444),0,Calculs!I444) -> Caractéristiques | C22: =IF(ISERROR(Calculs!J444),0,Calculs!J444) -> / | H22: 22 | I22: 1 | K22: B
B23: =IF(ISERROR(Calculs!I445),0,Calculs!I445) -> Energie | C23: =IF(ISERROR(Calculs!J445),0,Calculs!J445) -> Electrique | H23: 23 | I23: 1 | K23: D
B24: =IF(ISERROR(Calculs!I446),0,Calculs!I446) -> Système thermodynamique chauffage | C24: =IF(ISERROR(Calculs!J446),0,Calculs!J446) -> Pac air extérieur / eau | H24: 24 | I24: 1 | K24: D
B25: =IF(ISERROR(Calculs!I447),0,Calculs!I447) -> Statut des données | C25: =IF(ISERROR(Calculs!J447),0,Calculs!J447) -> Valeurs certifiées ou mesurées | H25: 25 | I25: 1 | K25: D
B26: =IF(ISERROR(Calculs!I448),0,Calculs!I448) -> Statut des données en ECS | C26: =IF(ISERROR(Calculs!J448),0,Calculs!J448) -> Valeurs certifiées ou mesurées | H26: 26 | I26: 1 | K26: D
B27: =IF(ISERROR(Calculs!I449),0,Calculs!I449) -> Températures aval chauffage (°C) | C27: =IF(ISERROR(Calculs!J449),0,Calculs!J449) -> 32,5 °C, 42,5 °C, 51 °C | H27: 27 | I27: 1 | K27: D
B28: =IF(ISERROR(Calculs!I450),0,Calculs!I450) -> Températures amont chauffage (°C) | C28: =IF(ISERROR(Calculs!J450),0,Calculs!J450) -> -7 °C , 2°C, 7 °C | H28: 28 | I28: 1 | K28: D
B29: =IF(ISERROR(Calculs!I451),0,Calculs!I451) -> Températures aval ECS (°C) | C29: =IF(ISERROR(Calculs!J451),0,Calculs!J451) -> 45 °C | H29: 29 | I29: 1 | K29: D
B30: =IF(ISERROR(Calculs!I452),0,Calculs!I452) -> Températures amont ECS (°C) | C30: =IF(ISERROR(Calculs!J452),0,Calculs!J452) -> 7 °C | H30: 30 | I30: 1 | K30: D
B31: =IF(ISERROR(Calculs!I453),0,Calculs!I453) -> COP (saisie du tableau de valeurs) | C31: =IF(ISERROR(Calculs!J453),0,Calculs!J453) -> / | H31: 31 | I31: 1 | K31: B
B32: =IF(ISERROR(Calculs!I454),0,Calculs!I454) -> Matrice des performances | C32: =IF(ISERROR(Calculs!J454),0,Calculs!J454) -> Température amont °C (source froide) | H32: 32 | I32: 1 | K32: D
B33: =IF(ISERROR(Calculs!I455),0,Calculs!I455) -> Température aval °C (source chaude) | C33: =IF(ISERROR(Calculs!J455),0,Calculs!J455) -> -15 -7 2 7 20 | H33: 33 | I33: 1 | K33: D
B34: =IF(ISERROR(Calculs!I456),0,Calculs!I456) -> 32,5 °C | C34: =IF(ISERROR(Calculs!J456),0,Calculs!J456) -> 2,67 3,67 4,68 | H34: 34 | I34: 1 | K34: D
B35: =IF(ISERROR(Calculs!I457),0,Calculs!I457) -> 42,5 °C | C35: =IF(ISERROR(Calculs!J457),0,Calculs!J457) -> 2,26 2,87 3,49 | H35: 35 | I35: 1 | K35: D
B36: =IF(ISERROR(Calculs!I458),0,Calculs!I458) -> 51 °C | C36: =IF(ISERROR(Calculs!J458),0,Calculs!J458) -> 1,95 2,3 2,67 | H36: 36 | I36: 1 | K36: D
B37: =IF(ISERROR(Calculs!I459),0,Calculs!I459) -> COP ECS (saisie du tableau de valeurs) | C37: =IF(ISERROR(Calculs!J459),0,Calculs!J459) -> / | H37: 37 | I37: 1 | K37: B
B38: =IF(ISERROR(Calculs!I460),0,Calculs!I460) -> Matrice des performances | C38: =IF(ISERROR(Calculs!J460),0,Calculs!J460) -> Température amont °C (source froide) | H38: 38 | I38: 1 | K38: D
B39: =IF(ISERROR(Calculs!I461),0,Calculs!I461) -> Température aval °C (source chaude) | C39: =IF(ISERROR(Calculs!J461),0,Calculs!J461) -> 7 | H39: 39 | I39: 1 | K39: D
B40: =IF(ISERROR(Calculs!I462),0,Calculs!I462) -> 45 °C | C40: =IF(ISERROR(Calculs!J462),0,Calculs!J462) -> 2.5 | H40: 40 | I40: 1 | K40: D
B41: =IF(ISERROR(Calculs!I463),0,Calculs!I463) -> Puissances absorbées (saisie du tableau de valeurs) | C41: =IF(ISERROR(Calculs!J463),0,Calculs!J463) -> / | H41: 41 | I41: 1 | K41: B
B42: =IF(ISERROR(Calculs!I464),0,Calculs!I464) -> Matrice Puissance absorbées (en kW) | C42: =IF(ISERROR(Calculs!J464),0,Calculs!J464) -> Température amont °C (source froide) | H42: 42 | I42: 1 | K42: D
B43: =IF(ISERROR(Calculs!I465),0,Calculs!I465) -> Température aval °C (source chaude) | C43: =IF(ISERROR(Calculs!J465),0,Calculs!J465) -> -15 -7 2 7 20 | H43: 43 | I43: 1 | K43: D
B44: =IF(ISERROR(Calculs!I466),0,Calculs!I466) -> 32,5 °C | C44: =IF(ISERROR(Calculs!J466),0,Calculs!J466) -> 1,83 0,92 0,65 | H44: 44 | I44: 1 | K44: D
B45: =IF(ISERROR(Calculs!I467),0,Calculs!I467) -> 42,5 °C | C45: =IF(ISERROR(Calculs!J467),0,Calculs!J467) -> 1,98 1,09 1,16 | H45: 45 | I45: 1 | K45: D
B46: =IF(ISERROR(Calculs!I468),0,Calculs!I468) -> 51 °C | C46: =IF(ISERROR(Calculs!J468),0,Calculs!J468) -> 2,11 1,35 1,38 | H46: 46 | I46: 1 | K46: D
B47: =IF(ISERROR(Calculs!I469),0,Calculs!I469) -> Puissances absorbées en ECS (saisie du tableau de valeurs) | C47: =IF(ISERROR(Calculs!J469),0,Calculs!J469) -> / | H47: 47 | I47: 1 | K47: B
B48: =IF(ISERROR(Calculs!I470),0,Calculs!I470) -> Matrice Puissance absorbées (en kW) | C48: =IF(ISERROR(Calculs!J470),0,Calculs!J470) -> Température amont °C (source froide) | H48: 48 | I48: 1 | K48: D
B49: =IF(ISERROR(Calculs!I471),0,Calculs!I471) -> Température aval °C (source chaude) | C49: =IF(ISERROR(Calculs!J471),0,Calculs!J471) -> 7 | H49: 49 | I49: 1 | K49: D
B50: =IF(ISERROR(Calculs!I472),0,Calculs!I472) -> 45 °C | C50: =IF(ISERROR(Calculs!J472),0,Calculs!J472) -> 0.91 | H50: 50 | I50: 1 | K50: D
B51: =IF(ISERROR(Calculs!I473),0,Calculs!I473) -> Indicateurs de certification (saisie du tableau de valeurs) | C51: =IF(ISERROR(Calculs!J473),0,Calculs!J473) -> / | H51: 51 | I51: 1 | K51: B
B52: =IF(ISERROR(Calculs!I474),0,Calculs!I474) -> Matrice des indicateurs de certification | C52: =IF(ISERROR(Calculs!J474),0,Calculs!J474) -> Température amont °C (source froide) | H52: 52 | I52: 1 | K52: D
B53: =IF(ISERROR(Calculs!I475),0,Calculs!I475) -> Température aval °C (source chaude) | C53: =IF(ISERROR(Calculs!J475),0,Calculs!J475) -> -15 -7 2 7 20 | H53: 53 | I53: 1 | K53: D
B54: =IF(ISERROR(Calculs!I476),0,Calculs!I476) -> 32,5 °C | C54: =IF(ISERROR(Calculs!J476),0,Calculs!J476) -> 1 1 1 | H54: 54 | I54: 1 | K54: D
B55: =IF(ISERROR(Calculs!I477),0,Calculs!I477) -> 42,5 °C | C55: =IF(ISERROR(Calculs!J477),0,Calculs!J477) -> 1 1 1 | H55: 55 | I55: 1 | K55: D
B56: =IF(ISERROR(Calculs!I478),0,Calculs!I478) -> 51 °C | C56: =IF(ISERROR(Calculs!J478),0,Calculs!J478) -> 1 1 1 | H56: 56 | I56: 1 | K56: D
B57: =IF(ISERROR(Calculs!I479),0,Calculs!I479) -> Indicateurs de certification en ECS (saisie du tableau de valeurs) | C57: =IF(ISERROR(Calculs!J479),0,Calculs!J479) -> / | H57: 57 | I57: 1 | K57: B
B58: =IF(ISERROR(Calculs!I480),0,Calculs!I480) -> Matrice des indicateurs de certification | C58: =IF(ISERROR(Calculs!J480),0,Calculs!J480) -> Température amont °C (source froide) | H58: 58 | I58: 1 | K58: D
B59: =IF(ISERROR(Calculs!I481),0,Calculs!I481) -> Température aval °C (source chaude) | C59: =IF(ISERROR(Calculs!J481),0,Calculs!J481) -> 7 | H59: 59 | I59: 1 | K59: D
B60: =IF(ISERROR(Calculs!I482),0,Calculs!I482) -> 45 °C | C60: =IF(ISERROR(Calculs!J482),0,Calculs!J482) -> 1 | H60: 60 | I60: 1 | K60: D
B61: =IF(ISERROR(Calculs!I483),0,Calculs!I483) -> Fin matrice | C61: =IF(ISERROR(Calculs!J483),0,Calculs!J483) -> / | H61: 61 | I61: 1 | K61: B
B62: =IF(ISERROR(Calculs!I484),0,Calculs!I484) -> Limite température sources | C62: =IF(ISERROR(Calculs!J484),0,Calculs!J484) -> Sur l'une ou l'autre des températures de source | H62: 62 | I62: 1 | K62: D
B63: =IF(ISERROR(Calculs!I485),0,Calculs!I485) -> Limite température sources ECS | C63: =IF(ISERROR(Calculs!J485),0,Calculs!J485) -> Sur l'une ou l'autre des températures de source | H63: 63 | I63: 1 | K63: D
B64: =IF(ISERROR(Calculs!I486),0,Calculs!I486) -> Température maximale aval (°C) | C64: =IF(ISERROR(Calculs!J486),0,Calculs!J486) -> 55 | H64: 64 | I64: 1 | K64: D
B65: =IF(ISERROR(Calculs!I487),0,Calculs!I487) -> Température maximale aval ECS (°C) | C65: =IF(ISERROR(Calculs!J487),0,Calculs!J487) -> 62 | H65: 65 | I65: 1 | K65: D
B66: =IF(ISERROR(Calculs!I488),0,Calculs!I488) -> Température minimale amont (°C) | C66: =IF(ISERROR(Calculs!J488),0,Calculs!J488) -> -20 | H66: 66 | I66: 1 | K66: D
B67: =IF(ISERROR(Calculs!I489),0,Calculs!I489) -> Température minimale amont ECS (°C) | C67: =IF(ISERROR(Calculs!J489),0,Calculs!J489) -> -20 | H67: 67 | I67: 1 | K67: D
B68: =IF(ISERROR(Calculs!I490),0,Calculs!I490) -> Fonctionnement à charge réelle en mode chaud | C68: =IF(ISERROR(Calculs!J490),0,Calculs!J490) -> Valeur déclarée | H68: 68 | I68: 1 | K68: D
B69: =IF(ISERROR(Calculs!I491),0,Calculs!I491) -> Fonctionnement compresseur à charge réelle | C69: =IF(ISERROR(Calculs!J491),0,Calculs!J491) -> Mode continu du compresseur | H69: 69 | I69: 1 | K69: D
B70: =IF(ISERROR(Calculs!I492),0,Calculs!I492) -> Statut fonctionnement continu | C70: =IF(ISERROR(Calculs!J492),0,Calculs!J492) -> Valeur par défaut | H70: 70 | I70: 1 | K70: D
B71: =IF(ISERROR(Calculs!I493),0,Calculs!I493) -> Typologie des émetteurs en chaud | C71: =IF(ISERROR(Calculs!J493),0,Calculs!J493) -> (en fonction du projet) | H71: 71 | I71: 1 | K71: D
B72: =IF(ISERROR(Calculs!I494),0,Calculs!I494) -> Statut part électrique aux. | C72: =IF(ISERROR(Calculs!J494),0,Calculs!J494) -> Valeur certifiée | H72: 72 | I72: 1 | K72: D
B73: =IF(ISERROR(Calculs!I495),0,Calculs!I495) -> Part puissance électrique auxiliaires chaud T.aux | C73: =IF(ISERROR(Calculs!J495),0,Calculs!J495) -> 0.0169 | H73: 73 | I73: 1 | K73: D
B74: =IF(ISERROR(Calculs!I496),0,Calculs!I496) -> Présence ballon d'eau intégré | C74: =IF(ISERROR(Calculs!J496),0,Calculs!J496) -> Générateur avec ballon | H74: 74 | I74: 1 | K74: D
B75: =IF(ISERROR(Calculs!I497),0,Calculs!I497) -> Appoint intégré | C75: =IF(ISERROR(Calculs!J497),0,Calculs!J497) -> Avec appoint intégré électrique | H75: 75 | I75: 1 | K75: D
B76: =IF(ISERROR(Calculs!I498),0,Calculs!I498) -> Puissance appoint électrique (kW) | C76: =IF(ISERROR(Calculs!J498),0,Calculs!J498) -> 0,9; 1,1; 1,7; 2; 2,8; 3,7; 4,5 ou 5,4 (en fonction du projet) | H76: 76 | I76: 1 | K76: D
B77: =IF(ISERROR(Calculs!I499),0,Calculs!I499) -> Volume du ballon (l) | C77: =IF(ISERROR(Calculs!J499),0,Calculs!J499) -> 188 | H77: 77 | I77: 1 | K77: D
B78: =IF(ISERROR(Calculs!I500),0,Calculs!I500) -> Type de pertes thermique | C78: =IF(ISERROR(Calculs!J500),0,Calculs!J500) -> Valeur certifiée | H78: 78 | I78: 1 | K78: D
B79: =IF(ISERROR(Calculs!I501),0,Calculs!I501) -> Pertes thermiques ballon (W/K) | C79: =IF(ISERROR(Calculs!J501),0,Calculs!J501) -> 1.32 | H79: 79 | I79: 1 | K79: D
B80: =IF(ISERROR(Calculs!I502),0,Calculs!I502) -> Température max. ballon (°C) | C80: =IF(ISERROR(Calculs!J502),0,Calculs!J502) -> 90 | H80: 80 | I80: 1 | K80: D
B81: =IF(ISERROR(Calculs!I503),0,Calculs!I503) -> Gestion du thermostat ballon | C81: =IF(ISERROR(Calculs!J503),0,Calculs!J503) -> Chauffage de nuit | H81: 81 | I81: =IF(B81=0,0,1) -> 1 | K81: D
B82: =IF(ISERROR(Calculs!I504),0,Calculs!I504) -> Base : prise en compte de l'hystérésis | C82: =IF(ISERROR(Calculs!J504),0,Calculs!J504) -> Valeurs déclarées | H82: 82 | I82: 1 | K82: =IF(C82="-","A",IF(C82="/","B",IF(B82=0,"C","D"))) -> D
B83: =IF(ISERROR(Calculs!I505),0,Calculs!I505) -> Base : hystérésis thermostat ballon (°C) | C83: =IF(ISERROR(Calculs!J505),0,Calculs!J505) -> 2 | H83: 83 | I83: 1 | K83: D
B84: =IF(ISERROR(Calculs!I506),0,Calculs!I506) -> Base : hauteur échangeur (%) | C84: =IF(ISERROR(Calculs!J506),0,Calculs!J506) -> 0 | H84: 84 | I84: 1 | K84: D
B85: =IF(ISERROR(Calculs!I507),0,Calculs!I507) -> Base : n° zone régulation | C85: =IF(ISERROR(Calculs!J507),0,Calculs!J507) -> Zone 1 | H85: 85 | I85: 1 | K85: D
B86: =IF(ISERROR(Calculs!I508),0,Calculs!I508) -> Appoint : gestion du thermostat ballon | C86: =IF(ISERROR(Calculs!J508),0,Calculs!J508) -> Chauffage de nuit | H86: 86 | I86: 1 | K86: D
B87: =IF(ISERROR(Calculs!I509),0,Calculs!I509) -> Appoint : prise en compte de l'hystérésis | C87: =IF(ISERROR(Calculs!J509),0,Calculs!J509) -> Valeurs déclarées | H87: 87 | I87: 1 | K87: D
B88: =IF(ISERROR(Calculs!I510),0,Calculs!I510) -> Appoint : hystérésis thermostat ballon (°C) | C88: =IF(ISERROR(Calculs!J510),0,Calculs!J510) -> 5 | H88: 88 | I88: 1 | K88: D
B89: =IF(ISERROR(Calculs!I511),0,Calculs!I511) -> Appoint : hauteur échangeur (%) | C89: =IF(ISERROR(Calculs!J511),0,Calculs!J511) -> 7.5 | H89: 89 | I89: 1 | K89: D
B90: =IF(ISERROR(Calculs!I512),0,Calculs!I512) -> Appoint : n° de zone élément chauffant | C90: =IF(ISERROR(Calculs!J512),0,Calculs!J512) -> Zone 1 | H90: 90 | I90: 1 | K90: D
B91: =IF(ISERROR(Calculs!I513),0,Calculs!I513) -> Appoint : n° de zone régulation | C91: =IF(ISERROR(Calculs!J513),0,Calculs!J513) -> Zone 3 | H91: 91 | I91: 1 | K91: D
B92: =IF(ISERROR(Calculs!I514),0,Calculs!I514) -> Appoint : fraction du ballon chauffée par l'appoint | C92: =IF(ISERROR(Calculs!J514),0,Calculs!J514) -> Valeur par défaut | H92: 92 | I92: 1 | K92: D
B93: =IF(ISERROR(Calculs!I515),0,Calculs!I515) -> Titre V avec appoint optimisé | C93: =IF(ISERROR(Calculs!J515),0,Calculs!J515) -> Sans Titre V | H93: 93 | I93: 1 | K93: D
B94: =IF(ISERROR(Calculs!I516),0,Calculs!I516) -> Arborescence génération | C94: =IF(ISERROR(Calculs!J516),0,Calculs!J516) -> - | H94: 94 | I94: 1 | K94: A
B95: =IF(ISERROR(Calculs!I517),0,Calculs!I517) ->  | C95: =IF(ISERROR(Calculs!J517),0,Calculs!J517) -> Génération | H95: 95 | I95: 1 | K95: D
B96: =IF(ISERROR(Calculs!I518),0,Calculs!I518) ->  | C96: =IF(ISERROR(Calculs!J518),0,Calculs!J518) -> [____ Génération | H96: 96 | I96: 1 | K96: D
B97: =IF(ISERROR(Calculs!I519),0,Calculs!I519) ->  | C97: =IF(ISERROR(Calculs!J519),0,Calculs!J519) -> [____ Composant : Kit GeniaSet Split | H97: 97 | I97: 1 | K97: D
B98: =IF(ISERROR(Calculs!I520),0,Calculs!I520) -> Génération | C98: =IF(ISERROR(Calculs!J520),0,Calculs!J520) -> - | H98: 98 | I98: 1 | K98: A
B99: =IF(ISERROR(Calculs!I521),0,Calculs!I521) -> Appellation | C99: =IF(ISERROR(Calculs!J521),0,Calculs!J521) -> (libre) | H99: 99 | I99: 1 | K99: D
B100: =IF(ISERROR(Calculs!I522),0,Calculs!I522) -> Mode de fonctionnement | C100: =IF(ISERROR(Calculs!J522),0,Calculs!J522) -> Générateurs en cascade | H100: 100 | I100: 1 | K100: D
B101: =IF(ISERROR(Calculs!I523),0,Calculs!I523) -> Raccordement générateurs entre eux | C101: =IF(ISERROR(Calculs!J523),0,Calculs!J523) -> Permanent | H101: 101 | I101: 1 | K101: D
B102: =IF(ISERROR(Calculs!I524),0,Calculs!I524) -> Raccordement production | C102: =IF(ISERROR(Calculs!J524),0,Calculs!J524) -> Avec possibilité d'isolement | H102: 102 | I102: 1 | K102: D
B103: =IF(ISERROR(Calculs!I525),0,Calculs!I525) -> Emplacement production | C103: =IF(ISERROR(Calculs!J525),0,Calculs!J525) -> (en fonction du projet) | H103: 103 | I103: 1 | K103: D
B104: =IF(ISERROR(Calculs!I526),0,Calculs!I526) -> Emplacement | C104: =IF(ISERROR(Calculs!J526),0,Calculs!J526) -> (choix d'un bâtiment) | H104: 104 | I104: 1 | K104: D
B105: =IF(ISERROR(Calculs!I527),0,Calculs!I527) -> Distribution intergroupes | C105: =IF(ISERROR(Calculs!J527),0,Calculs!J527) -> Distributions hydrauliques individuelles | H105: 105 | I105: 1 | K105: D
B106: =IF(ISERROR(Calculs!I528),0,Calculs!I528) -> Gestion de température en chauffage | C106: =IF(ISERROR(Calculs!J528),0,Calculs!J528) -> Température moyenne des réseaux de distribution | H106: 106 | I106: 1 | K106: D
B107: =IF(ISERROR(Calculs!I529),0,Calculs!I529) -> Gestion température en refroidissement | C107: =IF(ISERROR(Calculs!J529),0,Calculs!J529) -> Pas de fonction climatisation | H107: 107 | I107: 1 | K107: D
B108: =IF(ISERROR(Calculs!I530),0,Calculs!I530) -> Production ECS instantanée | C108: =IF(ISERROR(Calculs!J530),0,Calculs!J530) -> (en fonction du projet) | H108: 108 | I108: 1 | K108: D
B109: =IF(ISERROR(Calculs!I531),0,Calculs!I531) -> Production de fonctionnement ECS instantanée (°C) | C109: =IF(ISERROR(Calculs!J531),0,Calculs!J531) -> (en fonction du projet) | H109: 109 | I109: 1 | K109: D
B110: =IF(ISERROR(Calculs!I532),0,Calculs!I532) -> Rendement simplifié en chauffant (STD) en % | C110: =IF(ISERROR(Calculs!J532),0,Calculs!J532) -> (en fonction du projet) | H110: 110 | I110: 1 | K110: D
B111: =IF(ISERROR(Calculs!I533),0,Calculs!I533) -> Composant : Générateur PAC ou CETI | C111: =IF(ISERROR(Calculs!J533),0,Calculs!J533) -> - | H111: 111 | I111: 1 | K111: A
B112: =IF(ISERROR(Calculs!I534),0,Calculs!I534) -> Appellation | C112: =IF(ISERROR(Calculs!J534),0,Calculs!J534) -> (libre) | H112: 112 | I112: 1 | K112: D
B113: =IF(ISERROR(Calculs!I535),0,Calculs!I535) -> Type de composant | C113: =IF(ISERROR(Calculs!J535),0,Calculs!J535) -> Générateur catalogué | H113: 113 | I113: 1 | K113: D
B114: =IF(ISERROR(Calculs!I536),0,Calculs!I536) -> Lien catalogue | C114: =IF(ISERROR(Calculs!J536),0,Calculs!J536) -> Kit GeniaSet Split 5 | H114: 114 | I114: 1 | K114: D
B115: =IF(ISERROR(Calculs!I537),0,Calculs!I537) -> Nombre identiques | C115: =IF(ISERROR(Calculs!J537),0,Calculs!J537) -> 1 | H115: 115 | I115: 1 | K115: D
B116: =IF(ISERROR(Calculs!I538),0,Calculs!I538) -> Indice de priorité | C116: =IF(ISERROR(Calculs!J538),0,Calculs!J538) -> 1 | H116: 116 | I116: 1 | K116: D
B117: =IF(ISERROR(Calculs!I539),0,Calculs!I539) -> Source amont du générateur | C117: =IF(ISERROR(Calculs!J539),0,Calculs!J539) -> Air extérieur | H117: 117 | I117: 1 | K117: D
B118: =IF(ISERROR(Calculs!I540),0,Calculs!I540) -> Puissances ventilateur sur air gainées | C118: =IF(ISERROR(Calculs!J540),0,Calculs!J540) -> 0 | H118: 118 | I118: 1 | K118: D
B119: =IF(ISERROR(Calculs!I541),0,Calculs!I541) -> Appoint électrique PAC chauffage | C119: =IF(ISERROR(Calculs!J541),0,Calculs!J541) -> Présent | H119: 119 | I119: 1 | K119: D
B120: =IF(ISERROR(Calculs!I542),0,Calculs!I542) -> Puissance résistance associée (kW) | C120: =IF(ISERROR(Calculs!J542),0,Calculs!J542) -> 0,9; 1,1; 1,7; 2; 2,8; 3,7; 4,5 ou 5,4 (en fonction du projet) | H120: 120 | I120: 1 | K120: D
B121: =IF(ISERROR(Calculs!I543),0,Calculs!I543) -> Arborescence Bâtiments | C121: =IF(ISERROR(Calculs!J543),0,Calculs!J543) -> - | H121: 121 | I121: 1 | K121: A
B122: =IF(ISERROR(Calculs!I544),0,Calculs!I544) ->  | C122: =IF(ISERROR(Calculs!J544),0,Calculs!J544) -> BÂTIMENTS | H122: 122 | I122: 1 | K122: D
B123: =IF(ISERROR(Calculs!I545),0,Calculs!I545) ->  | C123: =IF(ISERROR(Calculs!J545),0,Calculs!J545) -> [____ Maison | H123: 123 | I123: 1 | K123: D
B124: =IF(ISERROR(Calculs!I546),0,Calculs!I546) ->  | C124: =IF(ISERROR(Calculs!J546),0,Calculs!J546) -> [____ Groupe | H124: 124 | I124: 1 | K124: D
B125: =IF(ISERROR(Calculs!I547),0,Calculs!I547) ->  | C125: =IF(ISERROR(Calculs!J547),0,Calculs!J547) -> [____ Emission | H125: 125 | I125: 1 | K125: D
B126: =IF(ISERROR(Calculs!I548),0,Calculs!I548) -> Groupe | C126: =IF(ISERROR(Calculs!J548),0,Calculs!J548) -> - | H126: 126 | I126: 1 | K126: A
B127: =IF(ISERROR(Calculs!I549),0,Calculs!I549) -> Programmateur chauffage | C127: =IF(ISERROR(Calculs!J549),0,Calculs!J549) -> Heure fixe avec contrôle d'ambiance | H127: 127 | I127: 1 | K127: D
B128: =IF(ISERROR(Calculs!I550),0,Calculs!I550) -> Emission | C128: =IF(ISERROR(Calculs!J550),0,Calculs!J550) -> - | H128: 128 | I128: 1 | K128: A
B129: =IF(ISERROR(Calculs!I551),0,Calculs!I551) -> Gestion système de chauffage | C129: =IF(ISERROR(Calculs!J551),0,Calculs!J551) -> Modulation fonction temp.extérieure | H129: 129 | I129: 1 | K129: D
B130: =IF(ISERROR(Calculs!I552),0,Calculs!I552) -> Mode de régulation de fonctionnement | C130: =IF(ISERROR(Calculs!J552),0,Calculs!J552) -> Régulation à débit variable | H130: 130 | I130: 1 | K130: D
B131: =IF(ISERROR(Calculs!I553),0,Calculs!I553) -> Température de départ en chauffage (°C) | C131: =IF(ISERROR(Calculs!J553),0,Calculs!J553) -> (en fonction des émetteurs) | H131: 131 | I131: 1 | K131: D
B132: =IF(ISERROR(Calculs!I554),0,Calculs!I554) -> Chute de température en chauffage (K) | C132: =IF(ISERROR(Calculs!J554),0,Calculs!J554) -> (en fonction des émetteurs) | H132: 132 | I132: 1 | K132: D
B133: =IF(ISERROR(Calculs!I555),0,Calculs!I555) -> Débit volumique nominal en chauffage (m3/h) | C133: =IF(ISERROR(Calculs!J555),0,Calculs!J555) -> (en fonction des émetteurs) | H133: 133 | I133: 1 | K133: D
B134: =IF(ISERROR(Calculs!I556),0,Calculs!I556) -> Débit volumique résiduel en chauffage (m3/h) | C134: =IF(ISERROR(Calculs!J556),0,Calculs!J556) -> 0 | H134: 134 | I134: 1 | K134: D
B135: =IF(ISERROR(Calculs!I557),0,Calculs!I557) -> Mode régulation du circulateur | C135: =IF(ISERROR(Calculs!J557),0,Calculs!J557) -> Vitesse variable pression variable | H135: 135 | I135: 1 | K135: D
B136: =IF(ISERROR(Calculs!I558),0,Calculs!I558) -> Puissance circulateur en chauffage (W) | C136: =IF(ISERROR(Calculs!J558),0,Calculs!J558) -> 31 | H136: 136 | I136: 1 | K136: D
B137: =IF(ISERROR(Calculs!I559),0,Calculs!I559) -> Option en fonction du projet accessoire Moduzone | C137: =IF(ISERROR(Calculs!J559),0,Calculs!J559) -> - | H137: 137 | I137: 1 | K137: A
B138: =IF(ISERROR(Calculs!I560),0,Calculs!I560) -> Emission | C138: =IF(ISERROR(Calculs!J560),0,Calculs!J560) -> / | H138: 138 | I138: 1 | K138: B
B139: =IF(ISERROR(Calculs!I561),0,Calculs!I561) -> Puissance circulateur en chauffage (W) à ajouter | C139: =IF(ISERROR(Calculs!J561),0,Calculs!J561) -> 24 | H139: 139 | I139: 1 | K139: D
B140: =IF(ISERROR(Calculs!I562),0,Calculs!I562) -> 0 | C140: =IF(ISERROR(Calculs!J562),0,Calculs!J562) -> 0 | H140: 140 | I140: 0 | K140: C
B141: =IF(ISERROR(Calculs!I563),0,Calculs!I563) -> 0 | C141: =IF(ISERROR(Calculs!J563),0,Calculs!J563) -> 0 | H141: 141 | I141: 0 | K141: C
B142: =IF(ISERROR(Calculs!I564),0,Calculs!I564) -> 0 | C142: =IF(ISERROR(Calculs!J564),0,Calculs!J564) -> 0 | H142: 142 | I142: 0 | K142: C
B143: =IF(ISERROR(Calculs!I565),0,Calculs!I565) -> 0 | C143: =IF(ISERROR(Calculs!J565),0,Calculs!J565) -> 0 | H143: 143 | I143: 0 | K143: C
B144: =IF(ISERROR(Calculs!I566),0,Calculs!I566) -> 0 | C144: =IF(ISERROR(Calculs!J566),0,Calculs!J566) -> 0 | H144: 144 | I144: 0 | K144: C
B145: =IF(ISERROR(Calculs!I567),0,Calculs!I567) -> 0 | C145: =IF(ISERROR(Calculs!J567),0,Calculs!J567) -> 0 | H145: 145 | I145: =IF(B145=0,0,1) -> 0 | K145: C
B146: =IF(ISERROR(Calculs!I568),0,Calculs!I568) -> 0 | C146: =IF(ISERROR(Calculs!J568),0,Calculs!J568) -> 0 | H146: 146 | I146: 0 | K146: =IF(C146="-","A",IF(C146="/","B",IF(B146=0,"C","D"))) -> C
B147: =IF(ISERROR(Calculs!I569),0,Calculs!I569) -> 0 | C147: =IF(ISERROR(Calculs!J569),0,Calculs!J569) -> 0 | H147: 147 | I147: 0 | K147: C
B148: =IF(ISERROR(Calculs!I570),0,Calculs!I570) -> 0 | C148: =IF(ISERROR(Calculs!J570),0,Calculs!J570) -> 0 | H148: 148 | I148: 0 | K148: C
B149: =IF(ISERROR(Calculs!I571),0,Calculs!I571) -> 0 | C149: =IF(ISERROR(Calculs!J571),0,Calculs!J571) -> 0 | H149: 149 | I149: 0 | K149: C
B150: =IF(ISERROR(Calculs!I572),0,Calculs!I572) -> 0 | C150: =IF(ISERROR(Calculs!J572),0,Calculs!J572) -> 0 | H150: 150 | I150: 0 | K150: C
B151: =IF(ISERROR(Calculs!I573),0,Calculs!I573) -> 0 | C151: =IF(ISERROR(Calculs!J573),0,Calculs!J573) -> 0 | H151: 151 | I151: 0 | K151: C
B152: =IF(ISERROR(Calculs!I574),0,Calculs!I574) -> 0 | C152: =IF(ISERROR(Calculs!J574),0,Calculs!J574) -> 0 | H152: 152 | I152: 0 | K152: C
B153: =IF(ISERROR(Calculs!I575),0,Calculs!I575) -> 0 | C153: =IF(ISERROR(Calculs!J575),0,Calculs!J575) -> 0 | H153: 153 | I153: 0 | K153: C
B154: =IF(ISERROR(Calculs!I576),0,Calculs!I576) -> 0 | C154: =IF(ISERROR(Calculs!J576),0,Calculs!J576) -> 0 | H154: 154 | I154: 0 | K154: C
B155: =IF(ISERROR(Calculs!I577),0,Calculs!I577) -> 0 | C155: =IF(ISERROR(Calculs!J577),0,Calculs!J577) -> 0 | H155: 155 | I155: 0 | K155: C
B156: =IF(ISERROR(Calculs!I578),0,Calculs!I578) -> 0 | C156: =IF(ISERROR(Calculs!J578),0,Calculs!J578) -> 0 | H156: 156 | I156: 0 | K156: C
B157: =IF(ISERROR(Calculs!I579),0,Calculs!I579) -> 0 | C157: =IF(ISERROR(Calculs!J579),0,Calculs!J579) -> 0 | H157: 157 | I157: 0 | K157: C
B158: =IF(ISERROR(Calculs!I580),0,Calculs!I580) -> 0 | C158: =IF(ISERROR(Calculs!J580),0,Calculs!J580) -> 0 | H158: 158 | I158: 0 | K158: C
B159: =IF(ISERROR(Calculs!I581),0,Calculs!I581) -> 0 | C159: =IF(ISERROR(Calculs!J581),0,Calculs!J581) -> 0 | H159: 159 | I159: 0 | K159: C
B160: =IF(ISERROR(Calculs!I582),0,Calculs!I582) -> 0 | C160: =IF(ISERROR(Calculs!J582),0,Calculs!J582) -> 0 | H160: 160 | I160: 0 | K160: C
B161: =IF(ISERROR(Calculs!I583),0,Calculs!I583) -> 0 | C161: =IF(ISERROR(Calculs!J583),0,Calculs!J583) -> 0 | H161: 161 | I161: 0 | K161: C
B162: =IF(ISERROR(Calculs!I584),0,Calculs!I584) -> 0 | C162: =IF(ISERROR(Calculs!J584),0,Calculs!J584) -> 0 | H162: 162 | I162: 0 | K162: C
B163: =IF(ISERROR(Calculs!I585),0,Calculs!I585) -> 0 | C163: =IF(ISERROR(Calculs!J585),0,Calculs!J585) -> 0 | H163: 163 | I163: 0 | K163: C
B164: =IF(ISERROR(Calculs!I586),0,Calculs!I586) -> 0 | C164: =IF(ISERROR(Calculs!J586),0,Calculs!J586) -> 0 | H164: 164 | I164: 0 | K164: C
B165: =IF(ISERROR(Calculs!I587),0,Calculs!I587) -> 0 | C165: =IF(ISERROR(Calculs!J587),0,Calculs!J587) -> 0 | H165: 165 | I165: 0 | K165: C
B166: =IF(ISERROR(Calculs!I588),0,Calculs!I588) -> 0 | C166: =IF(ISERROR(Calculs!J588),0,Calculs!J588) -> 0 | H166: 166 | I166: 0 | K166: C
B167: =IF(ISERROR(Calculs!I589),0,Calculs!I589) -> 0 | C167: =IF(ISERROR(Calculs!J589),0,Calculs!J589) -> 0 | H167: 167 | I167: 0 | K167: C
B168: =IF(ISERROR(Calculs!I590),0,Calculs!I590) -> 0 | C168: =IF(ISERROR(Calculs!J590),0,Calculs!J590) -> 0 | H168: 168 | I168: 0 | K168: C
B169: =IF(ISERROR(Calculs!I591),0,Calculs!I591) -> 0 | C169: =IF(ISERROR(Calculs!J591),0,Calculs!J591) -> 0 | H169: 169 | I169: 0 | K169: C
B170: =IF(ISERROR(Calculs!I592),0,Calculs!I592) -> 0 | C170: =IF(ISERROR(Calculs!J592),0,Calculs!J592) -> 0 | H170: 170 | I170: 0 | K170: C
B171: =IF(ISERROR(Calculs!I593),0,Calculs!I593) -> 0 | C171: =IF(ISERROR(Calculs!J593),0,Calculs!J593) -> 0 | H171: 171 | I171: 0 | K171: C
B172: =IF(ISERROR(Calculs!I594),0,Calculs!I594) -> 0 | C172: =IF(ISERROR(Calculs!J594),0,Calculs!J594) -> 0 | H172: 172 | I172: 0 | K172: C
B173: =IF(ISERROR(Calculs!I595),0,Calculs!I595) -> 0 | C173: =IF(ISERROR(Calculs!J595),0,Calculs!J595) -> 0 | H173: 173 | I173: 0 | K173: C
B174: =IF(ISERROR(Calculs!I596),0,Calculs!I596) -> 0 | C174: =IF(ISERROR(Calculs!J596),0,Calculs!J596) -> 0 | H174: 174 | I174: 0 | K174: C
B175: =IF(ISERROR(Calculs!I597),0,Calculs!I597) -> 0 | C175: =IF(ISERROR(Calculs!J597),0,Calculs!J597) -> 0 | H175: 175 | I175: 0 | K175: C
B176: =IF(ISERROR(Calculs!I598),0,Calculs!I598) -> 0 | C176: =IF(ISERROR(Calculs!J598),0,Calculs!J598) -> 0 | H176: 176 | I176: 0 | K176: C
B177: =IF(ISERROR(Calculs!I599),0,Calculs!I599) -> 0 | C177: =IF(ISERROR(Calculs!J599),0,Calculs!J599) -> 0 | H177: 177 | I177: 0 | K177: C
B178: =IF(ISERROR(Calculs!I600),0,Calculs!I600) -> 0 | C178: =IF(ISERROR(Calculs!J600),0,Calculs!J600) -> 0 | H178: 178 | I178: 0 | K178: C
B179: =IF(ISERROR(Calculs!I601),0,Calculs!I601) -> 0 | C179: =IF(ISERROR(Calculs!J601),0,Calculs!J601) -> 0 | H179: 179 | I179: 0 | K179: C
B180: =IF(ISERROR(Calculs!I602),0,Calculs!I602) -> 0 | C180: =IF(ISERROR(Calculs!J602),0,Calculs!J602) -> 0 | H180: 180 | I180: 0 | K180: C
B181: =IF(ISERROR(Calculs!I603),0,Calculs!I603) -> 0 | C181: =IF(ISERROR(Calculs!J603),0,Calculs!J603) -> 0 | H181: 181 | I181: 0 | K181: C
B182: =IF(ISERROR(Calculs!I604),0,Calculs!I604) -> 0 | C182: =IF(ISERROR(Calculs!J604),0,Calculs!J604) -> 0 | H182: 182 | I182: 0 | K182: C
B183: =IF(ISERROR(Calculs!I605),0,Calculs!I605) -> 0 | C183: =IF(ISERROR(Calculs!J605),0,Calculs!J605) -> 0 | H183: 183 | I183: 0 | K183: C
B184: =IF(ISERROR(Calculs!I606),0,Calculs!I606) -> 0 | C184: =IF(ISERROR(Calculs!J606),0,Calculs!J606) -> 0 | H184: 184 | I184: 0 | K184: C
B185: =IF(ISERROR(Calculs!I607),0,Calculs!I607) -> 0 | C185: =IF(ISERROR(Calculs!J607),0,Calculs!J607) -> 0 | H185: 185 | I185: 0 | K185: C
B186: =IF(ISERROR(Calculs!I608),0,Calculs!I608) -> 0 | C186: =IF(ISERROR(Calculs!J608),0,Calculs!J608) -> 0 | H186: 186 | I186: 0 | K186: C
B187: =IF(ISERROR(Calculs!I609),0,Calculs!I609) -> 0 | C187: =IF(ISERROR(Calculs!J609),0,Calculs!J609) -> 0 | H187: 187 | I187: 0 | K187: C
B188: =IF(ISERROR(Calculs!I610),0,Calculs!I610) -> 0 | C188: =IF(ISERROR(Calculs!J610),0,Calculs!J610) -> 0 | H188: 188 | I188: 0 | K188: C

Sheet Calculs (hidden)
B2: SELECTIONS 1 (données d'entrée)
B3: Logiciel RT | C3: =Interface!J17 -> Clima-Win (BBS Slama)
B4: Marque | C4: =Interface!J18 -> Saunier Duval | D4: =MATCH(C4,LISTE_MARQUES,0) -> 1
B5: Famille produits | C5: =Interface!J19 -> PAC air/eau
B6: Gamme | C6: =IF($C$5="Systèmes","Systèmes",VLOOKUP(1,'Gestion menus inputs'!$J$14:$L$49,3,FALSE)) -> Kit GeniaSet Split | I6: Recherche la gamme en foction de la famille=SI($C$5="Systèmes";"Systèmes";RECHERCHEV(1;'Gestion menus inputs'!$H$14:$K$27;3;FAUX))
B7: Modèle | C7: =IF($C$5="Systèmes",'Gestion menus inputs'!C35,VLOOKUP(1,'Gestion menus inputs'!$K$14:$L$50,2,FALSE)) -> Kit GeniaSet Split 5 | I7: Recherche le modèle en foction de la famille =SI($C$5="Systèmes";'Gestion menus inputs'!$K$13;RECHERCHEV(1;'Gestion menus inputs'!$H$14:$K$27;4;FAUX))
G9: LISTE_FEUILLES
B10: Affichage du logo | G10: Interface
B11: Marque : Fiche RE2020 | C11: =IF($C$4="Vaillant",1,0) -> 0 | D11: 0=SAUNIER DUVAL 1=VAILLANT | G11: Fiche
G12: To do
G13: Calculs
B14: Détermination de l'onglet de recherche | G14: Gestion menus inputs
G15: Gestion inputs non cds
B16: =RECHERCHEV(C3&C5;D15:E26;2;FAUX) | E16: =VLOOKUP(C3&C5,D19:E48,2,FALSE) -> CW PAC | G16: Logo
G17: Gabarit BDD
B18: Logiciel | C18: Famille de produit | D18: Concaténation | E18: Rechercher dans l’onglet | G18: Table CW-P-F
B19: Clima-Win (BBS Slama) | C19: =IF($D$4=1,'Gestion menus inputs'!B63,'Gestion menus inputs'!C63) -> Ballons ECS ou solaires | D19: =B19&C19 -> Clima-Win (BBS Slama)Ballons ECS ou solaires | E19: CW Ballons | G19: =E19 -> CW Ballons | I19: Dernière colonne de l'onglet CW le plus long (chaudières)
B20: Clima-Win (BBS Slama) | C20: =IF($D$4=1,'Gestion menus inputs'!B64,'Gestion menus inputs'!C64) -> Capteurs solaires | D20: =B20&C20 -> Clima-Win (BBS Slama)Capteurs solaires | E20: CW Solaire | G20: =E20 -> CW Solaire | I20: ZZ
B21: Clima-Win (BBS Slama) | C21: =IF($D$4=1,'Gestion menus inputs'!B65,'Gestion menus inputs'!C65) -> Chaudières | D21: Clima-Win (BBS Slama)Chaudières | E21: CW Chaudières | G21: =E21 -> CW Chaudières
B22: Clima-Win (BBS Slama) | C22: =IF($D$4=1,'Gestion menus inputs'!B66,'Gestion menus inputs'!C66) -> PAC air/eau | D22: Clima-Win (BBS Slama)PAC air/eau | E22: CW PAC | G22: =E22 -> CW PAC
B23: Clima-Win (BBS Slama) | C23: =IF($D$4=1,'Gestion menus inputs'!B67,'Gestion menus inputs'!C67) -> Chauffe-eau thermodynamique | D23: Clima-Win (BBS Slama)Chauffe-eau thermodynamique | E23: CW PAC | G23: =E23 -> CW PAC
B24: Clima-Win (BBS Slama) | C24: =IF($D$4=1,'Gestion menus inputs'!B68,'Gestion menus inputs'!C68) -> Micro PV | D24: =B24&C24 -> Clima-Win (BBS Slama)Micro PV | E24: =IF(D4=1,"CW PV","CW PAC") -> CW PV | G24: CW PV | I24: valeur évènementielle
B25: Clima-Win (BBS Slama) | C25: =IF($D$4=1,'Gestion menus inputs'!B69,'Gestion menus inputs'!C69) -> Systèmes | D25: Clima-Win (BBS Slama)Systèmes | E25: CW systemes | G25: CW systemes
B26: Clima-Win (BBS Slama) | C26: =IF($D$4=1,'Gestion menus inputs'!G69,'Gestion menus inputs'!H69) -> Accessoires | D26: =B26&C26 -> Clima-Win (BBS Slama)Accessoires | E26: CW Accessoires | G26: =E26 -> CW Accessoires | I26: valeur évènementielle
B27: Clima-Win (BBS Slama) | C27: =IF($D$4=1,'Gestion menus inputs'!G70,'Gestion menus inputs'!H70) -> 0 | D27: =B27&C27 -> Clima-Win (BBS Slama)0 | E27: CW Onduleurs | G27: =E27 -> CW Onduleurs
B28: Clima-Win (BBS Slama) | C28: =IF($D$4=1,'Gestion menus inputs'!G71,'Gestion menus inputs'!H71) -> 0 | D28: =B28&C28 -> Clima-Win (BBS Slama)0 | E28: CW PV | G28: =E28 -> CW PV
B29: Perrenoud | C29: =IF($D$4=1,'Gestion menus inputs'!B63,'Gestion menus inputs'!C63) -> Ballons ECS ou solaires | D29: PerrenoudBallons ECS ou solaires | E29: P Ballons | G29: P Ballons
B30: Perrenoud | C30: =IF($D$4=1,'Gestion menus inputs'!B64,'Gestion menus inputs'!C64) -> Capteurs solaires | D30: PerrenoudCapteurs solaires | E30: P Solaire | G30: P Solaire
B31: Perrenoud | C31: =IF($D$4=1,'Gestion menus inputs'!B65,'Gestion menus inputs'!C65) -> Chaudières | D31: PerrenoudChaudières | E31: P Chaudières | G31: P Chaudières
B32: Perrenoud | C32: =IF($D$4=1,'Gestion menus inputs'!B66,'Gestion menus inputs'!C66) -> PAC air/eau | D32: PerrenoudPAC air/eau | E32: P PAC | G32: P PAC
B33: Perrenoud | C33: =IF($D$4=1,'Gestion menus inputs'!B67,'Gestion menus inputs'!C67) -> Chauffe-eau thermodynamique | D33: PerrenoudChauffe-eau thermodynamique | E33: P PAC | G33: P PAC
B34: Perrenoud | C34: =IF($D$4=1,'Gestion menus inputs'!B68,'Gestion menus inputs'!C68) -> Micro PV | D34: =B34&C34 -> PerrenoudMicro PV | E34: =IF(D4=1,"P PV","P PAC") -> P PV | G34: P PV
B35: Perrenoud | C35: =IF($D$4=1,'Gestion menus inputs'!B69,'Gestion menus inputs'!C69) -> Systèmes | D35: =B35&C35 -> PerrenoudSystèmes | E35: P systemes | G35: P systemes
B36: Perrenoud | C36: =IF($D$4=1,'Gestion menus inputs'!G69,'Gestion menus inputs'!H69) -> Accessoires | D36: =B36&C36 -> PerrenoudAccessoires | E36: P Accessoires | G36: =E36 -> P Accessoires
B37: Perrenoud | C37: =IF($D$4=1,'Gestion menus inputs'!G70,'Gestion menus inputs'!H70) -> 0 | D37: =B37&C37 -> Perrenoud0 | E37: P Onduleurs | G37: =E37 -> P Onduleurs
B38: Perrenoud | C38: =IF($D$4=1,'Gestion menus inputs'!G71,'Gestion menus inputs'!H71) -> 0 | D38: =B38&C38 -> Perrenoud0 | E38: P PV | G38: =E38 -> P PV
B39: Visual TTH (Fauconnet) | C39: =IF($D$4=1,'Gestion menus inputs'!B63,'Gestion menus inputs'!C63) -> Ballons ECS ou solaires | D39: Visual TTH (Fauconnet)Ballons ECS ou solaires | E39: V TTH Ballons | G39: V TTH Ballons
B40: Visual TTH (Fauconnet) | C40: =IF($D$4=1,'Gestion menus inputs'!B64,'Gestion menus inputs'!C64) -> Capteurs solaires | D40: Visual TTH (Fauconnet)Capteurs solaires | E40: V TTH Solaire | G40: =E40 -> V TTH Solaire
B41: Visual TTH (Fauconnet) | C41: =IF($D$4=1,'Gestion menus inputs'!B65,'Gestion menus inputs'!C65) -> Chaudières | D41: Visual TTH (Fauconnet)Chaudières | E41: V TTH Chaudières | G41: V TTH Chaudières
B42: Visual TTH (Fauconnet) | C42: =IF($D$4=1,'Gestion menus inputs'!B66,'Gestion menus inputs'!C66) -> PAC air/eau | D42: Visual TTH (Fauconnet)PAC air/eau | E42: V TTH PAC | G42: V TTH PAC
B43: Visual TTH (Fauconnet) | C43: =IF($D$4=1,'Gestion menus inputs'!B67,'Gestion menus inputs'!C67) -> Chauffe-eau thermodynamique | D43: Visual TTH (Fauconnet)Chauffe-eau thermodynamique | E43: V TTH PAC | G43: V TTH PAC
B44: Visual TTH (Fauconnet) | C44: =IF($D$4=1,'Gestion menus inputs'!B68,'Gestion menus inputs'!C68) -> Micro PV | D44: Visual TTH (Fauconnet)Micro PV | E44: =IF(D4=1,"V TTH PV","V TTH PAC") -> V TTH PV | G44: V TTH PV
B45: Visual TTH (Fauconnet) | C45: =IF($D$4=1,'Gestion menus inputs'!#REF!,'Gestion menus inputs'!#REF!) ->  | D45: =B45&C45 ->  | E45: V TTH systemes | G45: =E45 -> V TTH systemes
B46: Visual TTH (Fauconnet) | C46: =IF($D$4=1,'Gestion menus inputs'!B69,'Gestion menus inputs'!C69) -> Systèmes | D46: =B46&C46 -> Visual TTH (Fauconnet)Systèmes | E46: V TTH Accessoires | G46: =E46 -> V TTH Accessoires
B47: Visual TTH (Fauconnet) | C47: =IF($D$4=1,'Gestion menus inputs'!B71,'Gestion menus inputs'!C70) -> 0 | D47: =B47&C47 -> Visual TTH (Fauconnet)0 | E47: V TTH Onduleurs | G47: =E47 -> V TTH Onduleurs
B48: Visual TTH (Fauconnet) | C48: =IF($D$4=1,'Gestion menus inputs'!B72,'Gestion menus inputs'!C71) -> 0 | D48: =B48&C48 -> Visual TTH (Fauconnet)0 | E48: V TTH PV | G48: =E48 -> V TTH PV
B51: Note : il faudra que le menu déroulant vienne pointer vers ce tableau pour éviter toute divergence de saisie.
I52: Ligne à laquelle rechercher le descriptif
B54: Ligne à laquelle rechercher le libellé "Champs RT 2012" | I54: ="'"&E17&"'!A6"&DerCol&"6"
B56: ="'"&E16&"'!A6:"&DerCol&"6" | E56: ="'"&E16&"'!A6:"&DerCol&"6" -> 'CW PAC'!A6:ZZ6 | I56: ="'"&E16&"'!A5"&DerCol&"5" -> 'CW PAC'!A5ZZ5
E57: (modifier ici la plage de recherche)
B59: Recherche du numéro de la colonne correspondant à la liste des champs RT 2012 | I59: Coordonnées du descriptif
I60: =ADRESSE(5;E53;4;VRAI;E17)
B61: =EQUIV("Champs RT 2012";INDIRECT(E33);0) | E61: =MATCH("Champs RE 2020",INDIRECT(E56),0) -> 6 | I61: =ADDRESS(5,E71,4,TRUE,E16) -> 'CW PAC'!BX5
B64: Ligne à laquelle rechercher le nom du modèle souhaité | I64: Recherche du descriptif
I65: =INDIRECT(I4²3)
B66: =SI(C4="Saunier Duval";"'"&E12&"'!A3"&DerCol&"3";"'"&E12&"'!A4"&DerCol&"4") | E66: =IF(C4="Saunier Duval","'"&E16&"'!A3:"&DerCol&"3","'"&E16&"'!A4:"&DerCol&"4") -> 'CW PAC'!A3:ZZ3 | I66: =INDIRECT(I61) -> Pompe à chaleur air / eau split Inverter Puissance 4,4 kW, COP 4,7 _ Certifiée NF PAC double service _ Classe d'efficacité énergétique : A+++/A++ (départ 35 °C/55 °C) _ Classe d’efficacité énergétique ECS : A _ Profil de puisage : L
B69: Recherche du numéro de la colonne correspondant à la gamme souhaitée
B71: =EQUIV(C7;INDIRECT(E48);0) | E71: =MATCH(C7,INDIRECT(E66),0) -> 76
B74: Recherche pour les systémes où est le titre concatener à afficher | I74: Recherche pour les systémes où est le titre concatener à afficher
A76: 607 | B76: =ADDRESS(A76,$E$61,4,TRUE,$E$16) -> 'CW PAC'!F607 | C76: =ADDRESS(A76,$E$71,4,TRUE,$E$16) -> 'CW PAC'!BX607 | F76: 1 | G76: =IF(H76=0,0,1) -> 1 | H76: =IF(J76="NA",0,1) -> 1 | I76: =INDIRECT(B76) -> 0 | J76: =INDIRECT(C76) -> 0
B82: Références des champs RT 2012 et des valeurs correspondantes à afficher | I82: Recherche dans la BDD produits et recopie des valeurs correspondantes
B84: =ADRESSE(A55;$E$38;4;VRAI;$E$12) | D84: =ADRESSE(A55;$E$48;4;VRAI;$E$12) | G84: (rang ligne) | H84: (ligne NA = 0) | I84: =SI(INDIRECT(B58)=0;"";INDIRECT(B58)) | J84: =SI(INDIRECT(C58)=0;"";INDIRECT(C58))
A86: 6 | B86: =ADDRESS(A86,$E$61,4,TRUE,$E$16) -> 'CW PAC'!F6 | C86: =ADDRESS(A86,$E$71,4,TRUE,$E$16) -> 'CW PAC'!BX6 | F86: 1 | G86: =IF(H86=0,0,1) -> 1 | H86: =IF(J86="NA",0,1) -> 1 | I86: =INDIRECT(B86) -> Champs RE 2020 | J86: =INDIRECT(C86) -> Valeurs
A87: 8 | B87: 'CW PAC'!F8 | C87: 'CW PAC'!BX8 | F87: 2 | G87: =IF(H87=0,0,MAX($G$86:G86)+1) -> 2 | H87: 1 | I87: Générateur : PAC ou CETI | J87: -
A88: 9 | B88: 'CW PAC'!F9 | C88: 'CW PAC'!BX9 | F88: 3 | G88: =IF(H88=0,0,MAX($G$86:G87)+1) -> 3 | H88: 1 | I88: Référence | J88: (libre)
A89: 10 | B89: 'CW PAC'!F10 | C89: 'CW PAC'!BX10 | F89: 4 | G89: =IF(H89=0,0,MAX($G$86:G88)+1) -> 4 | H89: 1 | I89: Production de générateur | J89: Ch./ECS
A90: 11 | B90: 'CW PAC'!F11 | C90: 'CW PAC'!BX11 | F90: 5 | G90: =IF(H90=0,0,MAX($G$86:G89)+1) -> 5 | H90: 1 | I90: Type de générateur | J90: Système thermodynamique
A91: 12 | B91: 'CW PAC'!F12 | C91: 'CW PAC'!BX12 | F91: 6 | G91: =IF(H91=0,0,MAX($G$86:G90)+1) -> 6 | H91: 1 | I91: Référence Produit | J91: Kit GeniaSet Split 5
A92: 13 | B92: 'CW PAC'!F13 | C92: 'CW PAC'!BX13 | F92: 7 | G92: =IF(H92=0,0,MAX($G$86:G91)+1) -> 7 | H92: 1 | I92: Caractéristiques | J92: /
A93: 14 | B93: 'CW PAC'!F14 | C93: 'CW PAC'!BX14 | F93: 8 | G93: =IF(H93=0,0,MAX($G$86:G92)+1) -> 8 | H93: 1 | I93: Energie | J93: Electrique
A94: 15 | B94: 'CW PAC'!F15 | C94: 'CW PAC'!BX15 | F94: 9 | G94: =IF(H94=0,0,MAX($G$86:G93)+1) -> 9 | H94: 1 | I94: Système thermodynamique chauffage | J94: Pac air extérieur / eau
A95: 16 | B95: 'CW PAC'!F16 | C95: 'CW PAC'!BX16 | F95: 10 | G95: =IF(H95=0,0,MAX($G$86:G94)+1) -> 10 | H95: 1 | I95: Statut des données | J95: Valeurs certifiées ou mesurées
A96: 17 | B96: 'CW PAC'!F17 | C96: 'CW PAC'!BX17 | F96: 11 | G96: =IF(H96=0,0,MAX($G$86:G95)+1) -> 11 | H96: 1 | I96: Statut des données en ECS | J96: Valeurs certifiées ou mesurées
A97: 18 | B97: 'CW PAC'!F18 | C97: 'CW PAC'!BX18 | F97: 12 | G97: =IF(H97=0,0,MAX($G$86:G96)+1) -> 12 | H97: 1 | I97: Températures aval chauffage (°C) | J97: 32,5 °C, 42,5 °C, 51 °C
A98: 19 | B98: 'CW PAC'!F19 | C98: 'CW PAC'!BX19 | F98: 13 | G98: =IF(H98=0,0,MAX($G$86:G97)+1) -> 13 | H98: 1 | I98: Températures amont chauffage (°C) | J98: -7 °C , 2°C, 7 °C
A99: 20 | B99: 'CW PAC'!F20 | C99: 'CW PAC'!BX20 | F99: 14 | G99: =IF(H99=0,0,MAX($G$86:G98)+1) -> 14 | H99: 1 | I99: Températures aval ECS (°C) | J99: 45 °C
A100: 21 | B100: 'CW PAC'!F21 | C100: 'CW PAC'!BX21 | F100: 15 | G100: =IF(H100=0,0,MAX($G$86:G99)+1) -> 15 | H100: 1 | I100: Températures amont ECS (°C) | J100: 7 °C
A101: 22 | B101: 'CW PAC'!F22 | C101: 'CW PAC'!BX22 | F101: 16 | G101: =IF(H101=0,0,MAX($G$86:G100)+1) -> 16 | H101: 1 | I101: COP (saisie du tableau de valeurs) | J101: /
A102: 23 | B102: 'CW PAC'!F23 | C102: 'CW PAC'!BX23 | F102: 17 | G102: =IF(H102=0,0,MAX($G$86:G101)+1) -> 17 | H102: 1 | I102: Matrice des performances | J102: Température amont °C (source froide)
A103: 24 | B103: 'CW PAC'!F24 | C103: 'CW PAC'!BX24 | F103: 18 | G103: =IF(H103=0,0,MAX($G$86:G102)+1) -> 18 | H103: 1 | I103: Température aval °C (source chaude) | J103: -15 -7 2 7 20
A104: 25 | B104: 'CW PAC'!F25 | C104: 'CW PAC'!BX25 | F104: 19 | G104: =IF(H104=0,0,MAX($G$86:G103)+1) -> 0 | H104: 0 | I104: 23,5 °C | J104: NA
A105: 26 | B105: 'CW PAC'!F26 | C105: 'CW PAC'!BX26 | F105: 20 | G105: =IF(H105=0,0,MAX($G$86:G104)+1) -> 19 | H105: 1 | I105: 32,5 °C | J105: 2,67 3,67 4,68
A106: 27 | B106: 'CW PAC'!F27 | C106: 'CW PAC'!BX27 | F106: 21 | G106: =IF(H106=0,0,MAX($G$86:G105)+1) -> 20 | H106: 1 | I106: 42,5 °C | J106: 2,26 2,87 3,49
A107: 28 | B107: 'CW PAC'!F28 | C107: 'CW PAC'!BX28 | F107: 22 | G107: =IF(H107=0,0,MAX($G$86:G106)+1) -> 21 | H107: 1 | I107: 51 °C | J107: 1,95 2,3 2,67
A108: 29 | B108: 'CW PAC'!F29 | C108: 'CW PAC'!BX29 | F108: 23 | G108: =IF(H108=0,0,MAX($G$86:G107)+1) -> 0 | H108: 0 | I108: 60 °C | J108: NA
A109: 30 | B109: 'CW PAC'!F30 | C109: 'CW PAC'!BX30 | F109: 24 | G109: =IF(H109=0,0,MAX($G$86:G108)+1) -> 22 | H109: 1 | I109: COP ECS (saisie du tableau de valeurs) | J109: /
A110: 31 | B110: 'CW PAC'!F31 | C110: 'CW PAC'!BX31 | F110: 25 | G110: =IF(H110=0,0,MAX($G$86:G109)+1) -> 23 | H110: 1 | I110: Matrice des performances | J110: Température amont °C (source froide)
A111: 32 | B111: 'CW PAC'!F32 | C111: 'CW PAC'!BX32 | F111: 26 | G111: =IF(H111=0,0,MAX($G$86:G110)+1) -> 24 | H111: 1 | I111: Température aval °C (source chaude) | J111: 7
A112: 33 | B112: 'CW PAC'!F33 | C112: 'CW PAC'!BX33 | F112: 27 | G112: =IF(H112=0,0,MAX($G$86:G111)+1) -> 25 | H112: 1 | I112: 45 °C | J112: 2.5
A113: 34 | B113: 'CW PAC'!F34 | C113: 'CW PAC'!BX34 | F113: 28 | G113: =IF(H113=0,0,MAX($G$86:G112)+1) -> 26 | H113: 1 | I113: Puissances absorbées (saisie du tableau de valeurs) | J113: /
A114: 35 | B114: 'CW PAC'!F35 | C114: 'CW PAC'!BX35 | F114: 29 | G114: =IF(H114=0,0,MAX($G$86:G113)+1) -> 27 | H114: 1 | I114: Matrice Puissance absorbées (en kW) | J114: Température amont °C (source froide)
A115: 36 | B115: 'CW PAC'!F36 | C115: 'CW PAC'!BX36 | F115: 30 | G115: =IF(H115=0,0,MAX($G$86:G114)+1) -> 28 | H115: 1 | I115: Température aval °C (source chaude) | J115: -15 -7 2 7 20
A116: 37 | B116: 'CW PAC'!F37 | C116: 'CW PAC'!BX37 | F116: 31 | G116: =IF(H116=0,0,MAX($G$86:G115)+1) -> 0 | H116: 0 | I116: 23,5 °C | J116: NA
A117: 38 | B117: 'CW PAC'!F38 | C117: 'CW PAC'!BX38 | F117: 32 | G117: =IF(H117=0,0,MAX($G$86:G116)+1) -> 29 | H117: 1 | I117: 32,5 °C | J117: 1,83 0,92 0,65
A118: 39 | B118: 'CW PAC'!F39 | C118: 'CW PAC'!BX39 | F118: 33 | G118: =IF(H118=0,0,MAX($G$86:G117)+1) -> 30 | H118: =IF(J118="NA",0,1) -> 1 | I118: =INDIRECT(B118) -> 42,5 °C | J118: =INDIRECT(C118) -> 1,98 1,09 1,16
A119: 40 | B119: 'CW PAC'!F40 | C119: 'CW PAC'!BX40 | F119: 34 | G119: =IF(H119=0,0,MAX($G$86:G118)+1) -> 31 | H119: 1 | I119: 51 °C | J119: 2,11 1,35 1,38
A120: 41 | B120: 'CW PAC'!F41 | C120: 'CW PAC'!BX41 | F120: 35 | G120: =IF(H120=0,0,MAX($G$86:G119)+1) -> 0 | H120: 0 | I120: 60 °C | J120: NA
A121: 42 | B121: 'CW PAC'!F42 | C121: 'CW PAC'!BX42 | F121: 36 | G121: =IF(H121=0,0,MAX($G$86:G120)+1) -> 32 | H121: 1 | I121: Puissances absorbées en ECS (saisie du tableau de valeurs) | J121: /
A122: 43 | B122: 'CW PAC'!F43 | C122: 'CW PAC'!BX43 | F122: 37 | G122: =IF(H122=0,0,MAX($G$86:G121)+1) -> 33 | H122: 1 | I122: Matrice Puissance absorbées (en kW) | J122: Température amont °C (source froide)
A123: 44 | B123: 'CW PAC'!F44 | C123: 'CW PAC'!BX44 | F123: 38 | G123: =IF(H123=0,0,MAX($G$86:G122)+1) -> 34 | H123: 1 | I123: Température aval °C (source chaude) | J123: 7
A124: 45 | B124: 'CW PAC'!F45 | C124: 'CW PAC'!BX45 | F124: 39 | G124: =IF(H124=0,0,MAX($G$86:G123)+1) -> 35 | H124: 1 | I124: 45 °C | J124: 0.91
A125: 46 | B125: 'CW PAC'!F46 | C125: 'CW PAC'!BX46 | F125: 40 | G125: =IF(H125=0,0,MAX($G$86:G124)+1) -> 36 | H125: 1 | I125: Indicateurs de certification (saisie du tableau de valeurs) | J125: /
A126: 47 | B126: 'CW PAC'!F47 | C126: 'CW PAC'!BX47 | F126: 41 | G126: =IF(H126=0,0,MAX($G$86:G125)+1) -> 37 | H126: 1 | I126: Matrice des indicateurs de certification | J126: Température amont °C (source froide)
A127: 48 | B127: 'CW PAC'!F48 | C127: 'CW PAC'!BX48 | F127: 42 | G127: =IF(H127=0,0,MAX($G$86:G126)+1) -> 38 | H127: 1 | I127: Température aval °C (source chaude) | J127: -15 -7 2 7 20
A128: 49 | B128: 'CW PAC'!F49 | C128: 'CW PAC'!BX49 | F128: 43 | G128: =IF(H128=0,0,MAX($G$86:G127)+1) -> 0 | H128: 0 | I128: 23,5 °C | J128: NA
A129: 50 | B129: 'CW PAC'!F50 | C129: 'CW PAC'!BX50 | F129: 44 | G129: =IF(H129=0,0,MAX($G$86:G128)+1) -> 39 | H129: 1 | I129: 32,5 °C | J129: 1 1 1
A130: 51 | B130: 'CW PAC'!F51 | C130: 'CW PAC'!BX51 | F130: 45 | G130: =IF(H130=0,0,MAX($G$86:G129)+1) -> 40 | H130: 1 | I130: 42,5 °C | J130: 1 1 1
A131: 52 | B131: 'CW PAC'!F52 | C131: 'CW PAC'!BX52 | F131: 46 | G131: =IF(H131=0,0,MAX($G$86:G130)+1) -> 41 | H131: 1 | I131: 51 °C | J131: 1 1 1
A132: 53 | B132: 'CW PAC'!F53 | C132: 'CW PAC'!BX53 | F132: 47 | G132: =IF(H132=0,0,MAX($G$86:G131)+1) -> 0 | H132: 0 | I132: 60 °C | J132: NA
A133: 54 | B133: 'CW PAC'!F54 | C133: 'CW PAC'!BX54 | F133: 48 | G133: =IF(H133=0,0,MAX($G$86:G132)+1) -> 42 | H133: 1 | I133: Indicateurs de certification en ECS (saisie du tableau de valeurs) | J133: /
A134: 55 | B134: 'CW PAC'!F55 | C134: 'CW PAC'!BX55 | F134: 49 | G134: =IF(H134=0,0,MAX($G$86:G133)+1) -> 43 | H134: 1 | I134: Matrice des indicateurs de certification | J134: Température amont °C (source froide)
A135: 56 | B135: 'CW PAC'!F56 | C135: 'CW PAC'!BX56 | F135: 50 | G135: =IF(H135=0,0,MAX($G$86:G134)+1) -> 44 | H135: 1 | I135: Température aval °C (source chaude) | J135: 7
A136: 57 | B136: 'CW PAC'!F57 | C136: 'CW PAC'!BX57 | F136: 51 | G136: =IF(H136=0,0,MAX($G$86:G135)+1) -> 45 | H136: 1 | I136: 45 °C | J136: 1
A137: 58 | B137: 'CW PAC'!F58 | C137: 'CW PAC'!BX58 | F137: 52 | G137: =IF(H137=0,0,MAX($G$86:G136)+1) -> 46 | H137: 1 | I137: Fin matrice | J137: /
A138: 59 | B138: 'CW PAC'!F59 | C138: 'CW PAC'!BX59 | F138: 53 | G138: =IF(H138=0,0,MAX($G$86:G137)+1) -> 0 | H138: 0 | I138: Statut pivot COP ECS | J138: NA
A139: 60 | B139: 'CW PAC'!F60 | C139: 'CW PAC'!BX60 | F139: 54 | G139: =IF(H139=0,0,MAX($G$86:G138)+1) -> 0 | H139: 0 | I139: COP ECS | J139: NA
A140: 61 | B140: 'CW PAC'!F61 | C140: 'CW PAC'!BX61 | F140: 55 | G140: =IF(H140=0,0,MAX($G$86:G139)+1) -> 0 | H140: 0 | I140: Puissances absorbées en ECS (kW) | J140: NA
A141: 62 | B141: 'CW PAC'!F62 | C141: 'CW PAC'!BX62 | F141: 56 | G141: =IF(H141=0,0,MAX($G$86:G140)+1) -> 47 | H141: 1 | I141: Limite température sources | J141: Sur l'une ou l'autre des températures de source
A142: 63 | B142: 'CW PAC'!F63 | C142: 'CW PAC'!BX63 | F142: 57 | G142: =IF(H142=0,0,MAX($G$86:G141)+1) -> 48 | H142: 1 | I142: Limite température sources ECS | J142: Sur l'une ou l'autre des températures de source
A143: 64 | B143: 'CW PAC'!F64 | C143: 'CW PAC'!BX64 | F143: 58 | G143: =IF(H143=0,0,MAX($G$86:G142)+1) -> 49 | H143: 1 | I143: Température maximale aval (°C) | J143: 55
A144: 65 | B144: 'CW PAC'!F65 | C144: 'CW PAC'!BX65 | F144: 59 | G144: =IF(H144=0,0,MAX($G$86:G143)+1) -> 50 | H144: 1 | I144: Température maximale aval ECS (°C) | J144: 62
A145: 66 | B145: 'CW PAC'!F66 | C145: 'CW PAC'!BX66 | F145: 60 | G145: =IF(H145=0,0,MAX($G$86:G144)+1) -> 51 | H145: 1 | I145: Température minimale amont (°C) | J145: -20
A146: 67 | B146: 'CW PAC'!F67 | C146: 'CW PAC'!BX67 | F146: 61 | G146: =IF(H146=0,0,MAX($G$86:G145)+1) -> 52 | H146: 1 | I146: Température minimale amont ECS (°C) | J146: -20
A147: 68 | B147: 'CW PAC'!F68 | C147: 'CW PAC'!BX68 | F147: 62 | G147: =IF(H147=0,0,MAX($G$86:G146)+1) -> 53 | H147: 1 | I147: Fonctionnement à charge réelle en mode chaud | J147: Valeur déclarée
A148: 69 | B148: 'CW PAC'!F69 | C148: 'CW PAC'!BX69 | F148: 63 | G148: =IF(H148=0,0,MAX($G$86:G147)+1) -> 54 | H148: 1 | I148: Fonctionnement compresseur à charge réelle | J148: Mode continu du compresseur
A149: 70 | B149: 'CW PAC'!F70 | C149: 'CW PAC'!BX70 | F149: 64 | G149: =IF(H149=0,0,MAX($G$86:G148)+1) -> 55 | H149: 1 | I149: Statut fonctionnement continu | J149: Valeur par défaut
A150: 71 | B150: =ADDRESS(A150,$E$61,4,TRUE,$E$16) -> 'CW PAC'!F71 | C150: =ADDRESS(A150,$E$71,4,TRUE,$E$16) -> 'CW PAC'!BX71 | F150: 65 | G150: =IF(H150=0,0,MAX($G$86:G149)+1) -> 0 | H150: =IF(J150="NA",0,1) -> 0 | I150: =INDIRECT(B150) -> Taux mini de fonctionnement continu (LRcontmin) | J150: =INDIRECT(C150) -> NA
A151: 72 | B151: 'CW PAC'!F72 | C151: 'CW PAC'!BX72 | F151: 66 | G151: =IF(H151=0,0,MAX($G$86:G150)+1) -> 0 | H151: 0 | I151: Correction performance à LRcontmin (CcpLRcontmin) | J151: NA
A152: 73 | B152: 'CW PAC'!F73 | C152: 'CW PAC'!BX73 | F152: 67 | G152: =IF(H152=0,0,MAX($G$86:G151)+1) -> 0 | H152: 0 | I152: Durée équivalente des irréversibilités en chaud | J152: NA
A153: 74 | B153: 'CW PAC'!F74 | C153: 'CW PAC'!BX74 | F153: 68 | G153: =IF(H153=0,0,MAX($G$86:G152)+1) -> 56 | H153: 1 | I153: Typologie des émetteurs en chaud | J153: (en fonction du projet)
A154: 75 | B154: 'CW PAC'!F75 | C154: 'CW PAC'!BX75 | F154: 69 | G154: =IF(H154=0,0,MAX($G$86:G153)+1) -> 57 | H154: 1 | I154: Statut part électrique aux. | J154: Valeur certifiée
A155: 76 | B155: 'CW PAC'!F76 | C155: 'CW PAC'!BX76 | F155: 70 | G155: =IF(H155=0,0,MAX($G$86:G154)+1) -> 58 | H155: 1 | I155: Part puissance électrique auxiliaires chaud T.aux | J155: 0.0169
A156: 77 | B156: 'CW PAC'!F77 | C156: 'CW PAC'!BX77 | F156: 71 | G156: =IF(H156=0,0,MAX($G$86:G155)+1) -> 59 | H156: 1 | I156: Présence ballon d'eau intégré | J156: Générateur avec ballon
A157: 78 | B157: 'CW PAC'!F78 | C157: 'CW PAC'!BX78 | F157: 72 | G157: =IF(H157=0,0,MAX($G$86:G156)+1) -> 60 | H157: 1 | I157: Appoint intégré | J157: Avec appoint intégré électrique
A158: 79 | B158: 'CW PAC'!F79 | C158: 'CW PAC'!BX79 | F158: 73 | G158: =IF(H158=0,0,MAX($G$86:G157)+1) -> 61 | H158: 1 | I158: Puissance appoint électrique (kW) | J158: 0,9; 1,1; 1,7; 2; 2,8; 3,7; 4,5 ou 5,4 (en fonction du projet)
A159: 80 | B159: 'CW PAC'!F80 | C159: 'CW PAC'!BX80 | F159: 74 | G159: =IF(H159=0,0,MAX($G$86:G158)+1) -> 62 | H159: 1 | I159: Volume du ballon (l) | J159: 188
A160: 81 | B160: 'CW PAC'!F81 | C160: 'CW PAC'!BX81 | F160: 75 | G160: =IF(H160=0,0,MAX($G$86:G159)+1) -> 63 | H160: 1 | I160: Type de pertes thermique | J160: Valeur certifiée
A161: 82 | B161: 'CW PAC'!F82 | C161: 'CW PAC'!BX82 | F161: 76 | G161: =IF(H161=0,0,MAX($G$86:G160)+1) -> 64 | H161: 1 | I161: Pertes thermiques ballon (W/K) | J161: 1.32
A162: 83 | B162: 'CW PAC'!F83 | C162: 'CW PAC'!BX83 | F162: 77 | G162: =IF(H162=0,0,MAX($G$86:G161)+1) -> 0 | H162: 0 | I162: Type de ballon | J162: NA
A163: 84 | B163: 'CW PAC'!F84 | C163: 'CW PAC'!BX84 | F163: 78 | G163: =IF(H163=0,0,MAX($G$86:G162)+1) -> 65 | H163: 1 | I163: Température max. ballon (°C) | J163: 90
A164: 85 | B164: 'CW PAC'!F85 | C164: 'CW PAC'!BX85 | F164: 79 | G164: =IF(H164=0,0,MAX($G$86:G163)+1) -> 66 | H164: 1 | I164: Gestion du thermostat ballon | J164: Chauffage de nuit
A165: 86 | B165: 'CW PAC'!F86 | C165: 'CW PAC'!BX86 | F165: 80 | G165: =IF(H165=0,0,MAX($G$86:G164)+1) -> 67 | H165: 1 | I165: Base : prise en compte de l'hystérésis | J165: Valeurs déclarées
A166: 87 | B166: 'CW PAC'!F87 | C166: 'CW PAC'!BX87 | F166: 81 | G166: =IF(H166=0,0,MAX($G$86:G165)+1) -> 68 | H166: 1 | I166: Base : hystérésis thermostat ballon (°C) | J166: 2
A167: 88 | B167: 'CW PAC'!F88 | C167: 'CW PAC'!BX88 | F167: 82 | G167: =IF(H167=0,0,MAX($G$86:G166)+1) -> 69 | H167: 1 | I167: Base : hauteur échangeur (%) | J167: 0
A168: 89 | B168: 'CW PAC'!F89 | C168: 'CW PAC'!BX89 | F168: 83 | G168: =IF(H168=0,0,MAX($G$86:G167)+1) -> 70 | H168: 1 | I168: Base : n° zone régulation | J168: Zone 1
A169: 90 | B169: 'CW PAC'!F90 | C169: 'CW PAC'!BX90 | F169: 84 | G169: =IF(H169=0,0,MAX($G$86:G168)+1) -> 71 | H169: 1 | I169: Appoint : gestion du thermostat ballon | J169: Chauffage de nuit
A170: 91 | B170: 'CW PAC'!F91 | C170: 'CW PAC'!BX91 | F170: 85 | G170: =IF(H170=0,0,MAX($G$86:G169)+1) -> 72 | H170: 1 | I170: Appoint : prise en compte de l'hystérésis | J170: Valeurs déclarées
A171: 92 | B171: 'CW PAC'!F92 | C171: 'CW PAC'!BX92 | F171: 86 | G171: =IF(H171=0,0,MAX($G$86:G170)+1) -> 73 | H171: 1 | I171: Appoint : hystérésis thermostat ballon (°C) | J171: 5
A172: 93 | B172: 'CW PAC'!F93 | C172: 'CW PAC'!BX93 | F172: 87 | G172: =IF(H172=0,0,MAX($G$86:G171)+1) -> 74 | H172: 1 | I172: Appoint : hauteur échangeur (%) | J172: 7.5
A173: 94 | B173: 'CW PAC'!F94 | C173: 'CW PAC'!BX94 | F173: 88 | G173: =IF(H173=0,0,MAX($G$86:G172)+1) -> 75 | H173: 1 | I173: Appoint : n° de zone élément chauffant | J173: Zone 1
A174: 95 | B174: 'CW PAC'!F95 | C174: 'CW PAC'!BX95 | F174: 89 | G174: =IF(H174=0,0,MAX($G$86:G173)+1) -> 76 | H174: 1 | I174: Appoint : n° de zone régulation | J174: Zone 3
A175: 96 | B175: 'CW PAC'!F96 | C175: 'CW PAC'!BX96 | F175: 90 | G175: =IF(H175=0,0,MAX($G$86:G174)+1) -> 77 | H175: 1 | I175: Appoint : fraction du ballon chauffée par l'appoint | J175: Valeur par défaut
A176: 97 | B176: 'CW PAC'!F97 | C176: 'CW PAC'!BX97 | F176: 91 | G176: =IF(H176=0,0,MAX($G$86:G175)+1) -> 0 | H176: 0 | I176: Fraction appoint | J176: NA
A177: 98 | B177: 'CW PAC'!F98 | C177: 'CW PAC'!BX98 | F177: 92 | G177: =IF(H177=0,0,MAX($G$86:G176)+1) -> 78 | H177: 1 | I177: Titre V avec appoint optimisé | J177: Sans Titre V
A178: 99 | B178: 'CW PAC'!F99 | C178: 'CW PAC'!BX99 | F178: 93 | G178: =IF(H178=0,0,MAX($G$86:G177)+1) -> 0 | H178: 0 | I178: Si appoint et titre V régulation optimisée, type de gestion | J178: NA
A179: 100 | B179: 'CW PAC'!F100 | C179: 'CW PAC'!BX100 | F179: 94 | G179: =IF(H179=0,0,MAX($G$86:G178)+1) -> 0 | H179: 0 | I179: Type de gestion | J179: NA
A180: 101 | B180: 'CW PAC'!F101 | C180: 'CW PAC'!BX101 | F180: 95 | G180: =IF(H180=0,0,MAX($G$86:G179)+1) -> 0 | H180: 0 | I180: Appellation | J180: NA
A181: 102 | B181: 'CW PAC'!F102 | C181: 'CW PAC'!BX102 | F181: 96 | G181: =IF(H181=0,0,MAX($G$86:G180)+1) -> 0 | H181: 0 | I181: Type de composant | J181: NA
A182: 103 | B182: 'CW PAC'!F103 | C182: 'CW PAC'!BX103 | F182: 97 | G182: =IF(H182=0,0,MAX($G$86:G181)+1) -> 0 | H182: =IF(J182="NA",0,1) -> 0 | I182: =INDIRECT(B182) -> Source amont eau du générateur | J182: =INDIRECT(C182) -> NA
A183: 104 | B183: 'CW PAC'!F104 | C183: 'CW PAC'!BX104 | F183: 98 | G183: =IF(H183=0,0,MAX($G$86:G182)+1) -> 0 | H183: 0 | I183: Gestion auxiliaires des captage | J183: NA
A184: 105 | B184: 'CW PAC'!F105 | C184: 'CW PAC'!BX105 | F184: 99 | G184: =IF(H184=0,0,MAX($G$86:G183)+1) -> 0 | H184: 0 | I184: Gestion pompe de captage | J184: NA
A185: 106 | B185: 'CW PAC'!F106 | C185: 'CW PAC'!BX106 | F185: 100 | G185: =IF(H185=0,0,MAX($G$86:G184)+1) -> 0 | H185: 0 | I185: Ecart température en chauffage (°C) | J185: NA
A186: 107 | B186: 'CW PAC'!F107 | C186: 'CW PAC'!BX107 | F186: 101 | G186: =IF(H186=0,0,MAX($G$86:G185)+1) -> 0 | H186: 0 | I186: Ecart température en refroidissement (°C) | J186: NA
A187: 108 | B187: 'CW PAC'!F108 | C187: 'CW PAC'!BX108 | F187: 102 | G187: =IF(H187=0,0,MAX($G$86:G186)+1) -> 0 | H187: 0 | I187: Puissance pompes de captage (W) | J187: NA
A188: 109 | B188: 'CW PAC'!F109 | C188: 'CW PAC'!BX109 | F188: 103 | G188: =IF(H188=0,0,MAX($G$86:G187)+1) -> 0 | H188: 0 | I188: Mois captage plus froid | J188: NA
A189: 110 | B189: 'CW PAC'!F110 | C189: 'CW PAC'!BX110 | F189: 104 | G189: =IF(H189=0,0,MAX($G$86:G188)+1) -> 0 | H189: 0 | I189: Température minimale de captage | J189: NA
A190: 111 | B190: 'CW PAC'!F111 | C190: 'CW PAC'!BX111 | F190: 105 | G190: =IF(H190=0,0,MAX($G$86:G189)+1) -> 0 | H190: 0 | I190: Température maximale de captage | J190: NA
A191: 112 | B191: 'CW PAC'!F112 | C191: 'CW PAC'!BX112 | F191: 106 | G191: =IF(H191=0,0,MAX($G$86:G190)+1) -> 0 | H191: 0 | I191: Resistance thermique sonde-sol | J191: NA
A192: 113 | B192: 'CW PAC'!F113 | C192: 'CW PAC'!BX113 | F192: 107 | G192: =IF(H192=0,0,MAX($G$86:G191)+1) -> 0 | H192: 0 | I192: Longueur de la sonde de captage | J192: NA
A193: 114 | B193: 'CW PAC'!F114 | C193: 'CW PAC'!BX114 | F193: 108 | G193: =IF(H193=0,0,MAX($G$86:G192)+1) -> 0 | H193: 0 | I193: Générateur chaudière | J193: NA
A194: 115 | B194: 'CW PAC'!F115 | C194: 'CW PAC'!BX115 | F194: 109 | G194: =IF(H194=0,0,MAX($G$86:G193)+1) -> 0 | H194: 0 | I194: Générateur : Chaudière | J194: NA
A195: 116 | B195: 'CW PAC'!F116 | C195: 'CW PAC'!BX116 | F195: 110 | G195: =IF(H195=0,0,MAX($G$86:G194)+1) -> 79 | H195: 1 | I195: Arborescence génération | J195: -
A196: 117 | B196: 'CW PAC'!F117 | C196: 'CW PAC'!BX117 | F196: 111 | G196: =IF(H196=0,0,MAX($G$86:G195)+1) -> 80 | H196: 1 | J196: Génération
A197: 118 | B197: 'CW PAC'!F118 | C197: 'CW PAC'!BX118 | F197: 112 | G197: =IF(H197=0,0,MAX($G$86:G196)+1) -> 81 | H197: 1 | J197: [____ Génération
A198: 119 | B198: 'CW PAC'!F119 | C198: 'CW PAC'!BX119 | F198: 113 | G198: =IF(H198=0,0,MAX($G$86:G197)+1) -> 82 | H198: 1 | J198: [____ Composant : Kit GeniaSet Split
A199: 120 | B199: 'CW PAC'!F120 | C199: 'CW PAC'!BX120 | F199: 114 | G199: =IF(H199=0,0,MAX($G$86:G198)+1) -> 0 | H199: 0 | J199: NA
A200: 121 | B200: 'CW PAC'!F121 | C200: 'CW PAC'!BX121 | F200: 115 | G200: =IF(H200=0,0,MAX($G$86:G199)+1) -> 83 | H200: 1 | I200: Génération | J200: -
A201: 122 | B201: 'CW PAC'!F122 | C201: 'CW PAC'!BX122 | F201: 116 | G201: =IF(H201=0,0,MAX($G$86:G200)+1) -> 84 | H201: 1 | I201: Appellation | J201: (libre)
A202: 123 | B202: 'CW PAC'!F123 | C202: 'CW PAC'!BX123 | F202: 117 | G202: =IF(H202=0,0,MAX($G$86:G201)+1) -> 85 | H202: 1 | I202: Mode de fonctionnement | J202: Générateurs en cascade
A203: 124 | B203: 'CW PAC'!F124 | C203: 'CW PAC'!BX124 | F203: 118 | G203: =IF(H203=0,0,MAX($G$86:G202)+1) -> 86 | H203: 1 | I203: Raccordement générateurs entre eux | J203: Permanent
A204: 125 | B204: 'CW PAC'!F125 | C204: 'CW PAC'!BX125 | F204: 119 | G204: =IF(H204=0,0,MAX($G$86:G203)+1) -> 87 | H204: 1 | I204: Raccordement production | J204: Avec possibilité d'isolement
A205: 126 | B205: 'CW PAC'!F126 | C205: 'CW PAC'!BX126 | F205: 120 | G205: =IF(H205=0,0,MAX($G$86:G204)+1) -> 88 | H205: 1 | I205: Emplacement production | J205: (en fonction du projet)
A206: 127 | B206: 'CW PAC'!F127 | C206: 'CW PAC'!BX127 | F206: 121 | G206: =IF(H206=0,0,MAX($G$86:G205)+1) -> 89 | H206: 1 | I206: Emplacement | J206: (choix d'un bâtiment)
A207: 128 | B207: 'CW PAC'!F128 | C207: 'CW PAC'!BX128 | F207: 122 | G207: =IF(H207=0,0,MAX($G$86:G206)+1) -> 90 | H207: 1 | I207: Distribution intergroupes | J207: Distributions hydrauliques individuelles
A208: 129 | B208: 'CW PAC'!F129 | C208: 'CW PAC'!BX129 | F208: 123 | G208: =IF(H208=0,0,MAX($G$86:G207)+1) -> 91 | H208: 1 | I208: Gestion de température en chauffage | J208: Température moyenne des réseaux de distribution
A209: 130 | B209: 'CW PAC'!F130 | C209: 'CW PAC'!BX130 | F209: 124 | G209: =IF(H209=0,0,MAX($G$86:G208)+1) -> 92 | H209: =IF(J209="NA",0,1) -> 1 | I209: =INDIRECT(B209) -> Gestion température en refroidissement | J209: =INDIRECT(C209) -> Pas de fonction climatisation
A210: 131 | B210: 'CW PAC'!F131 | C210: 'CW PAC'!BX131 | F210: 125 | G210: =IF(H210=0,0,MAX($G$86:G209)+1) -> 93 | H210: 1 | I210: Production ECS instantanée | J210: (en fonction du projet)
A211: 132 | B211: 'CW PAC'!F132 | C211: 'CW PAC'!BX132 | F211: 126 | G211: =IF(H211=0,0,MAX($G$86:G210)+1) -> 94 | H211: 1 | I211: Production de fonctionnement ECS instantanée (°C) | J211: (en fonction du projet)
A212: 133 | B212: 'CW PAC'!F133 | C212: 'CW PAC'!BX133 | F212: 127 | G212: =IF(H212=0,0,MAX($G$86:G211)+1) -> 95 | H212: 1 | I212: Rendement simplifié en chauffant (STD) en % | J212: (en fonction du projet)
A213: 134 | B213: 'CW PAC'!F134 | C213: 'CW PAC'!BX134 | F213: 128 | G213: =IF(H213=0,0,MAX($G$86:G212)+1) -> 0 | H213: 0 | I213: Composant : Générateur chaudière | J213: NA
A214: 135 | B214: =ADDRESS(A214,$E$61,4,TRUE,$E$16) -> 'CW PAC'!F135 | C214: =ADDRESS(A214,$E$71,4,TRUE,$E$16) -> 'CW PAC'!BX135 | F214: 129 | G214: =IF(H214=0,0,MAX($G$86:G213)+1) -> 0 | H214: 0 | I214: Appellation | J214: NA
A215: 136 | B215: 'CW PAC'!F136 | C215: 'CW PAC'!BX136 | F215: 130 | G215: =IF(H215=0,0,MAX($G$86:G214)+1) -> 0 | H215: 0 | I215: Type de composant | J215: NA
A216: 137 | B216: 'CW PAC'!F137 | C216: 'CW PAC'!BX137 | F216: 131 | G216: =IF(H216=0,0,MAX($G$86:G215)+1) -> 0 | H216: 0 | I216: Lien catalogue | J216: NA
A217: 138 | B217: 'CW PAC'!F138 | C217: 'CW PAC'!BX138 | F217: 132 | G217: =IF(H217=0,0,MAX($G$86:G216)+1) -> 0 | H217: 0 | I217: Nombre identiques | J217: NA
A218: 139 | B218: 'CW PAC'!F139 | C218: 'CW PAC'!BX139 | F218: 133 | G218: =IF(H218=0,0,MAX($G$86:G217)+1) -> 0 | H218: 0 | I218: Indice de priorité | J218: NA
A219: 140 | B219: 'CW PAC'!F140 | C219: 'CW PAC'!BX140 | F219: 134 | G219: =IF(H219=0,0,MAX($G$86:G218)+1) -> 0 | H219: 0 | I219: Indice de priorité en ECS | J219: NA
A220: 141 | B220: 'CW PAC'!F141 | C220: 'CW PAC'!BX141 | F220: 135 | G220: =IF(H220=0,0,MAX($G$86:G219)+1) -> 0 | H220: 0 | I220: Composant : Chaudière | J220: NA
A221: 142 | B221: 'CW PAC'!F142 | C221: 'CW PAC'!BX142 | F221: 136 | G221: =IF(H221=0,0,MAX($G$86:G220)+1) -> 96 | H221: 1 | I221: Composant : Générateur PAC ou CETI | J221: -
A222: 143 | B222: 'CW PAC'!F143 | C222: 'CW PAC'!BX143 | F222: 137 | G222: =IF(H222=0,0,MAX($G$86:G221)+1) -> 97 | H222: 1 | I222: Appellation | J222: (libre)
... 385 more rows

Sheet CW systemes (hidden)
H1: Désignation gamme SD | J1: CESI optimisé | K1: Désignation gamme SD | M1: =M3 -> PAC Hybride (PAC > 5 kW) | N1: Désignation gamme SD | P1: CETI optimisé | Q1: Désignation gamme SD | S1: =S3 -> PAC Hybride Titre V (PAC < 5 kW)
A2: Feuille de référence | H2: Désignation gamme V | J2: =J1 -> CESI optimisé | K2: Désignation gamme V | M2: =M1 -> PAC Hybride (PAC > 5 kW) | N2: Désignation gamme V | P2: =P1 -> CETI optimisé | Q2: Désignation gamme V | S2: =S1 -> PAC Hybride Titre V (PAC < 5 kW)
H3: Désignation modèle SD | J3: CESI optimisé | K3: Désignation modèle SD | M3: ='Gestion menus inputs'!C556 -> PAC Hybride (PAC > 5 kW) | N3: Désignation modèle SD | P3: CETI optimisé | Q3: Désignation modèle SD | S3: ='Gestion menus inputs'!C555 -> PAC Hybride Titre V (PAC < 5 kW)
H4: Désignation modèle V | J4: =J3 -> CESI optimisé | K4: Désignation modèle V | M4: =M3 -> PAC Hybride (PAC > 5 kW) | N4: Désignation modèle V | P4: =P3 -> CETI optimisé | Q4: Désignation modèle V | S4: =S3 -> PAC Hybride Titre V (PAC < 5 kW)
J5: Chauffe-eau solaire individuel en série avec une chaudière mixte instantanée ou micro-accumulée. | M5: Système bi-énergie combinant deux générateurs : une pompe à chaleur et une chaudière. Classe d'efficacité énergétique : A++ | P5: Chauffe-eau thermodynamique individuel en série avec une chaudière mixte instantanée ou micro-accumulée. | S5: Saisie suivant le Titre V arrêté du 29 octobre 2012. Système bi-énergie combinant deux générateurs : une pompe à chaleur et une chaudière. Classe d'efficacité énergétique : A++
I6: =IF('CW systemes'!J3<>Calculs!$C$7,"","Champs RT 2012") ->  | J6: Valeurs | L6: =IF('CW systemes'!M3<>Calculs!$C$7,"","Champs RE 2020") ->  | M6: Valeurs | O6: =IF('CW systemes'!P3<>Calculs!$C$7,"","Champs RE 2020") ->  | P6: Valeurs | R6: =IF('CW systemes'!S3<>Calculs!$C$7,"","Champs RE 2020") ->  | S6: Valeurs
B7: Compteur | C7: Modèle + 1 | D7: N° de ligne
J8: NA | M8: NA | P8: NA | S8: NA
J9: NA | M9: NA | P9: NA | S9: NA
J10: NA | M10: NA | P10: NA | S10: NA
J11: NA | M11: NA | P11: NA | S11: NA
J12: NA | M12: NA | P12: NA | S12: NA
F13: =ADDRESS($D18,INDEX($D$615:$F$615,1,$C18),4,TRUE,) -> HG8 | J13: NA | M13: NA | P13: NA | S13: NA
F14: =INDEX($D$615:$F$615,1,$C18) -> 215 | J14: NA | M14: NA | P14: NA | S14: NA
J15: NA | M15: NA | P15: NA | S15: NA
J16: NA | M16: NA | P16: NA | S16: NA
J17: NA | M17: NA | P17: NA | S17: NA
B18: 1 | C18: =IF(B18>$D$620+$E$620,3,IF(B18>$D$620,2,1)) -> 1 | D18: 8 | E18: ="'"&INDEX($D$610:$F$610,1,$C18)&"'!"&ADDRESS($D18,INDEX($D$612:$F$612,$C18),4,TRUE,) ->  | F18: ="'"&INDEX($D$610:$F$610,1,$C18)&"'!"&ADDRESS($D18,INDEX($D$615:$F$615,1,$C18),4,TRUE,) -> 'CW Chaudières'!HG8 | H18: =INDIRECT($E18) ->  | I18: Générateur : chaudière | J18: =INDIRECT($F18) -> - | K18: =INDIRECT($E18) ->  | L18: Générateur : chaudière | M18: =INDIRECT($F18) -> - | N18: =INDIRECT($E18) ->  | O18: Générateur : chaudière | P18: =INDIRECT($F18) -> - | Q18: =INDIRECT($E18) ->  | R18: Générateur : chaudière | S18: =INDIRECT($F18) -> -
B19: 2 | C19: 2 | D19: =IF(C19>C18,8,D18+1) -> 8 | E19: ="'"&INDEX($D$610:$F$610,1,$C19)&"'!"&ADDRESS($D19,INDEX($D$612:$F$612,$C19),4,TRUE,) ->  | F19: 'CW PAC'!CO8 | H19: =INDIRECT($E19) ->  | I19: Référence | J19: =INDIRECT($F19) -> - | K19: =INDIRECT($E19) ->  | L19: Référence | M19: =INDIRECT($F19) -> - | N19: =INDIRECT($E19) ->  | O19: Référence | P19: =INDIRECT($F19) -> - | Q19: =INDIRECT($E19) ->  | R19: Référence | S19: =INDIRECT($F19) -> -
B20: 3 | C20: 3 | D20: =IF(C20>C19,8,D19+1) -> 8 | I20: Production du générateur | L20: Production du générateur | O20: Production du générateur | R20: Production du générateur
B21: 4 | C21: 3 | D21: 9 | I21: Type de générateur | L21: Type de générateur | O21: Type de générateur | R21: Type de générateur
B22: 5 | C22: 3 | D22: 10 | I22: Référence produit | L22: Référence produit | O22: Référence produit | R22: Référence produit
B23: 6 | C23: 3 | D23: 11 | I23: Caractéristiques | L23: Caractéristiques | O23: Caractéristiques | R23: Caractéristiques
B24: 7 | C24: 3 | D24: 12 | I24: Puissance nominale en chaud (kW) | L24: Puissance nominale en chaud (kW) | O24: Puissance nominale en chaud (kW) | R24: Puissance nominale en chaud (kW)
B25: 8 | C25: 3 | D25: =IF(C25>C24,8,D24+1) -> 13 | I25: Puissance intermédiaire (kW) | L25: Puissance intermédiaire (kW) | O25: Puissance intermédiaire (kW) | R25: Puissance intermédiaire (kW)
B26: 9 | C26: 3 | D26: 14 | I26: Type détaillé du générateur | L26: Type détaillé du générateur | O26: Type détaillé du générateur | R26: Type détaillé du générateur
B27: 10 | C27: 3 | D27: 15 | I27: Type d'énergie | L27: Type d'énergie | O27: Type d'énergie | R27: Type d'énergie
B28: 11 | C28: 3 | D28: 16 | I28: Ventilateur du côté combustion | L28: Ventilateur du côté combustion | O28: Ventilateur du côté combustion | R28: Ventilateur du côté combustion
B29: 12 | C29: 3 | D29: 17 | I29: Certif. rendement 100 % Pn | L29: Certif. rendement 100 % Pn | O29: Certif. rendement 100 % Pn | R29: Certif. rendement 100 % Pn
B30: 13 | C30: 3 | D30: 18 | I30: Rendement à charge 100 % Pn (%) | L30: Rendement à charge 100 % Pn (%) | O30: Rendement à charge 100 % Pn (%) | R30: Rendement à charge 100 % Pn (%)
B31: 14 | C31: 3 | D31: 19 | I31: Certif. rendement part. | L31: Certif. rendement part. | O31: Certif. rendement part. | R31: Certif. rendement part.
B32: 15 | C32: 3 | D32: 20 | I32: Rendement à charge partielle (%) | L32: Rendement à charge partielle (%) | O32: Rendement à charge partielle (%) | R32: Rendement à charge partielle (%)
B33: 16 | C33: 3 | D33: 21 | I33: Certification pertes à l'arrêt | L33: Certification pertes à l'arrêt | O33: Certification pertes à l'arrêt | R33: Certification pertes à l'arrêt
B34: 17 | C34: 3 | D34: 22 | I34: Pertes à l'arrêt (W) | L34: Pertes à l'arrêt (W) | O34: Pertes à l'arrêt (W) | R34: Pertes à l'arrêt (W)
B35: 18 | C35: 3 | D35: 23 | I35: Certification conso auxiliaires | L35: Certification conso auxiliaires | O35: Certification conso auxiliaires | R35: Certification conso auxiliaires
B36: 19 | C36: 3 | D36: 24 | I36: Conso élec. auxiliaires à Pn (W) | L36: Conso élec. auxiliaires à Pn (W) | O36: Conso élec. auxiliaires à Pn (W) | R36: Conso élec. auxiliaires à Pn (W)
B37: 20 | C37: 3 | D37: 25 | I37: Puiss. Élec. à charge nulle (W) | L37: Puiss. Élec. à charge nulle (W) | O37: Puiss. Élec. à charge nulle (W) | R37: Puissance électrique à charge nulle (W) (suivant Titre V : PAC + chaudière) | S37: =INDIRECT($F37)+7 -> 
B38: 21 | C38: 3 | D38: 26 | I38: Statut temp. mini fonc | L38: Statut temp. mini fonc | O38: Statut temp. mini fonc | R38: Statut temp. mini fonc
B39: 22 | C39: 3 | D39: 27 | I39: Temp. mini fonctionnement (°C) | L39: Temp. mini fonctionnement (°C) | O39: Temp. mini fonctionnement (°C) | R39: Temp. mini fonctionnement (°C)
B40: 23 | C40: 3 | D40: 28 | I40: Certification température maxi de fonctionnement | L40: Certification température maxi de fonctionnement | O40: Certification température maxi de fonctionnement | R40: Certification température maxi de fonctionnement
B41: 24 | C41: 3 | D41: 29 | I41: Température maxi de fonctionnement (°C) | L41: Température maxi de fonctionnement (°C) | O41: Température maxi de fonctionnement (°C) | R41: Température maxi de fonctionnement (°C)
B42: 25 | C42: 3 | D42: 30 | I42: Présence ballon d'eau intégré | L42: Présence ballon d'eau intégré | O42: Présence ballon d'eau intégré | R42: Présence ballon d'eau intégré
B43: 26 | C43: 3 | D43: 31 | I43: Volume du ballon (l) | L43: Volume du ballon (l) | O43: Volume du ballon (l) | R43: Volume du ballon (l)
B44: 27 | C44: 3 | D44: 32 | I44: Type de pertes thermiques | L44: Type de pertes thermiques | O44: Type de pertes thermiques | R44: Type de pertes thermiques
B45: 28 | C45: 3 | D45: 33 | I45: Type de ballon | L45: Type de ballon | O45: Type de ballon | R45: Type de ballon
B46: 29 | C46: 3 | D46: 34 | I46: Pertes thermiques ballon (W/K) | L46: Pertes thermiques ballon (W/K) | O46: Pertes thermiques ballon (W/K) | R46: Pertes thermiques ballon (W/K)
B47: 30 | C47: 3 | D47: 35 | I47: Temp. max. ballon (°C) | L47: Temp. max. ballon (°C) | O47: Temp. max. ballon (°C) | R47: Temp. max. ballon (°C)
B48: 31 | C48: 3 | D48: 36 | I48: Gestion du thermostat ballon | L48: Gestion du thermostat ballon | O48: Gestion du thermostat ballon | R48: Gestion du thermostat ballon
B49: 32 | C49: 3 | D49: 37 | I49: Base : Prise en compte de l'hystérésis | L49: Base : Prise en compte de l'hystérésis | O49: Base : Prise en compte de l'hystérésis | R49: Base : Prise en compte de l'hystérésis
B50: 33 | C50: =IF(B50>$D$620+$E$620,3,IF(B50>$D$620,2,1)) -> 3 | D50: 38 | I50: Base : hystérésis thermostat ballon (°C) | L50: Base : hystérésis thermostat ballon (°C) | O50: Base : hystérésis thermostat ballon (°C) | R50: Base : hystérésis thermostat ballon (°C)
B51: 34 | C51: 3 | D51: 39 | I51: Base : hauteur échangeur (%) | L51: Base : hauteur échangeur (%) | O51: Base : hauteur échangeur (%) | R51: Base : hauteur échangeur (%)
B52: 35 | C52: 3 | D52: 40 | I52: Base : n° zone régulation | L52: Base : n° zone régulation | O52: Base : n° zone régulation | R52: Base : n° zone régulation
B53: 36 | C53: 3 | D53: 41 | I53: Cogénération | L53: Cogénération | O53: Cogénération | R53: Cogénération
B54: 37 | C54: 3 | D54: 42 | I54: Générateur : ballon | L54: Générateur : ballon | O54: Générateur : ballon | R54: Générateur : ballon
B55: 38 | C55: 3 | D55: 43 | I55: Référence | L55: Référence | O55: Référence | R55: Référence
B56: 39 | C56: 3 | D56: 44 | I56: Production du générateur | L56: Production du générateur | O56: Production du générateur | R56: Production du générateur
B57: 40 | C57: 3 | D57: 45 | I57: Type de générateur | L57: Type de générateur | O57: Type de générateur | R57: Type de générateur
B58: 41 | C58: 3 | D58: 46 | I58: Référence produit | L58: Référence produit | O58: Référence produit | R58: Référence produit
B59: 42 | C59: 3 | D59: 47 | I59: Caractéristique | L59: Caractéristique | O59: Caractéristique | R59: Caractéristique
B60: 43 | C60: 3 | D60: 48 | I60: Type de ballon solaire | L60: Type de ballon solaire | O60: Type de ballon solaire | R60: Type de ballon solaire
B61: 44 | C61: 3 | D61: 49 | I61: Appoint intégré | L61: Appoint intégré | O61: Appoint intégré | R61: Appoint intégré
B62: 45 | C62: 3 | D62: 50 | I62: Volume du ballon (l) | L62: Volume du ballon (l) | O62: Volume du ballon (l) | R62: Volume du ballon (l)
B63: 46 | C63: 3 | D63: 51 | I63: Type de pertes thermiques | L63: Type de pertes thermiques | O63: Type de pertes thermiques | R63: Type de pertes thermiques
B64: 47 | C64: 3 | D64: 52 | I64: Type de ballon | L64: Type de ballon | O64: Type de ballon | R64: Type de ballon
B65: 48 | C65: 3 | D65: 53 | I65: Pertes thermiques ballon (W/K) | L65: Pertes thermiques ballon (W/K) | O65: Pertes thermiques ballon (W/K) | R65: Pertes thermiques ballon (W/K)
B66: 49 | C66: 3 | D66: 54 | I66: Température maxi du ballon (°C) | L66: Température maxi du ballon (°C) | O66: Température maxi du ballon (°C) | R66: Température maxi du ballon (°C)
B67: 50 | C67: 3 | D67: 55 | I67: Gestion du thermostat ballon | L67: Gestion du thermostat ballon | O67: Gestion du thermostat ballon | R67: Gestion du thermostat ballon
B68: 51 | C68: 3 | D68: 56 | I68: Base : hystérésis thermostat ballon (°C) | L68: Base : hystérésis thermostat ballon (°C) | O68: Base : hystérésis thermostat ballon (°C) | R68: Base : hystérésis thermostat ballon (°C)
B69: 52 | C69: 3 | D69: 57 | I69: Base : hauteur échangeur (%) | L69: Base : hauteur échangeur (%) | O69: Base : hauteur échangeur (%) | R69: Base : hauteur échangeur (%)
B70: 53 | C70: 3 | D70: 58 | I70: Base : n° zone régulation | L70: Base : n° zone régulation | O70: Base : n° zone régulation | R70: Base : n° zone régulation
B71: 54 | C71: 3 | D71: 59 | I71: Appoint : gestion du thermostat ballon | L71: Appoint : gestion du thermostat ballon | O71: Appoint : gestion du thermostat ballon | R71: Appoint : gestion du thermostat ballon
B72: 55 | C72: 3 | D72: 60 | I72: Appoint : prise en compte de l'hystérésis | L72: Appoint : prise en compte de l'hystérésis | O72: Appoint : prise en compte de l'hystérésis | R72: Appoint : prise en compte de l'hystérésis
B73: 56 | C73: 3 | D73: 61 | I73: Appoint : hystérésis thermostat ballon (°C) | L73: Appoint : hystérésis thermostat ballon (°C) | O73: Appoint : hystérésis thermostat ballon (°C) | R73: Appoint : hystérésis thermostat ballon (°C)
B74: 57 | C74: 3 | D74: 62 | I74: Appoint : hauteur échangeur (%) | L74: Appoint : hauteur échangeur (%) | O74: Appoint : hauteur échangeur (%) | R74: Appoint : hauteur échangeur (%)
B75: 58 | C75: 3 | D75: 63 | I75: Appoint : n° zone élément chauffant | L75: Appoint : n° zone élément chauffant | O75: Appoint : n° zone élément chauffant | R75: Appoint : n° zone élément chauffant
B76: 59 | C76: 3 | D76: 64 | I76: Appoint : n° zone régulation | L76: Appoint : n° zone régulation | O76: Appoint : n° zone régulation | R76: Appoint : n° zone régulation
B77: 60 | C77: 3 | D77: 65 | I77: Appoint : Fraction du ballon chauffée par l'appoint. | L77: Appoint : Fraction du ballon chauffée par l'appoint. | O77: Appoint : Fraction du ballon chauffée par l'appoint. | R77: Appoint : Fraction du ballon chauffée par l'appoint.
B78: 61 | C78: 3 | D78: 66 | I78: Fraction appoint | L78: Fraction appoint | O78: Fraction appoint | R78: Fraction appoint
B79: 62 | C79: 3 | D79: 67 | I79: Génération : chaudière | J79: NA | L79: Génération : chaudière | M79: NA | O79: Génération : chaudière | P79: NA | R79: Génération : chaudière
B80: 63 | C80: 3 | D80: 68 | I80: Appellation | J80: NA | L80: Appellation | M80: NA | O80: Appellation | P80: NA | R80: Appellation
B81: 64 | C81: 3 | D81: 69 | I81: Mode de fonctionnement | J81: NA | L81: Mode de fonctionnement | M81: NA | O81: Mode de fonctionnement | P81: NA | R81: Mode de fonctionnement
B82: 65 | C82: =IF(B82>$D$620+$E$620,3,IF(B82>$D$620,2,1)) -> 3 | D82: 70 | E82: ="'"&INDEX($D$610:$F$610,1,$C82)&"'!"&ADDRESS($D82,INDEX($D$612:$F$612,$C82),4,TRUE,) ->  | F82: ="'"&INDEX($D$610:$F$610,1,$C82)&"'!"&ADDRESS($D82,INDEX($D$615:$F$615,1,$C82),4,TRUE,) ->  | I82: Raccordement générateurs entre eux | J82: NA | L82: Raccordement générateurs entre eux | M82: NA | O82: Raccordement générateurs entre eux | P82: NA | R82: Raccordement générateurs entre eux
B83: 66 | C83: =IF(B83>$D$620+$E$620,3,IF(B83>$D$620,2,1)) -> 3 | D83: =IF(C83>C82,8,D82+1) -> 71 | H83: =INDIRECT($E83) ->  | I83: Raccordement réseaux de distribution | J83: NA | K83: =INDIRECT($E83) ->  | L83: Raccordement réseaux de distribution | M83: NA | N83: =INDIRECT($E83) ->  | O83: Raccordement réseaux de distribution | P83: NA | Q83: =INDIRECT($E83) ->  | R83: Raccordement réseaux de distribution | S83: =INDIRECT($F83) -> 
B84: 67 | C84: 3 | D84: 72 | I84: Emplacement production | J84: NA | L84: Emplacement production | M84: NA | O84: Emplacement production | P84: NA | R84: Emplacement production
B85: 68 | C85: 3 | D85: 73 | I85: Emplacement | J85: NA | L85: Emplacement | M85: NA | O85: Emplacement | P85: NA | R85: Emplacement
B86: 69 | C86: 3 | D86: 74 | I86: Distributions intergroupes | J86: NA | L86: Distributions intergroupes | M86: NA | O86: Distributions intergroupes | P86: NA | R86: Distributions intergroupes
B87: 70 | C87: 3 | D87: 75 | I87: Gestion de température en chauffage | J87: NA | L87: Gestion de température en chauffage | M87: NA | O87: Gestion de température en chauffage | P87: NA | R87: Gestion de température en chauffage
B88: 71 | C88: 3 | D88: 76 | I88: Gestion de température en refroidissement | J88: NA | L88: Gestion de température en refroidissement | M88: NA | O88: Gestion de température en refroidissement | P88: NA | R88: Gestion de température en refroidissement
B89: 72 | C89: 3 | D89: 77 | I89: Production ECS instantanée | J89: NA | L89: Production ECS instantanée | M89: NA | O89: Production ECS instantanée | P89: NA | R89: Production ECS instantanée
B90: 73 | C90: 3 | D90: 78 | I90: Température de fonctionnement ECS instantanée (°C) | J90: NA | L90: Température de fonctionnement ECS instantanée (°C) | M90: NA | O90: Température de fonctionnement ECS instantanée (°C) | P90: NA | R90: Température de fonctionnement ECS instantanée (°C)
B91: 74 | C91: 3 | D91: 79 | I91: Type de rendement (STD) | J91: NA | L91: Type de rendement (STD) | M91: NA | O91: Type de rendement (STD) | P91: NA | R91: Type de rendement (STD)
B92: 75 | C92: 3 | D92: 80 | I92: Composant : chaudière | J92: NA | L92: Composant : chaudière | M92: NA | O92: Composant : chaudière | P92: NA | R92: Composant : chaudière
B93: 76 | C93: 3 | D93: 81 | I93: Appellation | J93: NA | L93: Appellation | M93: NA | O93: Appellation | P93: NA | R93: Appellation
B94: 77 | C94: 3 | D94: 82 | I94: Type de composant | J94: NA | L94: Type de composant | M94: NA | O94: Type de composant | P94: NA | R94: Type de composant
B95: 78 | C95: 3 | D95: 83 | I95: Lien catalogue | J95: NA | L95: Lien catalogue | M95: NA | O95: Lien catalogue | P95: NA | R95: Lien catalogue
B96: 79 | C96: 3 | D96: 84 | I96: Nombre identiques | J96: NA | L96: Nombre identiques | M96: NA | O96: Nombre identiques | P96: NA | R96: Nombre identiques
B97: 80 | C97: 3 | D97: 85 | I97: Indice de priorité | J97: NA | L97: Indice de priorité | M97: NA | O97: Indice de priorité | P97: NA | R97: Indice de priorité
B98: 81 | C98: 3 | D98: 86 | I98: Indice de priorité en ECS | J98: NA | L98: Indice de priorité en ECS | M98: NA | O98: Indice de priorité en ECS | P98: NA | R98: Indice de priorité en ECS
B99: 82 | C99: 3 | D99: 87 | I99: Composant "boucle solaire" du système de génération solaire | J99: =INDIRECT($F99) ->  | L99: Composant "boucle solaire" du système de génération solaire | M99: =INDIRECT($F99) ->  | O99: Composant "boucle solaire" du système de génération solaire | P99: NA | R99: Composant "boucle solaire" du système de génération solaire | S99: =INDIRECT($F99) -> 
B100: 83 | C100: 3 | D100: 88 | I100: Appellation | L100: Appellation | O100: Appellation | P100: NA | R100: Appellation
B101: 84 | C101: 3 | D101: 89 | I101: Type de composant | L101: Type de composant | O101: Type de composant | P101: NA | R101: Type de composant
B102: 85 | C102: 3 | D102: 90 | I102: Référence du produit | L102: Référence du produit | O102: Référence du produit | P102: NA | R102: Référence du produit
B103: 86 | C103: 3 | D103: 91 | I103: Superficie capteurs (m2) | L103: Superficie capteurs (m2) | O103: Superficie capteurs (m2) | P103: NA | R103: Superficie capteurs (m2)
B104: 87 | C104: 3 | D104: 92 | I104: Azimut capteurs (°) | L104: Azimut capteurs (°) | O104: Azimut capteurs (°) | P104: NA | R104: Azimut capteurs (°)
B105: 88 | C105: 3 | D105: 93 | I105: Inclinaison capteurs (°) | L105: Inclinaison capteurs (°) | O105: Inclinaison capteurs (°) | P105: NA | R105: Inclinaison capteurs (°)
B106: 89 | C106: 3 | D106: 94 | I106: Régulation boucle solaire | L106: Régulation boucle solaire | O106: Régulation boucle solaire | P106: NA | R106: Régulation boucle solaire
B107: 90 | C107: 3 | D107: 95 | I107: Statut du rendement optique | L107: Statut du rendement optique | O107: Statut du rendement optique | P107: NA | R107: Statut du rendement optique
B108: 91 | C108: 3 | D108: 96 | I108: Rendement optique du capteur solaire (%) | L108: Rendement optique du capteur solaire (%) | O108: Rendement optique du capteur solaire (%) | P108: NA | R108: Rendement optique du capteur solaire (%)
B109: 92 | C109: 3 | D109: 97 | I109: Coefficient pertes du premier ordre du capteur (a1) (W/m2.K) | L109: Coefficient pertes du premier ordre du capteur (a1) (W/m2.K) | O109: Coefficient pertes du premier ordre du capteur (a1) (W/m2.K) | P109: NA | R109: Coefficient pertes du premier ordre du capteur (a1) (W/m2.K)
B110: 93 | C110: 3 | D110: 98 | I110: Coefficient pertes du second ordre du capteur (a2) (W/m2.K2) | L110: Coefficient pertes du second ordre du capteur (a2) (W/m2.K2) | O110: Coefficient pertes du second ordre du capteur (a2) (W/m2.K2) | P110: NA | R110: Coefficient pertes du second ordre du capteur (a2) (W/m2.K2)
B111: 94 | C111: 3 | D111: 99 | I111: Pertes boucle solaire (partie extérieure) (W/K) | L111: Pertes boucle solaire (partie extérieure) (W/K) | O111: Pertes boucle solaire (partie extérieure) (W/K) | P111: NA | R111: Pertes boucle solaire (partie extérieure) (W/K)
B112: 95 | C112: 3 | D112: 100 | I112: Pertes boucle solaire (partie intérieure) (W/K) | L112: Pertes boucle solaire (partie intérieure) (W/K) | O112: Pertes boucle solaire (partie intérieure) (W/K) | P112: NA | R112: Pertes boucle solaire (partie intérieure) (W/K)
B113: 96 | C113: 3 | D113: 101 | I113: Présence d'un échangeur | L113: Présence d'un échangeur | O113: Présence d'un échangeur | P113: NA | R113: Présence d'un échangeur
B114: 97 | C114: 3 | D114: 102 | I114: Facteur angle d'incidence (%) | L114: Facteur angle d'incidence (%) | O114: Facteur angle d'incidence (%) | P114: NA | R114: Facteur angle d'incidence (%)
B115: 98 | C115: 3 | D115: 103 | I115: Puissance nominale de la pompe (W) | L115: Puissance nominale de la pompe (W) | O115: Puissance nominale de la pompe (W) | P115: NA | R115: Puissance nominale de la pompe (W)
B116: 99 | C116: 3 | D116: 104 | I116: Composant "ballon de stockage" du système de génération solaire | L116: Composant "ballon de stockage" du système de génération solaire | O116: Composant "ballon de stockage" du système de génération solaire | P116: NA | R116: Composant "ballon de stockage" du système de génération solaire
B117: 100 | C117: 3 | D117: 105 | I117: Appellation | L117: Appellation | O117: Appellation | P117: NA | R117: Appellation
B118: 101 | C118: 3 | D118: 106 | I118: Type de composant | L118: Type de composant | O118: Type de composant | P118: NA | R118: Type de composant
B119: 102 | C119: 3 | D119: 107 | I119: Lien catalogue | L119: Lien catalogue | O119: Lien catalogue | P119: NA | R119: Lien catalogue
B120: 103 | C120: 3 | D120: 108 | I120: Source ballon | L120: Source ballon | O120: Source ballon | P120: NA | R120: Source ballon
B121: 104 | C121: 3 | D121: 109 | I121: Source appoint | L121: Source appoint | O121: Source appoint | P121: NA | R121: Source appoint
B122: 105 | C122: 3 | D122: 110 | I122: Fraction appoint | L122: Fraction appoint | O122: Fraction appoint | P122: NA | R122: Fraction appoint
B123: 106 | C123: 3 | D123: 111 | I123: Nombre identiques | L123: Nombre identiques | O123: Nombre identiques | P123: NA | R123: Nombre identiques
B124: 107 | C124: 3 | D124: 112 | I124: Indice de priorité en ECS | L124: Indice de priorité en ECS | O124: Indice de priorité en ECS | P124: NA | R124: Indice de priorité en ECS
B125: 108 | C125: 3 | D125: 113 | I125: Générateur : résistance électrique | L125: Générateur : résistance électrique | O125: Générateur : résistance électrique | P125: NA | R125: Générateur : résistance électrique
B126: 109 | C126: 3 | D126: 114 | I126: Production du générateur | L126: Production du générateur | O126: Production du générateur | P126: NA | R126: Production du générateur
B127: 110 | C127: 3 | D127: 115 | I127: Type de générateur | L127: Type de générateur | O127: Type de générateur | P127: NA | R127: Type de générateur
B128: 111 | C128: 3 | D128: 116 | I128: Puissance nominale en chaud (kW) | L128: Puissance nominale en chaud (kW) | O128: Puissance nominale en chaud (kW) | P128: NA | R128: Puissance nominale en chaud (kW)
B129: 112 | C129: 3 | D129: 117 | I129: Composant "appoint" du système de génération solaire | L129: Composant "appoint" du système de génération solaire | O129: Composant "appoint" du système de génération solaire | P129: NA | R129: Composant "appoint" du système de génération solaire
B130: 113 | C130: 3 | D130: 118 | I130: Appellation | L130: Appellation | O130: Appellation | P130: NA | R130: Appellation
B131: 114 | C131: 3 | D131: 119 | I131: Type de composant | L131: Type de composant | O131: Type de composant | P131: NA | R131: Type de composant
B132: 115 | C132: 3 | D132: 120 | I132: Lien catalogue | L132: Lien catalogue | O132: Lien catalogue | P132: NA | R132: Lien catalogue
B133: 116 | C133: 3 | D133: 121 | I133: Nombre identiques | L133: Nombre identiques | O133: Nombre identiques | P133: NA | R133: Nombre identiques
B134: 117 | C134: 3 | D134: 122 | I134: Indice de priorité en ECS | L134: Indice de priorité en ECS | O134: Indice de priorité en ECS | P134: NA | R134: Indice de priorité en ECS
B135: 118 | C135: 3 | D135: 123 | I135: Emission | J135: NA | L135: Emission | M135: NA | O135: Emission | P135: NA | R135: Emission | S135: NA
B136: 119 | C136: 3 | D136: 124 | I136: Gestion système de chauffage | J136: NA | L136: Gestion système de chauffage | M136: NA | O136: Gestion système de chauffage | P136: NA | R136: Gestion système de chauffage | S136: NA
B137: 120 | C137: 3 | D137: 125 | I137: Mode de régulation de fonctionnement | J137: NA | L137: Mode de régulation de fonctionnement | M137: NA | O137: Mode de régulation de fonctionnement | P137: NA | R137: Mode de régulation de fonctionnement | S137: NA
B138: 121 | C138: 3 | D138: 126 | I138: Température départ en chauffage (°C) | J138: NA | L138: Température départ en chauffage (°C) | M138: NA | O138: Température départ en chauffage (°C) | P138: NA | R138: Température départ en chauffage (°C) | S138: NA
B139: 122 | C139: 3 | D139: 127 | I139: Chute de température en chauffage (°C) | J139: NA | L139: Chute de température en chauffage (°C) | M139: NA | O139: Chute de température en chauffage (°C) | P139: NA | R139: Chute de température en chauffage (°C) | S139: NA
B140: 123 | C140: 3 | D140: 128 | I140: Débit volumique nominal en chauffage (m3/h) | J140: NA | L140: Débit volumique nominal en chauffage (m3/h) | M140: NA | O140: Débit volumique nominal en chauffage (m3/h) | P140: NA | R140: Débit volumique nominal en chauffage (m3/h) | S140: NA
B141: 124 | C141: 3 | D141: 129 | I141: Mode régulation du circulateur | J141: NA | L141: Mode régulation du circulateur | M141: NA | O141: Mode régulation du circulateur | P141: NA | R141: Mode régulation du circulateur | S141: NA
B142: 125 | C142: 3 | D142: 130 | I142: Débit volumique résiduel en chauffage (m3/h) | J142: NA | L142: Débit volumique résiduel en chauffage (m3/h) | M142: NA | O142: Débit volumique résiduel en chauffage (m3/h) | P142: NA | R142: Débit volumique résiduel en chauffage (m3/h) | S142: NA
B143: 126 | C143: 3 | D143: 131 | I143: Puissance circulateur en chauffage (W) | J143: NA | L143: Puissance circulateur en chauffage (W) | M143: NA | O143: Puissance circulateur en chauffage (W) | P143: NA | R143: Puissance circulateur en chauffage (W) | S143: NA
B144: 127 | C144: 3 | D144: 132 | I144: Option en fonction du projet accessoire Moduzone 11 C & G | J144: NA | L144: Option en fonction du projet accessoire Moduzone 11 C & G | M144: NA | O144: Option en fonction du projet accessoire Moduzone 11 C & G | P144: NA | R144: Option en fonction du projet accessoire Moduzone 11 C & G | S144: NA
B145: 128 | C145: 3 | D145: 133 | I145: Emission | J145: NA | L145: Emission | M145: NA | O145: Emission | P145: NA | R145: Emission | S145: NA
B146: 129 | C146: 3 | D146: 134 | E146: ="'"&INDEX($D$610:$F$610,1,$C146)&"'!"&ADDRESS($D146,INDEX($D$612:$F$612,$C146),4,TRUE,) ->  | F146: ="'"&INDEX($D$610:$F$610,1,$C146)&"'!"&ADDRESS($D146,INDEX($D$615:$F$615,1,$C146),4,TRUE,) ->  | I146: Puissance circulateur en chauffage (W) à ajouter | J146: NA | L146: Puissance circulateur en chauffage (W) à ajouter | M146: NA | O146: Puissance circulateur en chauffage (W) à ajouter | P146: NA | R146: Puissance circulateur en chauffage (W) à ajouter | S146: NA
B147: 130 | C147: =IF(B147>$D$620+$E$620,3,IF(B147>$D$620,2,1)) -> 3 | D147: =IF(C147>C146,8,D146+1) -> 135 | H147: =INDIRECT($E147) ->  | I147: Composant "boucle solaire" du système de génération solaire | J147: NA | K147: =INDIRECT($E147) ->  | L147: Générateur : PAC ou CETI | M147: =INDIRECT($F147) ->  | N147: =INDIRECT($E147) ->  | O147: Générateur : PAC ou CETI | P147: =INDIRECT($F147) ->  | Q147: =INDIRECT($E147) ->  | R147: Générateur : PAC ou CETI | S147: =INDIRECT($F147) -> 
B148: 131 | C148: 3 | D148: 136 | I148: Appellation | J148: NA | L148: Référence | O148: Référence | R148: Référence
B149: 132 | C149: 3 | D149: 137 | I149: Type de composant | J149: NA | L149: Production de générateur | O149: Production de générateur | R149: Production de générateur
B150: 133 | C150: 3 | D150: 138 | I150: Référence du produit | J150: NA | L150: Type de générateur | O150: Type de générateur | R150: Type de générateur
B151: 134 | C151: 3 | D151: 139 | I151: Superficie d'un capteur (m2) | J151: NA | L151: Référence Produit | O151: Référence Produit | R151: Référence Produit
B152: 135 | C152: 3 | D152: 140 | I152: Nombre de capteurs | J152: NA | L152: Caractéristiques | O152: Caractéristiques | R152: Caractéristiques
B153: 136 | C153: 3 | D153: 141 | I153: Azimut capteurs (°) | J153: NA | L153: Energie | O153: Energie | R153: Energie
B154: 137 | C154: 3 | D154: 142 | I154: Inclinaison capteurs (°) | J154: NA | L154: Système thermodynamique chauffage | O154: Système thermodynamique chauffage | R154: Système thermodynamique chauffage
B155: 138 | C155: 3 | D155: 143 | I155: Régulation boucle solaire | J155: NA | L155: Statut des données | O155: Statut des données | R155: Statut des données
B156: 139 | C156: 3 | D156: 144 | I156: Statut du rendement optique | J156: NA | L156: Statut des données en ECS | O156: Statut des données en ECS | R156: Statut des données en ECS
B157: 140 | C157: 3 | D157: 145 | I157: Rendement optique du capteur solaire (%) | J157: NA | L157: Températures aval chauffage (°C) | O157: Températures aval chauffage (°C) | R157: Températures aval chauffage (°C)
B158: 141 | C158: 3 | D158: 146 | I158: Coefficient pertes du premier ordre du capteur (a1) (W/m2.K) | J158: NA | L158: Températures amont chauffage (°C) | O158: Températures amont chauffage (°C) | R158: Températures amont chauffage (°C)
B159: 142 | C159: 3 | D159: 147 | I159: Coefficient pertes du second ordre du capteur (a2) (W/m2.K2) | J159: NA | L159: Températures aval ECS (°C) | O159: Températures aval ECS (°C) | R159: Températures aval ECS (°C)
B160: 143 | C160: 3 | D160: 148 | I160: Pertes boucle solaire (partie extérieure) (W/K) | J160: NA | L160: Températures amont ECS (°C) | O160: Températures amont ECS (°C) | R160: Températures amont ECS (°C)
B161: 144 | C161: 3 | D161: 149 | I161: Pertes boucle solaire (partie intérieure) (W/K) | J161: NA | L161: COP (saisie du tableau de valeurs) | O161: COP (saisie du tableau de valeurs) | R161: COP (saisie du tableau de valeurs)
B162: 145 | C162: 3 | D162: 150 | I162: Présence d'un échangeur | J162: NA | L162: Matrice des performances | O162: Matrice des performances | R162: Matrice des performances
B163: 146 | C163: 3 | D163: 151 | I163: Facteur angle d'incidence (%) | J163: NA | L163: Température aval °C (source chaude) | O163: Température aval °C (source chaude) | R163: Température aval °C (source chaude)
B164: 147 | C164: 3 | D164: 152 | I164: Puissance nominale de la pompe (W) | J164: NA | L164: 23,5 °C | O164: 23,5 °C | R164: 23,5 °C
B165: 148 | C165: 3 | D165: 153 | I165: Générateur : ballon | J165: =INDIRECT($F165) ->  | L165: 32,5 °C | O165: 32,5 °C | R165: 32,5 °C
B166: 149 | C166: 3 | D166: 154 | I166: Référence | J166: =INDIRECT($F166) ->  | L166: 42,5 °C | O166: 42,5 °C | R166: 42,5 °C
B167: 150 | C167: 3 | D167: 155 | I167: Production du générateur | J167: =INDIRECT($F167) ->  | L167: 51 °C | O167: 51 °C | R167: 51 °C
B168: 151 | C168: 3 | D168: 156 | I168: Type de générateur | J168: =INDIRECT($F168) ->  | L168: 60 °C | O168: 60 °C | R168: 60 °C
B169: 152 | C169: 3 | D169: 157 | I169: Référence produit | J169: =J605 -> FES1 150 BiD & FES1 150 B M + GHSD 8 | L169: COP ECS (saisie du tableau de valeurs) | O169: COP ECS (saisie du tableau de valeurs) | R169: COP ECS (saisie du tableau de valeurs)
B170: 153 | C170: 3 | D170: 158 | I170: Caractéristique | J170: =INDIRECT($F170) ->  | L170: Matrice des performances | O170: Matrice des performances | R170: Matrice des performances
B171: 154 | C171: 3 | D171: 159 | I171: Type de ballon solaire | L171: Température aval °C (source chaude) | O171: Température aval °C (source chaude) | R171: Température aval °C (source chaude)
B172: 155 | C172: 3 | D172: 160 | I172: Appoint intégré | L172: 45 °C | O172: 45 °C | R172: 45 °C
B173: 156 | C173: 3 | D173: 161 | I173: Puissance électrique (kW) | L173: Puissances absorbées (saisie du tableau de valeurs) | O173: Puissances absorbées (saisie du tableau de valeurs) | R173: Puissances absorbées (saisie du tableau de valeurs)
B174: 157 | C174: 3 | D174: 162 | I174: Volume du ballon (l) | L174: Matrice Puissance absorbées (en kW) | O174: Matrice Puissance absorbées (en kW) | R174: Matrice Puissance absorbées (en kW)
B175: 158 | C175: 3 | D175: 163 | I175: Type de pertes thermiques | L175: Température aval °C (source chaude) | O175: Température aval °C (source chaude) | R175: Température aval °C (source chaude)
B176: 159 | C176: 3 | D176: 164 | I176: Type de ballon | L176: 23,5 °C | O176: 23,5 °C | R176: 23,5 °C
B177: 160 | C177: 3 | D177: 165 | I177: Pertes thermiques ballon (W/K) | L177: 32,5 °C | O177: 32,5 °C | R177: 32,5 °C
B178: 161 | C178: 3 | D178: 166 | I178: Temp. max. ballon (° C) | L178: 42,5 °C | O178: 42,5 °C | R178: 42,5 °C
B179: 162 | C179: 3 | D179: 167 | I179: Gestion du thermostat ballon | L179: 51 °C | O179: 51 °C | R179: 51 °C
B180: 163 | C180: 3 | D180: 168 | I180: Base : hystérésis thermostat ballon (° C) | L180: 60 °C | O180: 60 °C | R180: 60 °C
B181: 164 | C181: 3 | D181: 169 | I181: Base : hauteur échangeur (%) | L181: Puissances absorbées en ECS (saisie du tableau de valeurs) | O181: Puissances absorbées en ECS (saisie du tableau de valeurs) | R181: Puissances absorbées en ECS (saisie du tableau de valeurs)
B182: 165 | C182: 3 | D182: 170 | I182: Base : n° zone régulation | L182: Matrice Puissance absorbées (en kW) | O182: Matrice Puissance absorbées (en kW) | R182: Matrice Puissance absorbées (en kW)
B183: 166 | C183: 3 | D183: 171 | I183: Appoint : gestion du thermostat | L183: Température aval °C (source chaude) | O183: Température aval °C (source chaude) | R183: Température aval °C (source chaude)
B184: 167 | C184: 3 | D184: 172 | I184: Appoint : prise en compte de l'hystérésis | L184: 45 °C | O184: 45 °C | R184: 45 °C
B185: 168 | C185: 3 | D185: 173 | I185: Appoint : hystérésis thermostat ballon (°C) | L185: Indicateurs de certification (saisie du tableau de valeurs) | O185: Indicateurs de certification (saisie du tableau de valeurs) | R185: Indicateurs de certification (saisie du tableau de valeurs)
B186: 169 | C186: 3 | D186: 174 | I186: Appoint : hauteur échangeur (%) | L186: Matrice des indicateurs de certification | O186: Matrice des indicateurs de certification | R186: Matrice des indicateurs de certification
B187: 170 | C187: 3 | D187: 175 | I187: Appoint : n° zone élément chauffant | L187: Température aval °C (source chaude) | O187: Température aval °C (source chaude) | R187: Température aval °C (source chaude)
B188: 171 | C188: 3 | D188: 176 | I188: Appoint : n° zone régulation | L188: 23,5 °C | O188: 23,5 °C | R188: 23,5 °C
B189: 172 | C189: 3 | D189: 177 | I189: Appoint : fraction du ballon chauffé | L189: 32,5 °C | O189: 32,5 °C | R189: 32,5 °C
B190: 173 | C190: 3 | D190: 178 | I190: Générateur : résistance électrique | L190: 42,5 °C | O190: 42,5 °C | R190: 42,5 °C
B191: 174 | C191: 3 | D191: 179 | I191: Production du générateur | L191: 51 °C | O191: 51 °C | R191: 51 °C
B192: 175 | C192: 3 | D192: 180 | I192: Type de générateur | L192: 60 °C | O192: 60 °C | R192: 60 °C
B193: 176 | C193: 3 | D193: 181 | I193: Puissance nominale en chaud (kW) | L193: Indicateurs de certification en ECS (saisie du tableau de valeurs) | O193: Indicateurs de certification en ECS (saisie du tableau de valeurs) | R193: Indicateurs de certification en ECS (saisie du tableau de valeurs)
B194: 177 | C194: 3 | D194: 182 | I194: Composant "ballon de stockage" du système de génération solaire | J194: NA | L194: Matrice des indicateurs de certification | O194: Matrice des indicateurs de certification | R194: Matrice des indicateurs de certification
B195: 178 | C195: 3 | D195: 183 | I195: Appellation | J195: NA | L195: Température aval °C (source chaude) | O195: Température aval °C (source chaude) | R195: Température aval °C (source chaude)
B196: 179 | C196: 3 | D196: 184 | I196: Type de composant | J196: NA | L196: 45 °C | O196: 45 °C | R196: 45 °C
B197: 180 | C197: 3 | D197: 185 | I197: Lien catalogue | J197: NA | L197: Fin matrice | O197: Fin matrice | R197: Fin matrice
B198: 181 | C198: 3 | D198: 186 | I198: Source ballon | J198: NA | L198: Statut pivot COP ECS | O198: Statut pivot COP ECS | R198: Statut pivot COP ECS
B199: 182 | C199: 3 | D199: 187 | I199: Appoint | J199: NA | L199: COP ECS | O199: COP ECS | R199: COP ECS
B200: 183 | C200: 3 | D200: 188 | I200: Source appoint | J200: NA | L200: Puissances absorbées en ECS | O200: Puissances absorbées en ECS (kW) | R200: Puissances absorbées en ECS (kW)
... 310 more rows

Sheet P systemes (hidden)
H1: Désignation gamme SD | J1: ='CW systemes'!J1 -> CESI optimisé | K1: Désignation gamme SD | M1: ='CW systemes'!M1 -> PAC Hybride (PAC > 5 kW) | N1: Désignation gamme SD | P1: ='CW systemes'!P1 -> CETI optimisé | Q1: Désignation gamme SD | S1: ='CW systemes'!S1 -> PAC Hybride Titre V (PAC < 5 kW)
A2: Feuille de référence | H2: Désignation gamme V | J2: =J1 -> CESI optimisé | K2: Désignation gamme V | M2: =M1 -> PAC Hybride (PAC > 5 kW) | N2: Désignation gamme V | P2: =P1 -> CETI optimisé | Q2: Désignation gamme V | S2: =S1 -> PAC Hybride Titre V (PAC < 5 kW)
H3: Désignation modèle SD | J3: ='CW systemes'!J3 -> CESI optimisé | K3: Désignation modèle SD | M3: ='CW systemes'!M3 -> PAC Hybride (PAC > 5 kW) | N3: Désignation modèle SD | P3: ='CW systemes'!P3 -> CETI optimisé | Q3: Désignation modèle SD | S3: ='CW systemes'!S3 -> PAC Hybride Titre V (PAC < 5 kW)
H4: Désignation modèle V | J4: =J3 -> CESI optimisé | K4: Désignation modèle V | M4: =M3 -> PAC Hybride (PAC > 5 kW) | N4: Désignation modèle V | P4: =P3 -> CETI optimisé | Q4: Désignation modèle V | S4: =S3 -> PAC Hybride Titre V (PAC < 5 kW)
J5: ='CW systemes'!J5 -> Chauffe-eau solaire individuel en série avec une chaudière mixte instantanée ou micro-accumulée. | M5: ='CW systemes'!M5 -> Système bi-énergie combinant deux générateurs : une pompe à chaleur et une chaudière. Classe d'efficacité énergétique : A++ | P5: ='CW systemes'!P5 -> Chauffe-eau thermodynamique individuel en série avec une chaudière mixte instantanée ou micro-accumulée. | S5: ='CW systemes'!S5 -> Saisie suivant le Titre V arrêté du 29 octobre 2012. Système bi-énergie combinant deux générateurs : une pompe à chaleur et une chaudière. Classe d'efficacité énergétique : A++
I6: =IF('P systemes'!J3<>Calculs!$C$7,"","Champs RE 2020") ->  | J6: Valeurs | L6: =IF('P systemes'!M3<>Calculs!$C$7,"","Champs RE 2020") ->  | M6: Valeurs | O6: =IF('P systemes'!P3<>Calculs!$C$7,"","Champs RE 2020") ->  | P6: Valeurs | R6: =IF('P systemes'!S3<>Calculs!$C$7,"","Champs RE 2020") ->  | S6: Valeurs
B7: Compteur | C7: Modéle + 1 | D7: N° de ligne
I8: Arborescence de la génération | J8: - | M8: NA | O8: Arborescence de la génération | P8: =INDIRECT($F145) ->  | R8: Arborescence Bâtiments | S8: -
J9: Génération | M9: NA | P9: =INDIRECT($F146) ->  | S9: =INDIRECT($F144) -> 
J10: ="[____ Générateur chaudière : "&J601 -> [____ Générateur chaudière : ThemaPlus Condens MA 26-CS/1 (N-FR) | M10: NA | P10: ="[____ Chaudière : "&INDIRECT($F37) ->  | R10: ="''Clic droit'' sur ''"&S9&"'' ---->" ->  | S10: Ajouter un Titre V
J11: =" [____ CESI : "&J603 -> [____ CESI : FES1 150 BiD & FES1 150 B M + GHSD 8 | M11: NA | P11: =INDIRECT($F148) ->  | R11: Arborescence Bâtiments | S11: -
J12: NA | M12: NA | P12: =INDIRECT($F149) ->  | S12: =INDIRECT($F144) -> 
J13: NA | M13: NA | P13: NA | S13: [____ Titre V n°1
J14: NA | M14: NA | P14: NA | R14: Titre V n°1 | S14: -
J15: NA | M15: NA | P15: NA | R15: Choix | S15: Générateur Hybride - Arrêté du 29 octobre 2012
J16: NA | M16: NA | P16: NA | R16: Générateur Hybride | S16: /
J17: NA | M17: NA | P17: NA | R17: Régulation | S17: Uniquement sur énergie primaire
J18: NA | M18: NA | P18: NA | R18: La PAC dégivre | S18: Oui
J19: NA | M19: NA | P19: NA | R19: Température de départ chauffage | S19: (en fonction du projet)
J20: NA | M20: NA | P20: NA | R20: COP pivot de la PAC (+7 - 35/30) | S20: 4.7
J21: NA | M21: NA | P21: NA | R21: Température limite Amont PAC | S21: (résultat en fonction de la température de départ chauffage, valeur à reporter au champ "Temp. mini amont en mode chaud où la machine ne fonctionne plus (° C)")
J22: NA | M22: NA | P22: NA | S22: NA
J23: NA | M23: NA | P23: NA | S23: NA
B24: 1 | C24: =IF(B24>$D$620+$E$620,3,IF(B24>$D$620,2,1)) -> 1 | D24: 8 | E24: ="'"&INDEX($D$610:$F$610,1,$C24)&"'!"&ADDRESS($D24,INDEX($D$612:$F$612,$C24),4,TRUE,) ->  | F24: ="'"&INDEX($D$610:$F$610,1,$C24)&"'!"&ADDRESS($D24,INDEX($D$615:$F$615,1,$C24),4,TRUE,) -> 'CW Chaudières'!HG8 | H24: =INDIRECT($E24) ->  | I24: Saisie de la génération | J24: - | K24: =INDIRECT($E24) ->  | L24: Arborescence de la génération | M24: =INDIRECT($F24) -> - | N24: =INDIRECT($E24) ->  | O24: Saisie de la génération | P24: - | Q24: =INDIRECT($E24) ->  | R24: Arborescence de la génération | S24: =INDIRECT($F24) -> -
B25: 2 | C25: 2 | D25: =IF(C25>C24,8,D24+1) -> 8 | F25: 'CW PAC'!CO8 | H25: =INDIRECT($E25) ->  | I25: Services assurés | J25: =INDIRECT($F25) -> - | K25: =INDIRECT($E25) ->  | M25: =INDIRECT($F25) -> - | N25: =INDIRECT($E25) ->  | O25: Services assurés | P25: =INDIRECT($F25) -> - | Q25: =INDIRECT($E25) ->  | S25: =INDIRECT($F25) -> -
B26: 3 | C26: 3 | D26: =IF(C26>C25,8,D25+1) -> 8 | I26: Type de gestion | O26: Type de gestion
B27: 4 | C27: 3 | D27: 9 | I27: Raccordement des générateurs | M27: =" [____ Générateur N°2 : "&M603 -> [____ Générateur N°2 : ThemaPlus Condens MA 26-CS/1 (N-FR) | O27: Raccordement des générateurs | S27: =" [____ Générateur : "&INDIRECT($F180) -> 
B28: 5 | C28: 3 | D28: 10 | I28: Raccordement hydraulique | O28: Raccordement hydraulique
B29: 6 | C29: 3 | D29: 11 | I29: Position de la production | L29: Saisie de la génération | O29: Position de la production | R29: Saisie de la génération
B30: 7 | C30: 3 | D30: 12 | I30: Emplacement de la prod. | L30: Désignation | O30: Emplacement de la prod. | R30: Désignation
B31: 8 | C31: 3 | D31: =IF(C31>C30,8,D30+1) -> 13 | I31: Type de gestion de la température de génération en chauffage | L31: Service assurés | O31: Type de gestion de la température de génération en chauffage | R31: Service assurés
B32: 9 | C32: 3 | D32: 14 | I32: Gestion de la température | L32: type de gestion | O32: Gestion de la température | R32: type de gestion
B33: 10 | C33: 3 | D33: 15 | I33: Température de fonctionnement (°C) | L33: Raccordement des générateurs | O33: Température de fonctionnement (°C) | R33: Raccordement des générateurs
B34: 11 | C34: 3 | D34: 16 | I34: Température de fonctionnement de la génération en ECS | L34: Raccordement hydraulique | O34: Température de fonctionnement de la génération en ECS | R34: Raccordement hydraulique
B35: 12 | C35: 3 | D35: 17 | I35: Température de fonctionnement (°C) | J35: 49 | L35: Position de la production | O35: Température de fonctionnement (°C) | P35: 49 | R35: Position de la production
B36: 13 | C36: 3 | D36: 18 | I36: Saisie du générateur chaudière | J36: - | L36: Emplacement de la prod. | O36: Saisie du générateur chaudière | P36: - | R36: Emplacement de la prod.
B37: 14 | C37: 3 | D37: 19 | I37: Désignation | L37: Liaison à l'espace tampon | O37: Désignation | R37: Liaison à l'espace tampon
B38: 15 | C38: 3 | D38: 20 | I38: Type de générateur | L38: Coef; b du local non chauffé | O38: Type de générateur | R38: Coef; b du local non chauffé
B39: 16 | C39: 3 | D39: 21 | I39: Type de combustible | L39: Type de gestion de la température de génération en chauffage | O39: Type de combustible | R39: Type de gestion de la température de génération en chauffage
B40: 17 | C40: 3 | D40: 22 | I40: Type ventilation du générateur | L40: Gestion de la température | O40: Type ventilation du générateur | R40: Gestion de la température
B41: 18 | C41: 3 | D41: 23 | I41: Service du générateur | L41: Température de fonctionnement de la génération en ECS pour les générateurs instantanés | O41: Service du générateur | R41: Température de fonctionnement de la génération en ECS pour les générateurs instantanés
B42: 19 | C42: 3 | D42: 24 | I42: Existence d'une cogénération | L42: Température de fonctionnement | O42: Existence d'une cogénération | R42: Température de fonctionnement
B43: 20 | C43: 3 | D43: 25 | I43: Performances du générateur | L43: Type de production ECS | O43: Performances du générateur | R43: Type de production ECS
B44: 21 | C44: 3 | D44: 26 | I44: Puissance nominale (kW) | L44: Saisie du générateur PAC | O44: Puissance nominale (kW) | R44: Saisie du générateur PAC
B45: 22 | C45: 3 | D45: 27 | I45: Nbre identique | L45: Désignation | O45: Nbre identique | R45: Désignation
B46: 23 | C46: 3 | D46: 28 | I46: Rendement à la puissance nominale (%) | L46: Type de générateur | O46: Rendement à la puissance nominale (%) | R46: Type de générateur
B47: 24 | C47: 3 | D47: 29 | I47: Valeur | L47: Nombre identique | O47: Valeur | R47: Nombre identique
B48: 25 | C48: 3 | D48: 30 | I48: Pertes à l'arrêt (kW) | L48: Service du généateur | O48: Pertes à l'arrêt (kW) | R48: Service du généateur
B49: 26 | C49: 3 | D49: 31 | I49: Puissance utile intermédiaire (kW) | L49: Caractéristiques | O49: Puissance utile intermédiaire (kW) | R49: Caractéristiques
B50: 27 | C50: 3 | D50: 32 | I50: Rendement à la puissance intermédiaire (%) | L50: Type de système | O50: Rendement à la puissance intermédiaire (%) | R50: Type de système
B51: 28 | C51: 3 | D51: 33 | I51: Valeur | L51: Mode chauffage | O51: Valeur | R51: Mode chauffage
B52: 29 | C52: 3 | D52: 34 | I52: Auxiliaires | L52: Type d'émetteur raccordé | O52: Auxiliaires | R52: Type d'émetteur raccordé
B53: 30 | C53: 3 | D53: 35 | I53: Puissance électrique des auxiliaires à Pn (W) | L53: Fonctionnement du compresseur | O53: Puissance électrique des auxiliaires à Pn (W) | R53: Fonctionnement du compresseur
B54: 31 | C54: 3 | D54: 36 | I54: Puissance électrique des auxiliaires à charge nulle (W) | L54: Statut des données en mode continu | O54: Puissance électrique des auxiliaires à charge nulle (W) | R54: Statut des données en mode continu
B55: 32 | C55: 3 | D55: 37 | I55: Plage de fonctionnement | L55: Pourcentage minimal de charge en fonctionnement continu (%) | O55: Plage de fonctionnement | R55: Pourcentage minimal de charge en fonctionnement continu (%)
B56: 33 | C56: 3 | D56: 38 | I56: Température mini de fonctionnement (°C) | L56: Correction de performance en fonction de la charge minimale | O56: Température mini de fonctionnement (°C) | R56: Correction de performance en fonction de la charge minimale
B57: 34 | C57: 3 | D57: 39 | I57: Température maxi de fonctionnement (°C) | L57: Statut de la part de la puissance des auxiliaires | O57: Température maxi de fonctionnement (°C) | R57: Statut de la part de la puissance des auxiliaires
B58: 35 | C58: 3 | D58: 40 | I58: Stockage et système solaire | L58: Pourcentage de la puissance élec. des auxiliaires dans la puis. élec. totale (%) | O58: Stockage et système solaire | R58: Pourcentage de la puissance élec. des auxiliaires dans la puis. élec. totale (%). Suivant l'application du Titre V générateur hybride | S58: 0
B59: 36 | C59: 3 | D59: 41 | I59: Type de stockage | L59: Puissances de la PAC connues | O59: Type de stockage | R59: Puissances de la PAC connues
B60: 37 | C60: 3 | D60: 42 | I60: Services assurés | L60: Type de limite de température | O60: Services assurés | R60: Type de limite de température
B61: 38 | C61: 3 | D61: 43 | I61: Nombre d'assemblages strictement identiques | L61: Type de limite de température | O61: Nombre d'assemblages strictement identiques | R61: Type de limite de température (ECS)
B62: 39 | C62: 3 | D62: 44 | I62: La base est assurée par un système solaire | L62: Temp. mini amont en mode chaud où la machine ne fonctionne plus (° C) | O62: La base est assurée par un système solaire | R62: Temp. mini amont en mode chaud où la machine ne fonctionne plus (° C). Suivant l'application du Titre V générateur hybride | S62: -5 (à 35°C) / -4,8 (à 45 °C) / -3,8 (à 55 °C)
B63: 40 | C63: 3 | D63: 45 | I63: Mode de production | L63: Temp. mini amont en mode chaud où la machine ne fonctionne plus (° C) | O63: Mode de production | R63: Temp. mini amont en mode chaud où la machine ne fonctionne plus (° C)
B64: 41 | C64: 3 | D64: 46 | I64: Caractéristiques des ballons | L64: Temp. maxi aval en mode chaud où la machine ne fonctionne plus (° C) | O64: Caractéristiques des ballons | R64: Temp. maxi aval en mode chaud où la machine ne fonctionne plus (° C). Suivant l'application du Titre V générateur hybride | S64: 100
B65: 42 | C65: 3 | D65: 47 | I65: Volume total du ballon (l) | L65: Temp. maxi aval en mode chaud où la machine ne fonctionne plus (° C) | O65: Volume total du ballon (l) | R65: Temp. maxi aval en mode chaud où la machine ne fonctionne plus (° C)
B66: 43 | C66: 3 | D66: 48 | I66: Valeur connue pertes du ballon | L66: Source Amont | O66: Valeur connue pertes du ballon | R66: Source Amont
B67: 44 | C67: 3 | D67: 49 | I67: Constante de refroidissement Cr (Wh/jour.l.K) | L67: Source amont pour système sur l'eau | O67: Constante de refroidissement Cr (Wh/jour.l.K) | R67: Source amont pour système sur l'eau
B68: 45 | C68: 3 | D68: 50 | I68: ou Ua (W/K) | L68: Ecart de température aux bornes de l'évaporateur en mode chauffage | O68: ou Ua (W/K) | R68: Ecart de température aux bornes de l'évaporateur en mode chauffage
B69: 46 | C69: 3 | D69: 51 | I69: Type de gestion du thermostat | L69: Source amont pour système sur l'air | O69: Type de gestion du thermostat | R69: Source amont pour système sur l'air
B70: 47 | C70: 3 | D70: 52 | I70: Température maximale du ballon (°C) | L70: Lien sur CTA | O70: Température maximale du ballon (°C) | R70: Lien sur CTA
B71: 48 | C71: 3 | D71: 53 | I71: Hystérésis du thermostat du ballon (°C) | L71: Puissance des ventilateurs (uniquement pour machine gainée) (W) | O71: Hystérésis du thermostat du ballon (°C) | R71: Puissance des ventilateurs (uniquement pour machine gainée) (W)
B72: 49 | C72: 3 | D72: 54 | I72: Fraction ballon chauffée par l'appoint Faux | L72: Température mini air sortie source amont en mode chaud (°C) | O72: Fraction ballon chauffée par l'appoint Faux | R72: Température mini air sortie source amont en mode chaud (°C)
B73: 50 | C73: 3 | D73: 55 | I73: Hauteur relative de l'échangeur de base à partir du fond de la cuve | L73: Chauffage | O73: Hauteur relative de l'échangeur de base à partir du fond de la cuve | R73: Chauffage
B74: 51 | C74: 3 | D74: 56 | I74: N° de la zone du ballon qui contient le système de régulation de base | L74: Données connues | O74: N° de la zone du ballon qui contient le système de régulation de base | R74: Données connues
B75: 52 | C75: 3 | D75: 57 | I75: N° de la zone du ballon qui contient l'élément chauffant d'appoint | L75: Températures Source Amont (°C) | O75: N° de la zone du ballon qui contient l'élément chauffant d'appoint | R75: Températures Source Amont (°C)
B76: 53 | C76: 3 | D76: 58 | I76: N° de la zone du ballon qui contient le système de régulation de l'appoint | L76: Températures fluide Aval (°C) | O76: N° de la zone du ballon qui contient le système de régulation de l'appoint | R76: Températures fluide Aval (°C)
B77: 54 | C77: 3 | D77: 59 | I77: Hauteur de l'échangeur d'appoint à partir du fond de la zone d'appoint | L77: Matrice chauffage | O77: Hauteur de l'échangeur d'appoint à partir du fond de la zone d'appoint | R77: Matrice chauffage
B78: 55 | C78: 3 | D78: 60 | I78: Type de gestion de l'appoint | L78: Température Fluide Aval (°C) \ Température Source Amont (°C) | O78: Type de gestion de l'appoint | R78: Température Fluide Aval (°C) \ Température Source Amont (°C)
B79: 56 | C79: 3 | D79: 61 | I79: Générateur : ballon | L79: 25/22 Puis Pabs (kW) | O79: Générateur : ballon | R79: 25/22 Puis Pabs (kW)
B80: 57 | C80: 3 | D80: 62 | I80: Type de stockage | L80: 25/22 COP | O80: Type de stockage | R80: 25/22 COP
B81: 58 | C81: 3 | D81: 63 | I81: Services assurés | L81: 25/22 Certification | O81: Services assurés | R81: 25/22 Certification
B82: 59 | C82: 3 | D82: 64 | I82: Nombre d'assemblages strictement identiques | L82: 35/30 Puis Pabs (kW) | O82: Nombre d'assemblages strictement identiques | R82: 35/30 Puis Pabs (kW)
B83: 60 | C83: 3 | D83: 65 | I83: La base est assurée par un système solaire | L83: 35/30 COP | O83: La base est assurée par un système solaire | R83: 35/30 COP
B84: 61 | C84: 3 | D84: 66 | I84: Mode de production | L84: 35/30 Certification | O84: Mode de production | R84: 35/30 Certification
B85: 62 | C85: 3 | D85: 67 | I85: Caractéristiques des ballons | L85: 45/40 Puis Pabs (kW) | O85: Caractéristiques des ballons | R85: 45/40 Puis Pabs (kW)
B86: 63 | C86: 3 | D86: 68 | I86: Volume total du ballon (l) | L86: 45/40 COP | O86: Volume total du ballon (l) | R86: 45/40 COP
B87: 64 | C87: 3 | D87: 69 | I87: Valeur connue pertes du ballon | L87: 45/40 Certification | O87: Valeur connue pertes du ballon | R87: 45/40 Certification
B88: 65 | C88: =IF(B88>$D$620+$E$620,3,IF(B88>$D$620,2,1)) -> 3 | D88: 70 | E88: ="'"&INDEX($D$610:$F$610,1,$C88)&"'!"&ADDRESS($D88,INDEX($D$612:$F$612,$C88),4,TRUE,) ->  | F88: ="'"&INDEX($D$610:$F$610,1,$C88)&"'!"&ADDRESS($D88,INDEX($D$615:$F$615,1,$C88),4,TRUE,) ->  | I88: Constante de refroidissement Cr (Wh/jour.l.K) | L88: 55/47 Puis Pabs (kW) | O88: Constante de refroidissement Cr (Wh/jour.l.K) | R88: 55/47 Puis Pabs (kW)
B89: 66 | C89: =IF(B89>$D$620+$E$620,3,IF(B89>$D$620,2,1)) -> 3 | D89: 71 | H89: =INDIRECT($E89) ->  | I89: ou Ua (W/K) | J89: =INDIRECT($F89) ->  | K89: =INDIRECT($E89) ->  | L89: 55/47 COP | M89: =INDIRECT($F89) ->  | N89: =INDIRECT($E89) ->  | O89: ou Ua (W/K) | P89: =INDIRECT($F89) ->  | Q89: =INDIRECT($E89) ->  | R89: 55/47 COP | S89: =INDIRECT($F89) -> 
B90: 67 | C90: 3 | D90: =IF(C90>C89,8,D89+1) -> 72 | I90: Type de gestion du thermostat | L90: 55/47 Certification | O90: Type de gestion du thermostat | R90: 55/47 Certification
B91: 68 | C91: 3 | D91: 73 | I91: Température maximale du ballon (°C) | L91: 65/55 Puis Pabs (kW) | O91: Température maximale du ballon (°C) | R91: 65/55 Puis Pabs (kW)
B92: 69 | C92: 3 | D92: 74 | I92: Hystérésis du thermostat du ballon (°C) | L92: 65/55 COP | O92: Hystérésis du thermostat du ballon (°C) | R92: 65/55 COP
B93: 70 | C93: 3 | D93: 75 | I93: Fraction ballon chauffée par l'appoint Faux | L93: 65/55 Certification | O93: Fraction ballon chauffée par l'appoint Faux | R93: 65/55 Certification
B94: 71 | C94: 3 | D94: 76 | I94: Hauteur relative de l'échangeur de base à partir du fond de la cuve | L94: Fin matrice | O94: Hauteur relative de l'échangeur de base à partir du fond de la cuve | R94: Fin matrice
B95: 72 | C95: 3 | D95: 77 | I95: N° de la zone du ballon qui contient le système de régulation de base | L95: Existence d'une résistance d'appoint | O95: N° de la zone du ballon qui contient le système de régulation de base | R95: Existence d'une résistance d'appoint
B96: 73 | C96: 3 | D96: 78 | I96: N° de la zone du ballon qui contient l'élément chauffant d'appoint | L96: Puissance d'appoint (kW) | O96: N° de la zone du ballon qui contient l'élément chauffant d'appoint | R96: Puissance d'appoint (kW)
B97: 74 | C97: 3 | D97: 79 | I97: N° de la zone du ballon qui contient le système de régulation de l'appoint | L97: ECS | O97: N° de la zone du ballon qui contient le système de régulation de l'appoint | R97: ECS
B98: 75 | C98: 3 | D98: 80 | I98: Hauteur de l'échangeur d'appoint à partir du fond de la zone d'appoint | L98: Données connues | O98: Hauteur de l'échangeur d'appoint à partir du fond de la zone d'appoint | R98: Données connues
B99: 76 | C99: 3 | D99: 81 | I99: Type de gestion de l'appoint | L99: Température source amont (ECS) (°C) | O99: Type de gestion de l'appoint | R99: Température source amont (ECS) (°C)
B100: 77 | C100: 3 | D100: 82 | I100: Générateur : capteur | L100: Température fluide aval (ECS) (°C) | O100: Générateur : capteur | R100: Température fluide aval (ECS) (°C)
B101: 78 | C101: 3 | D101: 83 | I101: Type | L101: Matrice ECS | O101: Type | R101: Matrice ECS
B102: 79 | C102: 3 | D102: 84 | I102: Surface d'entrée d'un capteur solaire A (m2) | L102: Température Fluide Aval \ Température Source Amont | O102: Surface d'entrée d'un capteur solaire A (m2) | R102: Température Fluide Aval \ Température Source Amont (°C)
B103: 80 | C103: 3 | D103: 85 | I103: Nombre de modules identiques | L103: 45 °C Puis Pabs (kW) | O103: Nombre de modules identiques | R103: 45 °C Puis Pabs (kW)
B104: 81 | C104: 3 | D104: 86 | I104: Orientation | L104: 45 °C COP | O104: Orientation | R104: 45 °C COP
B105: 82 | C105: 3 | D105: 87 | I105: Inclinaison (°) | L105: 45 °C Certification | O105: Inclinaison (°) | R105: 45 °C Certification
B106: 83 | C106: 3 | D106: 88 | I106: Rendement optique du capteur solaire Eta | J106: =INDIRECT($F106) ->  | L106: Fin matrice ECS | O106: Rendement optique du capteur solaire Eta | R106: Fin matrice ECS
B107: 84 | C107: 3 | D107: 89 | I107: Coefficient de pertes du premier ordre du capteur solaire a1 (W/m2.K) | L107: COP | O107: Coefficient de pertes du premier ordre du capteur solaire a1 (W/m2.K) | R107: COP
B108: 85 | C108: 3 | D108: 90 | I108: Coefficient de pertes du deuxième ordre du capteur solaire a2 (W/m2.K2) | L108: Puissance ABSORBEE (kW) | O108: Coefficient de pertes du deuxième ordre du capteur solaire a2 (W/m2.K2) | R108: Puissance absorbée (kW)
B109: 86 | C109: 3 | D109: 91 | I109: Type de régulation de la boucle solaire | L109: Existence d'une résistance d'appoint | O109: Type de régulation de la boucle solaire | R109: Existence d'une résistance d'appoint
B110: 87 | C110: 3 | D110: 92 | I110: Coefficient de pertes des tuyauteries vers l'extérieur (W/K) | L110: Puissance d'appoint (kW) | O110: Coefficient de pertes des tuyauteries vers l'extérieur (W/K) | R110: Puissance d'appoint (kW)
B111: 88 | C111: 3 | D111: 93 | I111: Coefficient de pertes des tuyauteries vers l'intérieur du bât. (W/K) | L111: Auxiliaires | O111: Coefficient de pertes des tuyauteries vers l'intérieur du bât. (W/K) | R111: Auxiliaires
B112: 89 | C112: 3 | D112: 94 | I112: Facteur d'angle d'incidence | L112: Type de gestion de captage | O112: Facteur d'angle d'incidence | R112: Type de gestion de captage
B113: 90 | C113: 3 | D113: 95 | I113: Puissance nominale des pompes (W) | L113: Puissance électrique des pompes | O113: Puissance nominale des pompes (W) | R113: Puissance électrique des pompes
B114: 91 | C114: 3 | D114: 96 | I114: Présence d'un échangeur | L114: Gestion des pompes | O114: Présence d'un échangeur | R114: Gestion des pompes
B115: 92 | C115: 3 | D115: 97 | I115: Présence de masques | L115: Longueur sonde de captage | O115: Présence de masques | R115: Longueur sonde de captage
B116: 93 | C116: 3 | D116: 98 | I116: Arborescence Bâtiments | J116: NA | L116: Résistance entre la sonde et le sol | O116: Arborescence Bâtiments | P116: NA | R116: Résistance entre la sonde et le sol
B117: 94 | C117: 3 | D117: 99 | J117: NA | L117: Mois où la température captage est la plus basse | P117: NA | R117: Mois où la température captage est la plus basse
B118: 95 | C118: 3 | D118: 100 | J118: NA | L118: Température maximale annuelle d'eau de captage (°C) | P118: NA | R118: Température maximale annuelle d'eau de captage (°C)
B119: 96 | C119: 3 | D119: 101 | J119: NA | L119: Température minimale annuelle d'eau de captage (°C) | P119: NA | R119: Température minimale annuelle d'eau de captage (°C)
B120: 97 | C120: 3 | D120: 102 | J120: NA | L120: Stockage et système solaire | P120: NA | R120: Stockage et système solaire
B121: 98 | C121: 3 | D121: 103 | I121: Saisie de la Maison | J121: NA | L121: Désignation | O121: Saisie de la Maison | P121: NA | R121: Désignation
B122: 99 | C122: 3 | D122: 104 | I122: Généralités / Chauffage | J122: NA | L122: Type de stockage | O122: Généralités / Chauffage | P122: NA | R122: Type de stockage
B123: 100 | C123: 3 | D123: 105 | I123: Programmation chauffage | J123: NA | L123: Services assurés | O123: Programmation chauffage | P123: NA | R123: Services assurés
B124: 101 | C124: 3 | D124: 106 | I124: Saisie du système d'émission | J124: NA | L124: Nombre d'assemblages strictement identiques | O124: Saisie du système d'émission | P124: NA | R124: Nombre d'assemblages strictement identiques
B125: 102 | C125: 3 | D125: 107 | I125: Réseau chaud | J125: NA | L125: La base est assurée par un système solaire | O125: Réseau chaud | P125: NA | R125: La base est assurée par un système solaire
B126: 103 | C126: 3 | D126: 108 | I126: Régulation de la température | J126: NA | L126: Caractéristiques (Ballon) | O126: Régulation de la température | P126: NA | R126: Caractéristiques (Ballon)
B127: 104 | C127: 3 | D127: 109 | I127: Température de départ | J127: NA | L127: Mode de production | O127: Température de départ | P127: NA | R127: Mode de production
B128: 105 | C128: 3 | D128: 110 | I128: Delta T | J128: NA | L128: Mode de production désignation | O128: Delta T | P128: NA | R128: Mode de production désignation
B129: 106 | C129: 3 | D129: 111 | I129: Régulation du débit | J129: NA | L129: Volume total du ballon (l) | O129: Régulation du débit | P129: NA | R129: Volume total du ballon (l)
B130: 107 | C130: 3 | D130: 112 | I130: Débit volumique nominal en chauffage (m3/h) | J130: NA | L130: Valeur connue pertes du ballon | O130: Débit volumique nominal en chauffage (m3/h) | P130: NA | R130: Valeur connue pertes du ballon
B131: 108 | C131: 3 | D131: 113 | I131: Débit minimal (m3/h) | J131: NA | L131: Type de ballon | O131: Débit minimal (m3/h) | P131: NA | R131: Type de ballon
B132: 109 | C132: 3 | D132: 114 | I132: Circulateur du réseau chauffage | J132: NA | L132: Constante de refroidissement Cr (Wh/jour.l.K) | O132: Circulateur du réseau chauffage | P132: NA | R132: Constante de refroidissement Cr (Wh/jour.l.K)
B133: 110 | C133: 3 | D133: 115 | I133: Présence d'un circulateur | J133: NA | L133: ou Ua (W/K) | O133: Présence d'un circulateur | P133: NA | R133: ou Ua (W/K)
B134: 111 | C134: 3 | D134: 116 | I134: Puissance circulateur (W) | J134: NA | L134: Type de gestion du thermostat | O134: Puissance circulateur (W) | P134: NA | R134: Type de gestion de l'appoint
B135: 112 | C135: 3 | D135: 117 | I135: Vitesse du circulateur | J135: NA | L135: Température maximale du ballon (°C) | O135: Vitesse du circulateur | P135: NA | R135: Type de gestion du thermostat | S135: =INDIRECT($F134) -> 
B136: 113 | C136: 3 | D136: 118 | I136: Réseau eau chaude sanitaire | J136: NA | L136: Hystérésis du thermostat du ballon (°C) | O136: Réseau eau chaude sanitaire | P136: NA | R136: Température maximale du ballon (°C)
B137: 114 | C137: 3 | D137: 119 | I137: Type d'ECS | J137: NA | L137: Fraction ballon chauffée par l'appoint Faux | O137: Type d'ECS | P137: NA | R137: Hystérésis du thermostat du ballon (°C)
B138: 115 | C138: 3 | D138: 120 | I138: Type de distribution | J138: NA | L138: Hauteur relative de l'échangeur de base à partir du fond de la cuve | O138: Type de distribution | P138: NA | R138: Fraction ballon chauffée par l'appoint Faux
B139: 116 | C139: 3 | D139: 121 | I139: Liée à la génération | J139: NA | L139: N° de la zone du ballon qui contient le système de régulation de base | O139: Liée à la génération | P139: NA | R139: Hauteur relative de l'échangeur de base à partir du fond de la cuve
B140: 117 | C140: 3 | D140: 122 | I140: Température du réseau ECS (°C) | J140: NA | L140: N° de la zone du ballon qui contient l'élément chauffant d'appoint | O140: Température du réseau ECS (°C) | P140: NA | R140: N° de la zone du ballon qui contient le système de régulation de base
B141: 118 | C141: 3 | D141: 123 | I141: Option en fonction du projet accessoire Moduzone 11 C & G | J141: NA | L141: N° de la zone du ballon qui contient le système de régulation de l'appoint | O141: Option en fonction du projet accessoire Moduzone 11 C & G | P141: NA | R141: N° de la zone du ballon qui contient l'élément chauffant d'appoint
B142: 119 | C142: 3 | D142: 124 | I142: Saisie du système d'émission | J142: NA | L142: Hauteur de l'échangeur d'appoint à partir du fond de la zone d'appoint (%) | O142: Saisie du système d'émission | P142: NA | R142: N° de la zone du ballon qui contient le système de régulation de l'appoint
B143: 120 | C143: 3 | D143: 125 | I143: Circulateur du réseau chauffage | J143: NA | L143: Type de gestion de l'appoint | O143: Circulateur du réseau chauffage | P143: NA | R143: Hauteur de l'échangeur d'appoint à partir du fond de la zone d'appoint (%)
B144: 121 | C144: 3 | D144: 126 | I144: Puissance circulateur (W) à ajouter | J144: NA | L144: Hystérésis du thermostat d'appoint (°C) | O144: Puissance circulateur (W) à ajouter | P144: NA | R144: Type de gestion de l'appoint
B145: 122 | C145: 3 | D145: 127 | I145: Génération | J145: NA | L145: Saisie du générateur: Chaudière | M145: NA | O145: Arborescence de la génération | P145: NA | R145: Hystérésis du thermostat d'appoint (°C)
B146: 123 | C146: 3 | D146: 128 | I146: Type de générateur | J146: NA | L146: Saisie du générateur: chaudière | M146: NA | P146: NA | R146: Saisie du générateur: Chaudière | S146: NA
B147: 124 | C147: 3 | D147: 129 | I147: Nombre identique | J147: NA | L147: Service du générateur | M147: NA | P147: NA | R147: Saisie du générateur: chaudière | S147: NA
B148: 125 | C148: 3 | D148: 130 | I148: Service du générateur | J148: NA | L148: Arborescence Bâtiments | M148: NA | P148: NA | R148: Service du générateur | S148: NA
B149: 126 | C149: 3 | D149: 131 | I149: Puissance générateur effet Joule (kW) | J149: NA | M149: NA | P149: NA | R149: Arborescence Bâtiments | S149: NA
B150: 127 | C150: 3 | D150: 132 | I150: Stockage et système solaire | J150: =INDIRECT($F150) ->  | M150: NA | O150: Saisie de la génération | P150: NA | S150: NA
B151: 128 | C151: 3 | D151: 133 | I151: Désignation | J151: =INDIRECT($F151) ->  | M151: NA | O151: Désignation | P151: NA | S151: NA
B152: 129 | C152: 3 | D152: 134 | E152: ="'"&INDEX($D$610:$F$610,1,$C152)&"'!"&ADDRESS($D152,INDEX($D$612:$F$612,$C152),4,TRUE,) ->  | F152: ="'"&INDEX($D$610:$F$610,1,$C152)&"'!"&ADDRESS($D152,INDEX($D$615:$F$615,1,$C152),4,TRUE,) ->  | I152: Type de stockage | J152: Générateur de base plus appoint séparé instantané | M152: NA | O152: Service assurés | P152: NA | S152: NA
B153: 130 | C153: =IF(B153>$D$620+$E$620,3,IF(B153>$D$620,2,1)) -> 3 | D153: 135 | H153: =INDIRECT($E153) ->  | I153: Services assurés | J153: =INDIRECT($F153) ->  | K153: =INDIRECT($E153) ->  | L153: Saisie de la Maison | M153: NA | N153: =INDIRECT($E153) ->  | O153: type de gestion | P153: NA | Q153: =INDIRECT($E153) ->  | S153: NA
B154: 131 | C154: 3 | D154: =IF(C154>C153,8,D153+1) -> 136 | I154: Nombre d'assemblages strictement identiques | L154: Généralités / Chauffage | M154: NA | O154: Raccordement des générateurs | P154: NA | R154: Saisie de la Maison | S154: NA
B155: 132 | C155: 3 | D155: 137 | I155: La base est assurée par un système solaire | L155: Programmation chauffage | M155: NA | O155: Raccordement hydraulique | P155: NA | R155: Généralités / Chauffage | S155: NA
B156: 133 | C156: 3 | D156: 138 | I156: Caractéristiques des ballons | L156: Saisie du système d'émission | M156: NA | O156: Position de la production | P156: NA | R156: Programmation chauffage | S156: NA
B157: 134 | C157: 3 | D157: 139 | I157: Mode de production | L157: Réseau chaud | M157: NA | O157: Emplacement de la prod. | P157: NA | R157: Saisie du système d'émission | S157: NA
B158: 135 | C158: 3 | D158: 140 | I158: Volume total du ballon (l) | L158: Régulation de la température | M158: NA | O158: Liaison à l'espace tampon | P158: NA | R158: Réseau chaud | S158: NA
B159: 136 | C159: 3 | D159: 141 | I159: Valeur connue pertes du ballon | L159: Température de départ en chauffage (°C) | M159: NA | O159: Coef; b du local non chauffé | P159: NA | R159: Régulation de la température | S159: NA
B160: 137 | C160: 3 | D160: 142 | I160: Constante de refroidissement Cr (Wh/jour.l.K) | L160: Chute de température en chauffage (K) | M160: NA | O160: Type de gestion de la température de génération en chauffage | P160: NA | R160: Température de départ en chauffage (°C) | S160: NA
B161: 138 | C161: 3 | D161: 143 | I161: ou Ua (W/K) | L161: Régulation du débit | M161: NA | O161: Gestion de la température | P161: NA | R161: Chute de température en chauffage (K) | S161: NA
B162: 139 | C162: 3 | D162: 144 | I162: Type de gestion de l'appoint | L162: Débit volumique nominal en chauffage (m3/h) | M162: NA | O162: Température de fonctionnement de la génération en ECS pour les générateurs instantanés | P162: NA | R162: Régulation du débit | S162: NA
B163: 140 | C163: 3 | D163: 145 | I163: Type de gestion du thermostat | L163: Débit volumique résiduel en chauffage (m3/h) | M163: NA | O163: Température de fonctionnement | P163: NA | R163: Débit volumique nominal en chauffage (m3/h) | S163: NA
B164: 141 | C164: 3 | D164: 146 | I164: Température maximale du ballon (°C) | L164: Circulateur du réseau chauffage | M164: NA | O164: Type de production ECS | P164: NA | R164: Débit volumique résiduel en chauffage (m3/h) | S164: NA
B165: 142 | C165: 3 | D165: =IF(C165>C164,8,D164+1) -> 147 | I165: Hystérésis du thermostat du ballon (°C) | L165: Présence d'un circulateur | M165: NA | O165: Saisie du générateur CETI | P165: =INDIRECT($F165) ->  | R165: Circulateur du réseau chauffage | S165: NA
B166: 143 | C166: 3 | D166: 148 | I166: Fraction ballon chauffée par l'appoint Faux | L166: Puissance circulateur en chauffage (W) | M166: NA | O166: Désignation | R166: Présence d'un circulateur | S166: NA
B167: 144 | C167: 3 | D167: 149 | I167: Hauteur relative de l'échangeur de base à partir du fond de la cuve | L167: Mode régulation du circulateur | M167: NA | O167: Type de générateur | R167: Puissance circulateur en chauffage (W) | S167: NA
B168: 145 | C168: 3 | D168: 150 | I168: N° de la zone du ballon qui contient le système de régulation de base | L168: Option en fonction du projet accessoire Moduzone 11 C & G | M168: NA | O168: Nombre identique | R168: Mode régulation du circulateur | S168: NA
B169: 146 | C169: 3 | D169: 151 | I169: N° de la zone du ballon qui contient l'élément chauffant d'appoint | L169: Saisie du système d'émission | M169: NA | O169: Service du généateur | R169: Option en fonction du projet accessoire Moduzone 11 C & G | S169: NA
B170: 147 | C170: 3 | D170: 152 | I170: N° de la zone du ballon qui contient le système de régulation de l'appoint | L170: Circulateur du réseau chauffage | M170: NA | O170: Caractéristiques | R170: Saisie du système d'émission | S170: NA
B171: 148 | C171: 3 | D171: 153 | I171: Hauteur de l'échangeur d'appoint à partir du fond de la zone d'appoint | L171: Puissance circulateur (W) à ajouter | M171: NA | O171: Type de système | R171: Circulateur du réseau chauffage | S171: NA
B172: 149 | C172: 3 | D172: 154 | I172: Type de gestion de l'appoint | L172: Valeurs des données de sortie de l'outil IdCET en fonction des débits d'essais | M172: NA | O172: Mode chauffage | R172: Puissance circulateur (W) à ajouter | S172: NA
B173: 150 | C173: 3 | D173: 155 | I173: Hystérésis du thermostat d'appoint (°C) | L173: Debit d'air minimal Q1 (m3/h) / Debit d'air intermediaire (m3/h) / Debit d'air minimal Q2 (m3/h) | M173: NA | O173: Type d'émetteur raccordé | R173: Valeurs des données de sortie de l'outil IdCET en fonction des débits d'essais | S173: NA
B174: 151 | C174: 3 | D174: 156 | I174: Puissance nominale de la pompe (W) | J174: NA | L174: COP pivot Th-BCE 2012 saisie dans la matrice 20°C/45°C ( à Q1 / à Q intermédiaire / à Q2) | M174: NA | O174: Fonctionnement du compresseur | R174: Debit d'air minimal Q1 (m3/h) / Debit d'air intermediaire (m3/h) / Debit d'air minimal Q2 (m3/h) | S174: NA
B175: 152 | C175: 3 | D175: 157 | I175: Solaire | L175: UA_S Th-BCE 2012 ( à Q1 / à Q intermédiaire / à Q2) | M175: NA | O175: Statut des données en mode continu | R175: COP pivot Th-BCE 2012 saisie dans la matrice 20°C/45°C ( à Q1 / à Q intermédiaire / à Q2) | S175: NA
B176: 153 | C176: 3 | D176: 158 | I176: Type | J176: =J603 -> FES1 150 BiD & FES1 150 B M + GHSD 8 | L176: Pabs pivot Th-BCE 2012 saisie dans la matrice 20°C/45°C kW ( à Q1 / à Q intermédiaire / à Q2) | M176: NA | O176: Pourcentage minimal de charge en fonctionnement continu (%) | R176: UA_S Th-BCE 2012 ( à Q1 / à Q intermédiaire / à Q2) | S176: NA
B177: 154 | C177: 3 | D177: 159 | I177: Surface d'entrée d'un capteur solaire A (m2) | L177: Pour info / Données d'entrées outil IdCET | M177: NA | O177: Correction de performance en fonction de la charge minimale | R177: Pabs pivot Th-BCE 2012 saisie dans la matrice 20°C/45°C kW ( à Q1 / à Q intermédiaire / à Q2) | S177: NA
B178: 155 | C178: 3 | D178: 160 | I178: Nombre de modules identiques | J178: 1 | L178: Debit d'air minimal Q1 (m3/h) / Debit d'air intermediaire (m3/h) / Debit d'air minimal Q2 (m3/h) | M178: NA | O178: Statut de la part de la puissance des auxiliaires | R178: Pour info / Données d'entrées outil IdCET | S178: NA
B179: 156 | C179: 3 | D179: 161 | I179: Orientation | L179: Température d'eau de référence (°C) | M179: NA | O179: Pourcentage de la puissance élec. des auxiliaires dans la puis. élec. totale (%) | R179: Debit d'air minimal Q1 (m3/h) / Debit d'air intermediaire (m3/h) / Debit d'air minimal Q2 (m3/h) | S179: NA
B180: 157 | C180: 3 | D180: 162 | I180: Inclinaison (°) | L180: Durée de chauffage (h.min) ( à Q1 / à Q intermédiaire / à Q2) | M180: NA | O180: Puissances de la PAC connues | R180: Température d'eau de référence (°C) | S180: NA
B181: 158 | C181: 3 | D181: 163 | I181: Rendement optique du capteur solaire Eta | L181: Puissance électrique mesurée étape B (W) ( à Q1 / à Q intermédiaire / à Q2) | M181: NA | O181: Type de limite de température | R181: Durée de chauffage (h.min) ( à Q1 / à Q intermédiaire / à Q2) | S181: NA
B182: 159 | C182: 3 | D182: 164 | I182: Coefficient de pertes du premier ordre du capteur solaire a1 (W/m2.K) | L182: Cycle de Puisage | M182: NA | O182: Type de limite de température (ECS) | R182: Puissance électrique mesurée étape B (W) ( à Q1 / à Q intermédiaire / à Q2) | S182: NA
B183: 160 | C183: 3 | D183: 165 | I183: Coefficient de pertes du deuxième ordre du capteur solaire a2 (W/m2.K2) | L183: Coefficient de performance ( à Q1 / à Q intermédiaire / à Q2) | M183: NA | O183: Temp. mini amont en mode chaud où la machine ne fonctionne plus (° C) | R183: Cycle de Puisage | S183: NA
B184: 161 | C184: 3 | D184: 166 | I184: Type de régulation de la boucle solaire | L184: Génération | M184: NA | O184: Temp. mini amont en mode chaud où la machine ne fonctionne plus (° C) | R184: Coefficient de performance ( à Q1 / à Q intermédiaire / à Q2) | S184: NA
B185: 162 | C185: 3 | D185: 167 | I185: Coefficient de pertes des tuyauteries vers l'extérieur (W/K) | L185: Services assurés | M185: NA | O185: Temp. maxi aval en mode chaud où la machine ne fonctionne plus (° C) | R185: Génération | S185: NA
B186: 163 | C186: 3 | D186: 168 | I186: Coefficient de pertes des tuyauteries vers l'intérieur du bât. (W/K) | L186: Type de gestion | M186: NA | O186: Temp. maxi aval en mode chaud où la machine ne fonctionne plus (° C) | R186: Services assurés | S186: NA
B187: 164 | C187: 3 | D187: 169 | I187: Facteur d'angle d'incidence | L187: Raccordement des générateurs | M187: NA | O187: Source Amont | R187: Type de gestion | S187: NA
B188: 165 | C188: 3 | D188: 170 | I188: Puissance nominale des pompes (W) | J188: =INDIRECT($F174) ->  | L188: Raccordement hydraulique | M188: NA | O188: Source amont pour système sur l'eau | R188: Raccordement des générateurs | S188: NA
B189: 166 | C189: 3 | D189: 171 | I189: Présence d'un échangeur | L189: Position de la production | M189: NA | O189: Ecart de température aux bornes de l'évaporateur en mode chauffage | R189: Raccordement hydraulique | S189: NA
B190: 167 | C190: 3 | D190: 172 | I190: Présence de masques | L190: Emplacement de la prod. | M190: NA | O190: Source amont pour système sur l'air | R190: Position de la production | S190: NA
B191: 168 | C191: 3 | D191: 173 | I191: Arborescence Bâtiments | J191: =INDIRECT($F116) ->  | L191: Type de gestion de la température de génération en chauffage | M191: NA | O191: Lien sur CTA | R191: Emplacement de la prod. | S191: NA
B192: 169 | C192: 3 | D192: 174 | L192: Gestion de la température | M192: NA | O192: Puissance des ventilateurs (uniquement pour machine gainée) (W) | R192: Type de gestion de la température de génération en chauffage | S192: NA
B193: 170 | C193: 3 | D193: 175 | L193: Température de fonctionnement (°C) | M193: NA | O193: Température mini air sortie source amont en mode chaud (°C) | R193: Gestion de la température | S193: NA
B194: 171 | C194: 3 | D194: 176 | L194: Température de fonctionnement de la génération en ECS | M194: NA | O194: Chauffage | R194: Température de fonctionnement (°C) | S194: NA
B195: 172 | C195: 3 | D195: 177 | L195: Température de fonctionnement (°C) | M195: NA | O195: Données connues | R195: Température de fonctionnement de la génération en ECS | S195: NA
B196: 173 | C196: 3 | D196: 178 | I196: Saisie de la Maison | L196: Saisie du générateur chaudiére | M196: =INDIRECT($F196) ->  | O196: Températures Source Amont (°C) | R196: Température de fonctionnement (°C) | S196: NA
B197: 174 | C197: 3 | D197: 179 | I197: Généralités / Chauffage | L197: Désignation | O197: Températures fluide Aval (°C) | R197: Saisie du générateur chaudiére | S197: =INDIRECT($F196) -> 
B198: 175 | C198: 3 | D198: 180 | I198: Programmation chauffage | L198: Type de générateur | O198: Matrice chauffage | R198: Désignation
B199: 176 | C199: 3 | D199: 181 | I199: Saisie du système d'émission | L199: Type de combustible | O199: Température Fluide Aval (°C) \ Température Source Amont (°C) | R199: Type de générateur
B200: 177 | C200: 3 | D200: 182 | I200: Réseau chaud | L200: Type ventilation du générateur | O200: 25/22 Puis Pabs (kW) | R200: Type de combustible
... 316 more rows

Sheet V TTH systemes (hidden)
H1: Désignation gamme SD | J1: ='CW systemes'!J1 -> CESI optimisé | K1: Désignation gamme SD | M1: ='CW systemes'!M1 -> PAC Hybride (PAC > 5 kW) | N1: Désignation gamme SD | P1: ='CW systemes'!P1 -> CETI optimisé | Q1: Désignation gamme SD | S1: ='CW systemes'!S1 -> PAC Hybride Titre V (PAC < 5 kW)
A2: Feuille de référence | H2: Désignation gamme V | J2: =J1 -> CESI optimisé | K2: Désignation gamme V | M2: =M1 -> PAC Hybride (PAC > 5 kW) | N2: Désignation gamme V | P2: =P1 -> CETI optimisé | Q2: Désignation gamme V | S2: =S1 -> PAC Hybride Titre V (PAC < 5 kW)
H3: Désignation modèle SD | J3: ='CW systemes'!J3 -> CESI optimisé | K3: Désignation modèle SD | M3: ='CW systemes'!M3 -> PAC Hybride (PAC > 5 kW) | N3: Désignation modèle SD | P3: ='CW systemes'!P3 -> CETI optimisé | Q3: Désignation modèle SD | S3: ='CW systemes'!S3 -> PAC Hybride Titre V (PAC < 5 kW)
H4: Désignation modèle V | J4: =J3 -> CESI optimisé | K4: Désignation modèle V | M4: =M3 -> PAC Hybride (PAC > 5 kW) | N4: Désignation modèle V | P4: =P3 -> CETI optimisé | Q4: Désignation modèle V | S4: =S3 -> PAC Hybride Titre V (PAC < 5 kW)
J5: ='CW systemes'!J5 -> Chauffe-eau solaire individuel en série avec une chaudière mixte instantanée ou micro-accumulée. | M5: ='CW systemes'!M5 -> Système bi-énergie combinant deux générateurs : une pompe à chaleur et une chaudière. Classe d'efficacité énergétique : A++ | P5: ='CW systemes'!P5 -> Chauffe-eau thermodynamique individuel en série avec une chaudière mixte instantanée ou micro-accumulée. | S5: ='CW systemes'!S5 -> Saisie suivant le Titre V arrêté du 29 octobre 2012. Système bi-énergie combinant deux générateurs : une pompe à chaleur et une chaudière. Classe d'efficacité énergétique : A++
I6: =IF('V TTH systemes'!J3<>Calculs!$C$7,"","Champs RT 2012") ->  | J6: Valeurs | L6: =IF('V TTH systemes'!M3<>Calculs!$C$7,"","Champs RT 2012") ->  | M6: Valeurs | O6: =IF('V TTH systemes'!P3<>Calculs!$C$7,"","Champs RT 2012") ->  | P6: Valeurs | R6: =IF('V TTH systemes'!S3<>Calculs!$C$7,"","Champs RT 2012") ->  | S6: Valeurs
B7: Compteur | C7: Modéle + 1 | D7: N° de ligne
J8: NA | M8: NA | P8: NA | S8: NA
J9: NA | M9: NA | P9: NA | S9: NA
J10: NA | M10: NA | P10: NA | S10: NA
J11: NA | M11: NA | P11: NA | S11: NA
J12: NA | M12: NA | P12: NA | S12: NA
J13: NA | M13: NA | P13: NA | S13: NA
J14: NA | M14: NA | P14: NA | S14: NA
J15: NA | M15: NA | P15: NA | S15: NA
J16: NA | M16: NA | P16: NA | S16: NA
J17: NA | M17: NA | P17: NA | S17: NA
B18: 1 | C18: =IF(B18>$D$620+$E$620,3,IF(B18>$D$620,2,1)) -> 1 | D18: 8 | E18: ="'"&INDEX($D$610:$F$610,1,$C18)&"'!"&ADDRESS($D18,INDEX($D$612:$F$612,$C18),4,TRUE,) ->  | F18: ="'"&INDEX($D$610:$F$610,1,$C18)&"'!"&ADDRESS($D18,INDEX($D$615:$F$615,1,$C18),4,TRUE,) -> 'CW Chaudières'!HG8 | H18: =INDIRECT($E18) ->  | I18: Création d'un générateur | J18: =INDIRECT($F18) -> - | K18: =INDIRECT($E18) ->  | L18: Création d'un générateur | M18: =INDIRECT($F18) -> - | N18: =INDIRECT($E18) ->  | O18: Création d'un générateur | P18: =INDIRECT($F18) -> - | Q18: =INDIRECT($E18) ->  | R18: Création d'un générateur | S18: =INDIRECT($F18) -> -
B19: 2 | C19: 2 | D19: =IF(C19>C18,8,D18+1) -> 8 | F19: 'CW PAC'!CO8 | H19: =INDIRECT($E19) ->  | I19: Chapitre "Emetteurs de chauffage" | J19: =INDIRECT($F19) -> - | K19: =INDIRECT($E19) ->  | L19: Chapitre "Emetteurs de chauffage" | M19: =INDIRECT($F19) -> - | N19: =INDIRECT($E19) ->  | O19: Chapitre "Emetteurs de chauffage" | P19: =INDIRECT($F19) -> - | Q19: =INDIRECT($E19) ->  | R19: Chapitre "Emetteurs de chauffage" | S19: =INDIRECT($F19) -> -
B20: 3 | C20: 3 | D20: =IF(C20>C19,8,D19+1) -> 8 | I20: 2/ Distribution | L20: 2/ Distribution | O20: 2/ Distribution | R20: 2/ Distribution
B21: 4 | C21: 3 | D21: 9 | I21: Mode de saisie | L21: Mode de saisie | O21: Mode de saisie | R21: Mode de saisie
B22: 5 | C22: 3 | D22: 10 | I22: Régime de température | L22: Régime de température | O22: Régime de température | R22: Régime de température
B23: 6 | C23: 3 | D23: 11 | I23: Température de départ °C | L23: Température de départ °C | O23: Température de départ °C | R23: Température de départ °C
B24: 7 | C24: 3 | D24: 12 | I24: Chute Aller-Retour | L24: Chute Aller-Retour | O24: Chute Aller-Retour | R24: Chute Aller-retour
B25: 8 | C25: 3 | D25: =IF(C25>C24,8,D24+1) -> 13 | I25: Régulation de la température de distribution | L25: Régulation de la température de distribution | O25: Régulation de la température de distribution | R25: Régulation de la température de distribution
B26: 9 | C26: 3 | D26: 14 | I26: Le circulateur | L26: Le circulateur | O26: Le circulateur | R26: Le circulateur
B27: 10 | C27: 3 | D27: 15 | I27: Débit du réseau m3/h | L27: Débit du réseau m3/h | O27: Débit du réseau m3/h | R27: Débit du réseau m3/h
B28: 11 | C28: 3 | D28: 16 | I28: Puissance du circulateur (W) | L28: Puissance du circulateur (W) | O28: Puissance du circulateur (W) | R28: Puissance du circulateur (W)
B29: 12 | C29: 3 | D29: 17 | I29: Gestion du circulateur | L29: Gestion du circulateur | O29: Gestion du circulateur | R29: Gestion du circulateur
B30: 13 | C30: 3 | D30: 18 | I30: 3/ Génération | L30: 3/ Génération | O30: 3/ Génération | R30: 3/ Génération
B31: 14 | C31: 3 | D31: 19 | I31: Typologie de la production | L31: Typologie de la production | O31: Typologie de la production | R31: Typologie de la production
B32: 15 | C32: 3 | D32: 20 | I32: Générateurs associés | L32: Générateurs associés | O32: Générateurs associés | R32: Générateurs associés
B33: 16 | C33: 3 | D33: 21 | I33: Générateur du projet | L33: Générateur du projet | O33: Générateur du projet | R33: Générateur du projet
B34: 17 | C34: 3 | D34: 22 | I34: Modifier le nom du générateur | L34: Modifier le nom du générateur | O34: Modifier le nom du générateur | R34: Modifier le nom du générateur
B35: 18 | C35: 3 | D35: 23 | I35: 3/G - Généralités du générateur | L35: 3/G - Généralités du générateur | O35: 3/G - Généralités du générateur | R35: 3/G - Généralités du générateur
B36: 19 | C36: 3 | D36: 24 | I36: Type de générateur | L36: Type de générateur | O36: Type de générateur | R36: Type de générateur
B37: 20 | C37: 3 | D37: 25 | I37: Année de mise en service | L37: Année de mise en service | O37: Année de mise en service | R37: Année de mise en service
B38: 21 | C38: 3 | D38: 26 | I38: Combustible | L38: Combustible | O38: Combustible | R38: Combustible
B39: 22 | C39: 3 | D39: 27 | I39: Puissance nominale (Chaud) | L39: Puissance nominale (Chaud) | O39: Puissance nominale (Chaud) | R39: Puissance nominale (Chaud)
B40: 23 | C40: 3 | D40: 28 | I40: 3/D - Détail générateur | L40: 3/D - Détail générateur | O40: 3/D - Détail générateur | R40: 3/D - Détail générateur
B41: 24 | C41: 3 | D41: 29 | I41: Technologie | L41: Technologie | O41: Technologie | R41: Technologie
B42: 25 | C42: 3 | D42: 30 | I42: Brûleur | L42: Brûleur | O42: Brûleur | R42: Brûleur
B43: 26 | C43: 3 | D43: 31 | I43: Rendement à pleine charge (%) | L43: Rendement à pleine charge (%) | O43: Rendement à pleine charge (%) | R43: Rendement à pleine charge (%)
B44: 27 | C44: 3 | D44: 32 | I44: Certification rendement à pleine charge | L44: Certification rendement à pleine charge | O44: Certification rendement à pleine charge | R44: Certification rendement à pleine charge
B45: 28 | C45: 3 | D45: 33 | I45: Rendement à charge partielle (%) | L45: Rendement à charge partielle (%) | O45: Rendement à charge partielle (%) | R45: Rendement à charge partielle (%)
B46: 29 | C46: 3 | D46: 34 | I46: Certification rendement à charge partielle | L46: Certification rendement à charge partielle | O46: Certification rendement à charge partielle | R46: Certification rendement à charge partielle
B47: 30 | C47: 3 | D47: 35 | I47: % Pn: point de fonctionnement à charge partielle | L47: % Pn: point de fonctionnement à charge partielle | O47: % Pn: point de fonctionnement à charge partielle | R47: % Pn: point de fonctionnement à charge partielle
B48: 31 | C48: 3 | D48: 36 | I48: Pertes à charge nulle (W) | L48: Pertes à charge nulle (W) | O48: Pertes à charge nulle (W) | R48: Pertes à charge nulle (W)
B49: 32 | C49: 3 | D49: 37 | I49: P. elec des auxiliaires de génération à Pn (W) | L49: P. elec des auxiliaires de génération à Pn (W) | O49: P. elec des auxiliaires de génération à Pn (W) | R49: P. elec des auxiliaires de génération à Pn (W)
B50: 33 | C50: 3 | D50: 38 | I50: P. elec des auxiliaires de génération à l'arrêt (W) | L50: P. elec des auxiliaires de génération à l'arrêt (W) | O50: P. elec des auxiliaires de génération à l'arrêt (W) | R50: P. elec des auxiliaires de génération à l'arrêt (W), suivant Titre V | S50: =INDIRECT($F50)+INDIRECT($F111)*1000 ->  | T50: =INDIRECT($F50)+INDIRECT($F111)*1000
B51: 34 | C51: 3 | D51: 39 | I51: Température maximum de fonctionnement (°C) | L51: Température maximum de fonctionnement (°C) | O51: Température maximum de fonctionnement (°C) | R51: Température maximum de fonctionnement (°C)
B52: 35 | C52: 3 | D52: 40 | I52: Température minimum de fonctionnement (°C) | L52: Température minimum de fonctionnement (°C) | O52: Température minimum de fonctionnement (°C) | R52: Température minimum de fonctionnement (°C)
B53: 36 | C53: 3 | D53: 41 | I53: P. consommée par une éventuelle veilleuse (W) | L53: P. consommée par une éventuelle veilleuse (W) | O53: P. consommée par une éventuelle veilleuse (W) | R53: P. consommée par une éventuelle veilleuse (W)
B54: 37 | C54: 3 | D54: 42 | I54: 3/E - Production ECS | L54: 3/E - Production ECS | O54: 3/E - Production ECS | R54: 3/E - Production ECS
B55: 38 | C55: 3 | D55: 43 | I55: Mode de production d'ECS | L55: Mode de production d'ECS | O55: Mode de production d'ECS | R55: Mode de production d'ECS
B56: 39 | C56: 3 | D56: 44 | I56: Fonctionnement intermittent pour l'ECS | L56: Fonctionnement intermittent pour l'ECS | O56: Fonctionnement intermittent pour l'ECS | R56: Fonctionnement intermittent pour l'ECS
B57: 40 | C57: 3 | D57: 45 | I57: Volume du ballon (l) | L57: Volume du ballon (l) | O57: Volume du ballon (l) | R57: Volume du ballon (l)
B58: 41 | C58: 3 | D58: 46 | I58: Type de ballon | L58: Type de ballon | O58: Type de ballon | R58: Type de ballon
B59: 42 | C59: 3 | D59: 47 | I59: Constante de refroidissement Cr (Wh/jour.l.K) | L59: Constante de refroidissement Cr (Wh/jour.l.K) | O59: Constante de refroidissement Cr (Wh/jour.l.K) | R59: Constante de refroidissement Cr (Wh/jour.l.K)
B60: 43 | C60: 3 | D60: 48 | I60: ou Pertes thermiques ballon (W/K) | L60: ou Pertes thermiques ballon (W/K) | O60: ou Pertes thermiques ballon (W/K) | R60: ou Pertes thermiques ballon (W/K)
B61: 44 | C61: 3 | D61: 49 | I61: Certification des pertes thermiques | L61: Certification des pertes thermiques | O61: Certification des pertes thermiques | R61: Certification des pertes thermiques
B62: 45 | C62: 3 | D62: 50 | I62: Température max. ballon (°C) | L62: Température max. ballon (°C) | O62: Température max. ballon (°C) | R62: Température max. ballon (°C)
B63: 46 | C63: 3 | D63: 51 | I63: Gestion du thermostat du ballon | L63: Gestion du thermostat du ballon | O63: Gestion du thermostat du ballon | R63: Gestion du thermostat du ballon
B64: 47 | C64: 3 | D64: 52 | I64: Base : Prise en compte de l'hystérésis | L64: Base : Prise en compte de l'hystérésis | O64: Base : Prise en compte de l'hystérésis | R64: Base : Prise en compte de l'hystérésis
B65: 48 | C65: 3 | D65: 53 | I65: Base : hystérésis thermostat ballon (°C) | L65: Base : hystérésis thermostat ballon (°C) | O65: Base : hystérésis thermostat ballon (°C) | R65: Base : hystérésis thermostat ballon (°C)
B66: 49 | C66: 3 | D66: 54 | I66: Base : hauteur échangeur (%) | L66: Base : hauteur échangeur (%) | O66: Base : hauteur échangeur (%) | R66: Base : hauteur échangeur (%)
B67: 50 | C67: 3 | D67: 55 | I67: Base : n° zone régulation | L67: Base : n° zone régulation | O67: Base : n° zone régulation | R67: Base : n° zone régulation
B68: 51 | C68: 3 | D68: 56 | I68: 3/C - Cogénération | L68: 3/C - Cogénération | O68: 3/C - Cogénération | R68: 3/C - Cogénération
B69: 52 | C69: 3 | D69: 57 | I69: Type de cogénération | L69: Type de cogénération | O69: Type de cogénération | R69: Type de cogénération
B70: 53 | C70: 3 | D70: 58 | I70: Puissance thermique du module de micro-cogénération (kW) | L70: Puissance thermique du module de micro-cogénération (kW) | O70: Puissance thermique du module de micro-cogénération (kW) | R70: Puissance thermique du module de micro-cogénération (kW)
B71: 54 | C71: 3 | D71: 59 | I71: Puissance éléctrique du module de micro-cogénération( kW) | L71: Puissance éléctrique du module de micro-cogénération( kW) | O71: Puissance éléctrique du module de micro-cogénération( kW) | R71: Puissance éléctrique du module de micro-cogénération( kW)
B72: 55 | C72: 3 | D72: 60 | I72: Rendement de production éléctrique sur un cycle de 30min (%) | L72: Rendement de production éléctrique sur un cycle de 30min (%) | O72: Rendement de production éléctrique sur un cycle de 30min (%) | R72: Rendement de production éléctrique sur un cycle de 30min (%)
B73: 56 | C73: 3 | D73: 61 | I73: Temps avant régime stationnaire production elec (min) | L73: Temps avant régime stationnaire production elec (min) | O73: Temps avant régime stationnaire production elec (min) | R73: Temps avant régime stationnaire production elec (min)
B74: 57 | C74: 3 | D74: 62 | I74: 3/H - Générateur Hybride | L74: 3/H - Générateur Hybride | O74: 3/H - Générateur Hybride | R74: 3/H - Générateur Hybride
B75: 58 | C75: 3 | D75: 63 | I75: Module thermodynamique pour chaudière Hybride | L75: Module thermodynamique pour chaudière Hybride | O75: Module thermodynamique pour chaudière Hybride | R75: Module thermodynamique pour chaudière Hybride
B76: 59 | C76: 3 | D76: 64 | I76: 3/S - Solaire | L76: 3/S - Solaire | O76: 3/S - Solaire | R76: 3/S - Solaire
B77: 60 | C77: 3 | D77: 65 | I77: Système solaire associé | L77: Système solaire associé | O77: Système solaire associé | R77: Système solaire associé
B78: 61 | C78: 3 | D78: 66 | I78: Création d'un capteur solaire | L78: Création d'un générateur | O78: Création d'un générateur | R78: Création d'un générateur
B79: 62 | C79: 3 | D79: 67 | I79: Chapitre "Systèmes de production solaire " | L79: Chapitre "Emetteurs de chauffage" | O79: Chapitre "Emetteurs de chauffage" | R79: Chapitre "Emetteurs de chauffage"
B80: 63 | C80: 3 | D80: 68 | I80: S/Solaire | L80: Chapitre "Système de production d'ECS du projet" | O80: Chapitre "Système de production d'ECS du projet" | R80: Chapitre "Système de production d'ECS du projet"
B81: 64 | C81: 3 | D81: 69 | I81: Système solaire associé | L81: 2/ Distribution | O81: 2/ Distribution | R81: 2/ Distribution
B82: 65 | C82: =IF(B82>$D$620+$E$620,3,IF(B82>$D$620,2,1)) -> 3 | D82: 70 | E82: ="'"&INDEX($D$610:$F$610,1,$C82)&"'!"&ADDRESS($D82,INDEX($D$612:$F$612,$C82),4,TRUE,) ->  | F82: ="'"&INDEX($D$610:$F$610,1,$C82)&"'!"&ADDRESS($D82,INDEX($D$615:$F$615,1,$C82),4,TRUE,) ->  | I82: Productions solaires du projet | L82: Mode de saisie | O82: Mode de saisie | R82: Mode de saisie
B83: 66 | C83: =IF(B83>$D$620+$E$620,3,IF(B83>$D$620,2,1)) -> 3 | D83: 71 | H83: =INDIRECT($E83) ->  | I83: Renommer le nom du capteur | J83: =INDIRECT($F83) ->  | K83: =INDIRECT($E83) ->  | L83: Régime de température | M83: =INDIRECT($F83) ->  | N83: =INDIRECT($E83) ->  | O83: Régime de température | P83: =INDIRECT($F83) ->  | Q83: =INDIRECT($E83) ->  | R83: Régime de température | S83: =INDIRECT($F83) -> 
B84: 67 | C84: 3 | D84: =IF(C84>C83,8,D83+1) -> 72 | I84: 1/ Généralités de la production | L84: Température de départ °C | O84: Température de départ °C | R84: Température de départ °C
B85: 68 | C85: 3 | D85: 73 | I85: Production collective | L85: Chute Aller-retour | O85: Chute Aller-retour | R85: Chute Aller-retour
B86: 69 | C86: 3 | D86: 74 | I86: 2/Les capteurs solaires | L86: Régulation de la température de distribution | O86: Régulation de la température de distribution | R86: Régulation de la température de distribution
B87: 70 | C87: 3 | D87: 75 | I87: Modèle de capteur | L87: Maintien en température du réseau | O87: Maintien en température du réseau | R87: Maintien en température du réseau
B88: 71 | C88: 3 | D88: 76 | I88: 2/1 Caractéristiques du capteur | L88: Longueur canalisation NON maintenues en température EN volume chauffé (m) | O88: Longueur canalisation NON maintenues en température EN volume chauffé (m) | R88: Longueur canalisation NON maintenues en température EN volume chauffé (m)
B89: 72 | C89: 3 | D89: 77 | I89: Surface A du capteur (m² hors tout du capteur) | L89: Longueur canalisation NON maintenues en température HORS volume chauffé (m) | O89: Longueur canalisation NON maintenues en température HORS volume chauffé (m) | R89: Longueur canalisation NON maintenues en température HORS volume chauffé (m)
B90: 73 | C90: 3 | D90: 78 | I90: Coef de pertes a1 ou K (W/m².K) | L90: Diamètre intérieur moyen (mm) | O90: Diamètre intérieur moyen (mm) | R90: Diamètre intérieur moyen (mm)
B91: 74 | C91: 3 | D91: 79 | I91: Rendement optique Eta0 ou B | L91: Température de distribution (°C) | O91: Température de distribution (°C) | R91: Température de distribution (°C)
B92: 75 | C92: 3 | D92: 80 | I92: Capteur vitré | L92: 3/ Génération | O92: 3/ Génération | R92: 3/ Génération
B93: 76 | C93: 3 | D93: 81 | I93: 2/1 Caractéristiques du capteur suite | L93: 3/ Production | O93: 3/ Production | R93: 3/ Production
B94: 77 | C94: 3 | D94: 82 | I94: Nombre de capteur no 1 | L94: Typologie de la production | O94: Typologie de la production | R94: Typologie de la production
B95: 78 | C95: 3 | D95: 83 | I95: Orientation | L95: Générateur associé | O95: Générateur associé | R95: Générateur associé
B96: 79 | C96: 3 | D96: 84 | I96: Inclinaison | L96: Générateur du projet | O96: Générateur du projet | R96: Générateur du projet
B97: 80 | C97: 3 | D97: 85 | I97: Masques | L97: Production dans le volume chauffé | O97: Production dans le volume chauffé | R97: Production dans le volume chauffé
B98: 81 | C98: 3 | D98: 86 | I98: 3/Les stockages solaires | L98: Production d'ECS la nuit uniquement | O98: Production d'ECS la nuit uniquement | R98: Production d'ECS la nuit uniquement
B99: 82 | C99: 3 | D99: 87 | I99: Stockage solaire N°1 | L99: Générateur du projet | O99: Générateur du projet | R99: Générateur du projet
B100: 83 | C100: 3 | D100: 88 | I100: Modèle du ballon | L100: Modifier le nom du système de production de chauffage | O100: Modifier le nom du système de production de chauffage | R100: Modifier le nom du système de production de chauffage
B101: 84 | C101: 3 | D101: 89 | I101: Stockages solaires du projet | L101: 3/G - Généralités du générateur | O101: 3/G - Généralités du générateur | R101: 3/G - Généralités du générateur
B102: 85 | C102: 3 | D102: 90 | I102: 3/1 Caractéristique du stockage | L102: Type de générateur | O102: Type de générateur | R102: Type de générateur
B103: 86 | C103: 3 | D103: 91 | I103: Volume du stockageVn | L103: Année de mise en service | O103: Année de mise en service | R103: Année de mise en service
B104: 87 | C104: 3 | D104: 92 | I104: Echangeur appoint intégré | L104: Mode de saisie | O104: Mode de saisie | R104: Mode de saisie
B105: 88 | C105: 3 | D105: 93 | I105: Perte du ballon Cr ou UA Wh/ L.K.jour | L105: Source d'énergie | O105: Source d'énergie | R105: Source d'énergie
B106: 89 | C106: 3 | D106: 94 | I106: Usage du stockage | L106: Fluide Amont | O106: Fluide Amont | R106: Fluide Amont
B107: 90 | C107: 3 | D107: 95 | I107: 3/Les stockages solaires suite | L107: Fluide Aval | O107: Fluide Aval | R107: Fluide Aval
B108: 91 | C108: 3 | D108: 96 | I108: Nombre de ballon solaire | L108: Chauffage | O108: Chauffage | R108: Chauffage
B109: 92 | C109: 3 | D109: 97 | I109: Appoint toujours disponible | L109: ECS | O109: ECS | R109: ECS
B110: 93 | C110: 3 | D110: 98 | I110: Stockage dans le volume chauffé | L110: Refroidissement | O110: Refroidissement | R110: Refroidissement
B111: 94 | C111: 3 | D111: 99 | I111: Création d'un ballon ECS | L111: Taux du générateur (T.aux) | O111: Taux du générateur (T.aux) | R111: Taux du générateur (T.aux), suivant Titre V | S111: 0
B112: 95 | C112: 3 | D112: 100 | I112: Chapitre "Systèmes de production d'ECS du projet" | L112: Certification | O112: Certification | R112: Certification
B113: 96 | C113: 3 | D113: 101 | I113: Modifier le nom du système de production ECS | L113: 3/E - Détail de l'unité extérieure | O113: 3/E - Détail de l'unité extérieure | R113: 3/E - Détail de l'unité extérieure
B114: 97 | C114: 3 | D114: 102 | I114: 1/Généralités | L114: Puissance ventillateur (W) | O114: Puissance ventillateur (W) | R114: Puissance ventillateur (W)
B115: 98 | C115: 3 | D115: 103 | I115: m² par Nu (ratio pour calcul des besoins ECS) | L115: 3/C - Production de chaud | O115: 3/C - Production de chaud | R115: 3/C - Production de chaud
B116: 99 | C116: 3 | D116: 104 | I116: Type de production | L116: Saisie des matrices du générateurs | O116: Saisie des matrices du générateurs | R116: Saisie des matrices du générateurs
B117: 100 | C117: 3 | D117: 105 | I117: Maintien en température du réseau | L117: Matrice des puissances absorbées | O117: Matrice des puissances absorbées | R117: Matrice des puissances absorbées
B118: 101 | C118: 3 | D118: 106 | I118: Générateur associé | L118: Case T° moy Aval (°C) \ T° Amont (°C) 7°C/45°C | O118: Case T° moy Aval (°C) \ T° Amont (°C) 7°C/45°C | R118: Case T° moy Aval (°C) \ T° Amont (°C) 7°C/45°C
B119: 102 | C119: 3 | D119: 107 | I119: 3/E - Production d'ECS | L119: Bouton afficher en puissance absorbée | O119: Bouton afficher en puissance absorbée | R119: Bouton afficher en puissance absorbée
B120: 103 | C120: 3 | D120: 108 | I120: Mode de production ECS | L120: Matrice des puissances absorbées | O120: Matrice des puissances absorbées | R120: Matrice des puissances absorbées
B121: 104 | C121: 3 | D121: 109 | I121: Volume du ballon intégré ou dédié | L121: T° moy Aval (°C) \ T° Amont (°C) | O121: T° moy Aval (°C) \ T° Amont (°C) | R121: T° moy Aval (°C) \ T° Amont (°C)
B122: 105 | C122: 3 | D122: 110 | I122: Constante de refroidissement du ballon (Wh/ L.K.jour) | L122: 23,5 °C | O122: 23,5 °C | R122: 23,5 °C
B123: 106 | C123: 3 | D123: 111 | I123: ou Ua (W/K) | L123: 32,5 °C | O123: 32,5 °C | R123: 32,5 °C
B124: 107 | C124: 3 | D124: 112 | I124: Justifié / Certifié | L124: 42,5 °C | O124: 42,5 °C | R124: 42,5 °C
B125: 108 | C125: 3 | D125: 113 | I125: Appoint effet Joule | L125: 51 °C | O125: 51 °C | R125: 51 °C
B126: 109 | C126: 3 | D126: 114 | I126: Puissance de l'appoint EJ | L126: 60 °C | O126: 60 °C | R126: 60 °C
B127: 110 | C127: 3 | D127: 115 | I127: Mode de saisie du ballon | L127: Matrice des COP | O127: Matrice des COP | R127: Matrice des COP
B128: 111 | C128: 3 | D128: 116 | I128: Température maxi de stockage | L128: Case T° moy Aval (°C) \ T° Amont (°C) 7°C/45°C | O128: Case T° moy Aval (°C) \ T° Amont (°C) 7°C/45°C | R128: Case T° moy Aval (°C) \ T° Amont (°C) 7°C/45°C
B129: 112 | C129: 3 | D129: 117 | I129: Hauteur relative de l'échangeur (%) | L129: Matrice des COP | O129: Matrice des COP | R129: Matrice des COP
B130: 113 | C130: 3 | D130: 118 | I130: Hystérésis régulation | L130: T° moy Aval (°C) \ T° Amont (°C) | O130: T° moy Aval (°C) \ T° Amont (°C) | R130: T° moy Aval (°C) \ T° Amont (°C)
B131: 114 | C131: 3 | D131: 119 | I131: Nunéro de zone régulation | L131: 23,5 °C | O131: 23,5 °C | R131: 23,5 °C
B132: 115 | C132: 3 | D132: 120 | I132: Hauteur relative de l'échangeur d'appoint (%) | L132: 32,5 °C | O132: 32,5 °C | R132: 32,5 °C
B133: 116 | C133: 3 | D133: 121 | I133: Part du volume couvert par l'appoint (f aux) | L133: 42,5 °C | O133: 42,5 °C | R133: 42,5 °C
B134: 117 | C134: 3 | D134: 122 | I134: Hystérésis régulation régulation appoint | L134: 51 °C | O134: 51 °C | R134: 51 °C
B135: 118 | C135: 3 | D135: 123 | I135: Nunéro de zone thermostat appoint | L135: 60 °C | O135: 60 °C | R135: 60 °C
B136: 119 | C136: 3 | D136: 124 | I136: Nunéro de zone régulation appoint | L136: Vérifier que les cases sélectionnées contiennent ces valeurs et valider par "Ok" | O136: Vérifier que les cases sélectionnées contiennent ces valeurs et valider par "Ok" | R136: Vérifier que les cases sélectionnées contiennent ces valeurs et valider par "Ok"
B137: 120 | C137: 3 | D137: 125 | I137: 1/ Généralités suite | L137: Matrice Statut des valeurs | O137: Matrice Statut des valeurs | R137: Matrice Statut des valeurs
B138: 121 | C138: 3 | D138: 126 | I138: Production dans le volume chauffé | L138: Matrice Statut des valeurs | O138: Matrice Statut des valeurs | R138: Matrice Statut des valeurs
B139: 122 | C139: 3 | D139: 127 | I139: Production d'ECS la nuit uniquement | L139: Justifié / Certifié | O139: Justifié / Certifié | R139: Justifié / Certifié
B140: 123 | C140: 3 | D140: 128 | I140: Part ECS gratuite (valeur selon titre V) | L140: Fin matrice | O140: Fin matrice | R140: Fin matrice
B141: 124 | C141: 3 | D141: 129 | I141: S/Solaire | L141: T° limite Amont (°C) | O141: T° limite Amont (°C) | R141: T° limite Amont (°C), suivant Titre V | S141: -5 (à 35°C) / -4,8 (à 45 °C) / -3,8 (à 55 °C)
B142: 125 | C142: 3 | D142: 130 | I142: Système solaire associé | L142: T° limite Aval (°C) | O142: T° limite Aval (°C) | R142: T° limite Aval (°C), suivant Titre V | S142: 100
B143: 126 | C143: 3 | D143: 131 | I143: Productions solaires du projet | L143: Ratio de modulation à Pmin (Lrcontmin) | O143: Ratio de modulation à Pmin (Lrcontmin) | R143: Ratio de modulation à Pmin (Lrcontmin) | T143: Part puissance électrique auxiliaires chaud T.aux Suivant Titre V
B144: 127 | C144: 3 | D144: 132 | I144: S/1 Généralités de la production | L144: Certification | O144: Certification | R144: Certification
B145: 128 | C145: 3 | D145: 133 | I145: Production collective | L145: Coef Correction performance à Pmin (CcpLRcontmin) | O145: Coef Correction performance à Pmin (CcpLRcontmin) | R145: Coef Correction performance à Pmin (CcpLRcontmin) | T145: 0.007
B146: 129 | C146: 3 | D146: 134 | E146: ="'"&INDEX($D$610:$F$610,1,$C146)&"'!"&ADDRESS($D146,INDEX($D$612:$F$612,$C146),4,TRUE,) ->  | F146: ="'"&INDEX($D$610:$F$610,1,$C146)&"'!"&ADDRESS($D146,INDEX($D$615:$F$615,1,$C146),4,TRUE,) ->  | I146: S/2Les capteurs solaires | L146: Deq du générateur (min) | O146: Deq du générateur (min) | R146: Deq du générateur (min)
B147: 130 | C147: =IF(B147>$D$620+$E$620,3,IF(B147>$D$620,2,1)) -> 3 | D147: 135 | H147: =INDIRECT($E147) ->  | I147: Capteur solaire no 1 | J147: =INDIRECT($F147) ->  | K147: =INDIRECT($E147) ->  | L147: 3/E - Production d'ECS | M147: =INDIRECT($F147) ->  | N147: =INDIRECT($E147) ->  | O147: 3/E - Production d'ECS | P147: =INDIRECT($F147) ->  | Q147: =INDIRECT($E147) ->  | R147: 3/E - Production d'ECS | S147: =INDIRECT($F147) -> 
B148: 131 | C148: 3 | D148: =IF(C148>C147,8,D147+1) -> 136 | I148: 3/Les stockages solaires | L148: Module de production d'ECS | O148: Module de production d'ECS | R148: Module de production d'ECS
B149: 132 | C149: 3 | D149: 137 | I149: Stockage solaire no 1 | L149: Volume du ballon intégré ou dédié (L) | O149: Volume du ballon intégré ou dédié (L) | R149: Volume du ballon intégré ou dédié (L)
B150: 133 | C150: 3 | D150: 138 | I150: Modèle du ballon | L150: Constante de refroidissement du ballon (Wh/L.K.Jour) | O150: Constante de refroidissement du ballon (Wh/L.K.Jour) | R150: Constante de refroidissement du ballon (Wh/L.K.Jour)
B151: 134 | C151: 3 | D151: 139 | I151: Stockages solaires du projet | L151: ou Ua (W/K) | O151: ou Ua (W/K) | R151: ou Ua (W/K)
B152: 135 | C152: 3 | D152: 140 | I152: Renommer le système "ECS solaire individuelle" | L152: Justifié / Certifié | O152: Justifié / Certifié | R152: Justifié / Certifié
B153: 136 | C153: 3 | D153: 141 | I153: 3/1 Caractéristique du stockage | L153: Appoint effet Joule | O153: Appoint effet Joule | R153: Appoint effet Joule
B154: 137 | C154: 3 | D154: 142 | I154: Volume du stockage Vn | L154: Puissance de l'appoint EJ | O154: Puissance de l'appoint EJ | R154: Puissance de l'appoint EJ
B155: 138 | C155: 3 | D155: 143 | I155: Echangeur appoint intégré | L155: Mode de saisie du ballon | O155: Mode de saisie du ballon | R155: Mode de saisie du ballon
B156: 139 | C156: 3 | D156: 144 | I156: Perte du ballon Cr ou UA Wh/ L.K.jour | L156: Température maxi de stockage | O156: Température maxi de stockage | R156: Température maxi de stockage
B157: 140 | C157: 3 | D157: 145 | I157: Usage du stockage | L157: Hauteur relative de l'échangeur | O157: Hauteur relative de l'échangeur | R157: Hauteur relative de l'échangeur
B158: 141 | C158: 3 | D158: 146 | I158: 3/Les stockages solaires suite | L158: Hystérésis régulation | O158: Hystérésis régulation | R158: Hystérésis régulation
B159: 142 | C159: 3 | D159: 147 | I159: Nombre de ballon solaire | L159: Nunéro de zone régulation | O159: Nunéro de zone régulation | R159: Nunéro de zone régulation
B160: 143 | C160: 3 | D160: 148 | I160: Appoint toujours disponible | L160: Hauteur relative de l'échangeur d'appoint (%) | O160: Hauteur relative de l'échangeur d'appoint (%) | R160: Hauteur relative de l'échangeur d'appoint (%)
B161: 144 | C161: 3 | D161: 149 | I161: Stockage dans le volume chauffé | L161: Part du volume couvert par l'appoint (f aux) | O161: Part du volume couvert par l'appoint (f aux) | R161: Part du volume couvert par l'appoint (f aux)
B162: 145 | C162: 3 | D162: 150 | I162: La boucle solaire | L162: Hystérésis régulation régulation appoint | O162: Hystérésis régulation régulation appoint | R162: Hystérésis régulation régulation appoint
B163: 146 | C163: 3 | D163: 151 | I163: Puissance nominale du circulateur | L163: Nunéro de zone thermostat appoint | O163: Nunéro de zone thermostat appoint | R163: Nunéro de zone thermostat appoint
B164: 147 | C164: 3 | D164: 152 | I164: Fonctionnement intermittent pour l'ECS | L164: Nunéro de zone régulation appoint | O164: Nunéro de zone régulation appoint | R164: Nunéro de zone régulation appoint
B165: 148 | C165: 3 | D165: 153 | I165: 0 | L165: Saisie des matrices des générateurs | O165: Saisie des matrices des générateurs | R165: Saisie des matrices des générateurs
B166: 149 | C166: 3 | D166: 154 | I166: 0 | L166: Matrice des puissances absorbées | O166: Matrice des puissances absorbées | R166: Matrice des puissances absorbées
B167: 150 | C167: 3 | D167: 155 | I167: 0 | L167: Case T° moy Aval (°C) \ T° Amont (°C) | O167: Case T° moy Aval (°C) \ T° Amont (°C) | R167: Case T° moy Aval (°C) \ T° Amont (°C)
B168: 151 | C168: 3 | D168: 156 | I168: 0 | L168: Matrice des puissances absorbées | O168: Matrice des puissances absorbées | R168: Matrice des puissances absorbées
B169: 152 | C169: 3 | D169: 157 | I169: 0 | L169: T° moy Aval (°C) \ T° Amont (°C) | O169: T° moy Aval (°C) \ T° Amont (°C) | R169: T° moy Aval (°C) \ T° Amont (°C)
B170: 153 | C170: 3 | D170: 158 | I170: 0 | L170: à 45 °C (en kW) | O170: à 45 °C (en kW) | R170: à 45 °C (en kW)
B171: 154 | C171: 3 | D171: 159 | I171: 0 | L171: Case T° moy Aval (°C) \ T° Amont (°C) | O171: Case T° moy Aval (°C) \ T° Amont (°C) | R171: Case T° moy Aval (°C) \ T° Amont (°C)
B172: 155 | C172: 3 | D172: 160 | I172: 0 | L172: Matrice des COP | O172: Matrice des COP | R172: Matrice des COP
B173: 156 | C173: 3 | D173: 161 | I173: 0 | L173: T° moy Aval (°C) \ T° Amont (°C) | O173: T° moy Aval (°C) \ T° Amont (°C) | R173: T° moy Aval (°C) \ T° Amont (°C)
B174: 157 | C174: 3 | D174: 162 | I174: 0 | L174: à 45 °C | O174: à 45 °C | R174: à 45 °C
B175: 158 | C175: 3 | D175: 163 | I175: 0 | L175: Case T° moy Aval (°C) \ T° Amont (°C) | O175: Case T° moy Aval (°C) \ T° Amont (°C) | R175: Case T° moy Aval (°C) \ T° Amont (°C)
B176: 159 | C176: 3 | D176: 164 | I176: 0 | L176: Matrice Statut des valeurs | O176: Matrice Statut des valeurs | R176: Matrice Statut des valeurs
B177: 160 | C177: 3 | D177: 165 | I177: 0 | L177: T° moy Aval (°C) \ T° Amont (°C) | O177: T° moy Aval (°C) \ T° Amont (°C) | R177: T° moy Aval (°C) \ T° Amont (°C)
B178: 161 | C178: 3 | D178: 166 | I178: 0 | L178: à 45 °C | O178: à 45 °C | R178: à 45 °C
B179: 162 | C179: 3 | D179: 167 | I179: 0 | L179: Vérifier que les cases sélectionnées contiennent ces valeurs et valider par "Ok" | O179: Vérifier que les cases sélectionnées contiennent ces valeurs et valider par "Ok" | R179: Vérifier que les cases sélectionnées contiennent ces valeurs et valider par "Ok"
B180: 163 | C180: 3 | D180: 168 | I180: 0 | L180: Fin matrice | O180: Fin matrice | R180: Fin matrice
B181: 164 | C181: 3 | D181: 169 | I181: 0 | L181: T° limite Amont (°C) | O181: T° limite Amont (°C) | R181: T° limite Amont (°C)
B182: 165 | C182: 3 | D182: 170 | I182: 0 | L182: T° limite Aval (°C) | O182: T° limite Aval (°C) | R182: T° limite Aval (°C)
B183: 166 | C183: 3 | D183: 171 | I183: 0 | L183: Ratio de modulation à Pmin (Lrcontmin) | O183: Ratio de modulation à Pmin (Lrcontmin) | R183: Ratio de modulation à Pmin (Lrcontmin)
B184: 167 | C184: 3 | D184: 172 | I184: 0 | L184: Certication du ratio de modulation à Pmin | O184: Certication du ratio de modulation à Pmin | R184: Certication du ratio de modulation à Pmin
B185: 168 | C185: 3 | D185: 173 | I185: 0 | L185: Coef Correction performance à Pmin (CcpLRcontmin) | O185: Coef Correction performance à Pmin (CcpLRcontmin) | R185: Coef Correction performance à Pmin (CcpLRcontmin)
B186: 169 | C186: 3 | D186: 174 | I186: 0
B187: 170 | C187: 3 | D187: 175 | I187: 0
B188: 171 | C188: 3 | D188: 176 | I188: 0
B189: 172 | C189: 3 | D189: 177 | I189: 0
B190: 173 | C190: 3 | D190: 178 | I190: 0
B191: 174 | C191: 3 | D191: 179 | I191: 0
B192: 175 | C192: 3 | D192: 180 | I192: 0
B193: 176 | C193: 3 | D193: 181 | I193: 0
B194: 177 | C194: 3 | D194: 182 | I194: 0
B195: 178 | C195: 3 | D195: 183 | I195: 0
B196: 179 | C196: 3 | D196: 184 | I196: 0
B197: 180 | C197: 3 | D197: 185 | I197: 0
B198: 181 | C198: 3 | D198: 186 | I198: 0
B199: 182 | C199: 3 | D199: 187 | I199: 0
B200: 183 | C200: 3 | D200: 188 | I200: 0
... 310 more rows

Sheet CW PAC (hidden)
B1: cellules à modifier pour màj | F1: Désignation gamme SD | G1: Désignation gamme SD | H1: Kit Genia Air | I1: Kit Genia Air | J1: Kit Genia Air | K1: Kit Genia Air | L1: Kit Genia Air | M1: Kit Genia Air | N1: Kit Genia Air | O1: Kit Genia Air | P1: Kit Genia Air ECS | Q1: Kit Genia Air ECS | R1: Kit Genia Air ECS | S1: Kit Genia Air ECS | T1: Kit Genia Air ECS | U1: Kit Genia Air ECS | V1: Kit Genia Air ECS | X1: Kit Genia Air ECS | Z1: Kit Genia Air ECS | AA1: Kit Genia Air ECS | AB1: Kit Genia Air ECS | AC1: Kit Genia Hybrid | AD1: Kit Genia Hybrid Universel | AE1: Kit Genia Hybrid | AF1: Kit Genia Hybrid Universel | AG1: Kit Genia Hybrid | AH1: Kit Genia Hybrid Universel | AI1: Kit Genia Hybrid | AJ1: Kit Genia Hybrid Universel | AS1: Kit Genia Air ECS | AT1: Magna Aqua 300 / 2 | AU1: Magna Aqua 300 / 2 | AV1: Magna Aqua 300 / 2 | AW1: Magna Aqua monovalent | AX1: Magna Aqua appoint électrique | AY1: Magna Aqua monovalent | AZ1: Magna Aqua appoint électrique | BA1: Magna Aqua 190 | BB1: Magna Aqua 190 | BC1: Magna Aqua monovalent | BD1: Magna Aqua appoint électrique | BE1: Magna Aqua 300 / 2 | BF1: Magna Aqua 300 / 2 | BG1: Magna Aqua 300 / 2 | BH1: Kit GeniaSet | BI1: Kit GeniaSet | BJ1: Kit GeniaSet | BK1: Kit GeniaSet | BL1: Magna Aqua 300 / 2 Air Ambiant | BM1: Magna Aqua 300 / 2 Air Ambiant | BN1: Magna Aqua 300 / 2 Air Ambiant | BO1: Magna Aqua 200 | BP1: Magna Aqua 200 | BT1: Magna Aqua monovalent | BW1: Kit GeniaSet Split | BX1: Kit GeniaSet Split | BY1: Kit GeniaSet Split | BZ1: Kit GeniaSet Split | CA1: Kit GeniaSet Split | CB1: Magna Aqua monovalent | CJ1: Magna Aqua appoint électrique | CK1: Magna Aqua appoint électrique | CL1: Magna Aqua appoint électrique | CM1: Magna Aqua monovalent | CN1: Magna Aqua appoint électrique | CO1: Magna Aqua monovalent | CP1: Magna Aqua appoint électrique | CQ1: Magna Aqua monovalent | CR1: Magna Aqua appoint électrique | CS1: Magna Aqua monovalent | CT1: Magna Aqua appoint électrique | CU1: Magna Aqua monovalent | CV1: Magna Aqua bivalent | CW1: Kit GeniaAir Split | CX1: Kit GeniaAir Split | CY1: Kit GeniaAir Split | CZ1: Kit GeniaAir Split | DA1: Kit GeniaAir Split | DB1: Kit GeniaAir Split + FEW 300 | DC1: Kit GeniaAir Split + FEW 300 | DD1: Kit GeniaAir Split + FEW 300 | DE1: Kit GeniaAir Split + FEW 300 | DF1: Kit GeniaAir Split + FEW 300 | DG1: Kit GeniaAir Split + FEW 200 | DH1: Kit GeniaAir Split + FEW 200 | DI1: Kit GeniaAir Split + FEW 200 | DJ1: Kit GeniaAir Split + FEW 200 | DK1: Kit GeniaAir Split + FEW 200 | DL1: Magna Aqua monovalent | DM1: Magna Aqua appoint électrique | DN1: Kit GeniaSet Max | DO1: Kit GeniaSet Max | DP1: Kit GeniaSet Max | DQ1: Kit GeniaSet Max | DR1: Kit GeniaSet Max | DS1: Kit GeniaSet Max | DT1: Kit GeniaSet Max | DU1: Kit GeniaAir Max | DV1: Kit GeniaAir Max | DW1: Kit GeniaAir Max | DX1: Kit GeniaAir Max | DY1: Kit GeniaAir Max | DZ1: Kit GeniaAir Max | EA1: Kit GeniaAir Max | EB1: Kit GeniaAir Max + FEW 300 | EC1: Kit GeniaAir Max + FEW 300 | ED1: Kit GeniaAir Max + FEW 300 | EE1: Kit GeniaAir Max + FEW 300 | EF1: Kit GeniaAir Max + FEW 300 | EG1: Kit GeniaAir Max + FEW 300 | EH1: Kit GeniaAir Max + FEW 300 | EI1: Kit GeniaAir Max + FEW 200 | EJ1: Kit GeniaAir Max + FEW 200 | EK1: Kit GeniaAir Max + FEW 200 | EL1: Kit GeniaAir Max + FEW 200 | EM1: Kit GeniaAir Max + FEW 200 | EN1: Kit GeniaAir Max + FEW 200 | EO1: Kit GeniaAir Max + FEW 200
F2: Désignation gamme V | G2: Désignation gamme V | H2: aroTHERM | J2: aroTHERM | L2: aroTHERM | N2: aroTHERM | W2: aroTHERM ECS | Y2: aroTHERM ECS | AC2: aroTHERM Hybride | AE2: aroTHERM Hybride | AG2: aroTHERM Hybride | AI2: aroTHERM Hybride | AK2: geoTHERM VWS | AL2: geoTHERM VWS | AM2: geoTHERM VWS | AN2: geoTHERM VWS | AO2: geoTHERM VWS | AP2: geoTHERM VWS exclusiv | AQ2: geoTHERM VWS exclusiv | AR2: geoTHERM VWS exclusiv | AT2: aroSTOR | AU2: aroSTOR | AV2: aroSTOR | BE2: aroSTOR | BF2: aroSTOR | BG2: aroSTOR | BH2: aroTHERM + uniTOWER | BI2: aroTHERM + uniTOWER | BJ2: aroTHERM + uniTOWER | BK2: aroTHERM + uniTOWER | BL2: aroSTOR | BM2: aroSTOR | BN2: aroSTOR | BQ2: flexoCOMPACT exclusive | BR2: flexoCOMPACT exclusive | BS2: flexoCOMPACT exclusive | BU2: flexoTHERM exclusive | BV2: geoTHERM VWS | BW2: aroTHERM Split + uniTOWER Split | BX2: aroTHERM Split + uniTOWER Split | BY2: aroTHERM Split + uniTOWER Split | BZ2: aroTHERM Split + uniTOWER Split | CA2: aroTHERM Split + uniTOWER Split | CC2: flexoTHERM exclusive | CD2: flexoTHERM exclusive | CE2: flexoTHERM exclusive | CF2: flexoTHERM exclusive | CG2: flexoTHERM exclusive | CH2: flexoTHERM exclusive | CI2: flexoTHERM exclusive | CP2: aroSTOR | CQ2: aroSTOR | CT2: aroSTOR | CU2: aroSTOR | CV2: aroSTOR | CW2: aroTHERM Split | CX2: aroTHERM Split | CY2: aroTHERM Split | CZ2: aroTHERM Split | DA2: aroTHERM Split | DB2: aroTHERM Split avec geoSTOR | DC2: aroTHERM Split avec geoSTOR | DD2: aroTHERM Split avec geoSTOR | DE2: aroTHERM Split avec geoSTOR | DF2: aroTHERM Split avec geoSTOR | DG2: aroTHERM Split avec geoSTOR | DH2: aroTHERM Split avec geoSTOR | DI2: aroTHERM Split avec geoSTOR | DJ2: aroTHERM Split avec geoSTOR | DK2: aroTHERM Split avec geoSTOR | EP2: aroTHERM plus avec uniTOWER | EQ2: aroTHERM plus avec uniTOWER | ER2: aroTHERM plus avec uniTOWER | ES2: aroTHERM plus avec uniTOWER | ET2: aroTHERM plus avec uniTOWER | EU2: aroTHERM plus avec uniTOWER | EV2: aroTHERM plus avec uniTOWER | EW2: aroTHERM plus | EX2: aroTHERM plus | EY2: aroTHERM plus | EZ2: aroTHERM plus | FA2: aroTHERM plus | FB2: aroTHERM plus | FC2: aroTHERM plus | FD2: aroTHERM plus avec geoSTOR | FE2: aroTHERM plus avec geoSTOR | FF2: aroTHERM plus avec geoSTOR | FG2: aroTHERM plus avec geoSTOR | FH2: aroTHERM plus avec geoSTOR | FI2: aroTHERM plus avec geoSTOR | FJ2: aroTHERM plus avec geoSTOR | FK2: aroTHERM plus avec geoSTOR | FL2: aroTHERM plus avec geoSTOR | FM2: aroTHERM plus avec geoSTOR | FN2: aroTHERM plus avec geoSTOR | FO2: aroTHERM plus avec geoSTOR | FP2: aroTHERM plus avec geoSTOR | FQ2: aroTHERM plus avec geoSTOR
F3: Désignation modèle SD | G3: Désignation modèle SD | H3: Genia Air 5/2 | I3: Kit Genia Air 6 | J3: Genia Air 8/2 | K3: Kit Genia Air 8 | L3: Genia Air 11 | M3: Kit Genia Air 12 | N3: Genia Air 15/1 | O3: Kit Genia Air 15 | P3: Kit Genia Air ECS 6 | Q3: Kit Genia Air ECS 5/2 FEW 200 ME | R3: Kit Genia Air ECS 8/2 FEW 200 ME | S3: Kit Genia Air ECS 8/2 FEW 300 ME | T3: Kit Genia Air ECS 8/1 FE 300 SC | U3: Kit Genia Air ECS 8 | V3: Kit Genia Air ECS 11 FE 300 SC | X3: Kit Genia Air ECS 11 FEW 300 ME | Z3: Kit Genia Air ECS 12 | AA3: Kit Genia Air ECS 15 | AB3: Kit Genia Air ECS 15/1 FEW 300 ME | AC3: Kit Genia Hybrid 5/2 | AD3: Kit Genia Hybrid Universel 6 | AE3: Kit Genia Hybrid 8/2 | AF3: Kit Genia Hybrid Universel 8 | AG3: Kit Genia Hybrid 11 | AH3: Kit Genia Hybrid Universel 12 | AI3: Kit Genia Hybrid 15/1 | AJ3: Kit Genia Hybrid Universel 15 | AS3: Kit Genia Air ECS 6 Performance RT | AT3: Magna Aqua 300 / 2 (monovalent) Cycle XL | AU3: Magna Aqua 300 / 2 (électrique) Cycle XL | AV3: Magna Aqua 300 / 2 C (bivalent) Cycle XL | AW3: Magna Aqua 150/2 S (monovalent) | AX3: Magna Aqua 150/2 (électrique) | AY3: Magna Aqua 150 (monovalent) | AZ3: Magna Aqua 150 (électrique) | BA3: CET 190 PROVISOIRE (monovalent) | BB3: CET 190 PROVISOIRE (électrique) | BC3: Magna Aqua 200/2 Performance RT (monovalent) | BD3: Magna Aqua 200/2 Performance RT (électrique) | BE3: Magna Aqua 300 / 2 (monovalent) | BF3: Magna Aqua 300 / 2 (électrique) | BG3: Magna Aqua 300 / 2 C (bivalent) | BH3: Kit GeniaSet 5 | BI3: Kit GeniaSet 8 | BJ3: Kit GeniaSet 11 | BK3: Kit GeniaSet 15 | BL3: Magna Aqua 300 / 2 Air Ambiant (monovalent) | BM3: Magna Aqua 300 / 2 Air Ambiant (électrique) | BN3: Magna Aqua 300 / 2 C Air Ambiant (bivalent) | BO3: Magna Aqua 200/2 (monovalent) | BP3: Magna Aqua 200/2 (électrique) | BT3: Magna Aqua 150/2 OptiGaz | BW3: Kit GeniaSet Split 3 | BX3: Kit GeniaSet Split 5 | BY3: Kit GeniaSet Split 7 | BZ3: Kit GeniaSet Split 10 | CA3: Kit GeniaSet Split 12 | CB3: Magna Aqua 100/3 OptiGaz | CJ3: Magna Aqua 80/3 CC (électrique) | CK3: Magna Aqua 100/3 CC (électrique) | CL3: Magna Aqua 150/3 CC (électrique) | CM3: Magna Aqua 150/3 S (monovalent) | CN3: Magna Aqua 150/3 (électrique) | CO3: Magna Aqua 150/3 OptiGaz | CP3: Magna Aqua 200/3 (électrique) | CQ3: Magna Aqua 200/3 S (monovalent) | CR3: Magna Aqua 200/3 Performance RT (électrique) | CS3: Magna Aqua 200/3 Performance RT (monovalent) | CT3: Magna Aqua 270/3 (électrique) | CU3: Magna Aqua 270/3 S (monovalent) | CV3: Magna Aqua 270/3 C (bivalent) | CW3: Kit GeniaAir Split 3 | CX3: Kit GeniaAir Split 5 | CY3: Kit GeniaAir Split 7 | CZ3: Kit GeniaAir Split 10 | DA3: Kit GeniaAir Split 12 | DB3: Kit GeniaAir Split 3 + FEW 300/3 MR | DC3: Kit GeniaAir Split 5 + FEW 300/3 MR | DD3: Kit GeniaAir Split 7 + FEW 300/3 MR | DE3: Kit GeniaAir Split 10 + FEW 300/3 MR | DF3: Kit GeniaAir Split 12 + FEW 300/3 MR | DG3: Kit GeniaAir Split 3 + FEW 200 ME | DH3: Kit GeniaAir Split 5 + FEW 200 ME | DI3: Kit GeniaAir Split 7 + FEW 200 ME | DJ3: Kit GeniaAir Split 10 + FEW 200 ME | DK3: Kit GeniaAir Split 12 + FEW 200 ME | DL3: Magna Aqua 100/3 S (monovalent) | DM3: Magna Aqua 100/3 (électrique) | DN3: Kit GeniaSet Max 4 - 230 V | DO3: Kit GeniaSet Max 5 - 230 V | DP3: Kit GeniaSet Max 8 - 230 V | DQ3: Kit GeniaSet Max 12 - 230 V | DR3: Kit GeniaSet Max 15 - 230 V | DS3: Kit GeniaSet Max 12 - 400 V | DT3: Kit GeniaSet Max 15 - 400 V | DU3: Kit GeniaAir Max 4 - 230 V | DV3: Kit GeniaAir Max 5 - 230 V | DW3: Kit GeniaAir Max 8 - 230 V | DX3: Kit GeniaAir Max 12 - 230 V | DY3: Kit GeniaAir Max 15 - 230 V | DZ3: Kit GeniaAir Max 12 - 400 V | EA3: Kit GeniaAir Max 15 - 400 V | EB3: Kit GeniaAir Max 4 - 230 V + FEW 300/3 MR | EC3: Kit GeniaAir Max 5 - 230 V + FEW 300/3 MR | ED3: Kit GeniaAir Max 8 - 230 V + FEW 300/3 MR | EE3: Kit GeniaAir Max 12 - 230 V + FEW 300/3 MR | EF3: Kit GeniaAir Max 15 - 230 V + FEW 300/3 MR | EG3: Kit GeniaAir Max 12 - 400 V + FEW 300/3 MR | EH3: Kit GeniaAir Max 15 - 400 V + FEW 300/3 MR | EI3: Kit GeniaAir Max 4 - 230 V + FEW 200 ME | EJ3: Kit GeniaAir Max 5 - 230 V + FEW 200 ME | EK3: Kit GeniaAir Max 8 - 230 V + FEW 200 ME | EL3: Kit GeniaAir Max 12 - 230 V + FEW 200 ME | EM3: Kit GeniaAir Max 15 - 230 V + FEW 200 ME | EN3: Kit GeniaAir Max 12 - 400 V + FEW 200 ME | EO3: Kit GeniaAir Max 15 - 400 V + FEW 200 ME
F4: Désignation modèle V | G4: Désignation modèle V | H4: aroTHERM VWL 55/3 A 230V | J4: aroTHERM VWL 85/3 A 230V | L4: aroTHERM VWL 115/2 A 230V | N4: aroTHERM VWL 155/2 A 230V | W4: aroTHERM VWL 85/3 avec geoSTOR VIH RW 300/2 R2 | Y4: aroTHERM VWL 115/2 avec geoSTOR VIH RW 300/2 R2 | AC4: aroTHERM VWL 55/3 A 230V Hybride | AE4: aroTHERM VWL 85/3 A 230V Hybride | AG4: aroTHERM VWL 115/2 A 230V Hybride | AI4: aroTHERM VWL 155/2 A 230V Hybride | AK4: geoTHERM VWS 61/2 | AL4: geoTHERM VWS 81/2 | AM4: geoTHERM VWS 101/2 | AN4: geoTHERM VWS 141/2 | AO4: geoTHERM VWS 171/2 | AP4: geoTHERM VWS 63/2 | AQ4: geoTHERM VWS 83/2 | AR4: geoTHERM VWS 103/2 | AT4: aroSTOR VWL B 290/4 (monovalent) Cycle XL | AU4: aroSTOR VWL B 290/4 (électrique) Cycle XL | AV4: aroSTOR VWL BM 290/4 (bivalent) Cycle XL | BE4: aroSTOR VWL B 290/4 (monovalent) | BF4: aroSTOR VWL B 290/4 (électrique) | BG4: aroSTOR VWL BM 290/4 (bivalent) | BH4: aroTHERM VWL 55/3 avec uniTOWER VIH QW 190/1 E | BI4: aroTHERM VWL 85/3 avec uniTOWER VIH QW 190/1 E | BJ4: aroTHERM VWL 115/2 avec uniTOWER VIH QW 190/1 E | BK4: aroTHERM VWL 155/2 avec uniTOWER VIH QW 190/1 E | BL4: aroSTOR VWL B 290/4 (monovalent) | BM4: aroSTOR VWL B 290/4 (électrique) | BN4: aroSTOR VWL BM 290/4 (bivalent) | BQ4: flexoCOMPACT exclusive VWF 58/4 | BR4: flexoCOMPACT exclusive VWF 88/4 | BS4: flexoCOMPACT exclusive VWF 118/4 | BU4: flexoTHERM exclusive VWF 197/4 400V | BV4: geoTHERM VWS 141/2 | BW4: aroTHERM Split VWL 35/5 avec uniTOWER Split VWL 58/5 | BX4: aroTHERM Split VWL 55/5 avec uniTOWER Split VWL 58/5 | BY4: aroTHERM Split VWL 75/5 avec uniTOWER Split VWL 78/5 | BZ4: aroTHERM Split VWL 105/5 avec uniTOWER Split VWL 128/5 | CA4: aroTHERM Split VWL 125/5 avec uniTOWER Split VWL 128/5 | CC4: flexoTHERM exclusive VWF 57/4 230V | CD4: flexoTHERM exclusive VWF 87/4 230V | CE4: flexoTHERM exclusive VWF 117/4 230V | CF4: flexoTHERM exclusive VWF 57/4 400V | CG4: flexoTHERM exclusive VWF 87/4 400V | CH4: flexoTHERM exclusive VWF 117/4 400V | CI4: flexoTHERM exclusive VWF 157/4 400V | CP4: aroSTOR VWL B 200/5 (électrique) | CQ4: aroSTOR VWL B 200/5 (monovalent) | CT4: aroSTOR VWL B 270/5 (électrique) | CU4: aroSTOR VWL B 270/5 (monovalent) | CV4: aroSTOR VWL BM 270/5 (bivalent) | CW4: aroTHERM Split VWL 35/5 avec module hydraulique Split VWL 57/5 | CX4: aroTHERM Split VWL 55/5 avec module hydraulique Split VWL 57/5 | CY4: aroTHERM Split VWL 75/5 avec module hydraulique Split VWL 77/5 | CZ4: aroTHERM Split VWL 105/5 avec module hydraulique Split VWL 127/5 | DA4: aroTHERM Split VWL 125/5 avec module hydraulique Split VWL 127/5 | DB4: aroTHERM Split VWL 35/5 avec geoSTOR VIH RW 300/3 BR | DC4: aroTHERM Split VWL 55/5 avec geoSTOR VIH RW 300/3 BR | DD4: aroTHERM Split VWL 75/5 avec geoSTOR VIH RW 300/3 BR | DE4: aroTHERM Split VWL 105/5 avec geoSTOR VIH RW 300/3 BR | DF4: aroTHERM Split VWL 125/5 avec geoSTOR VIH RW 300/3 BR | DG4: aroTHERM Split VWL 35/5 avec geoSTOR VIH RW 200 | DH4: aroTHERM Split VWL 55/5 avec geoSTOR VIH RW 200 | DI4: aroTHERM Split VWL 75/5 avec geoSTOR VIH RW 200 | DJ4: aroTHERM Split VWL 105/5 avec geoSTOR VIH RW 200 | DK4: aroTHERM Split VWL 125/5 avec geoSTOR VIH RW 200 | EP4: aroTHERM plus VWL 45/6 - 230 V avec uniTOWER plus | EQ4: aroTHERM plus VWL 55/6 - 230 V avec uniTOWER plus | ER4: aroTHERM plus VWL 85/6 - 230 V avec uniTOWER plus | ES4: aroTHERM plus VWL 125/6 - 230 V avec uniTOWER plus | ET4: aroTHERM plus VWL 155/6 - 230 V avec uniTOWER plus | EU4: aroTHERM plus VWL 125/6 - 400 V avec uniTOWER plus | EV4: aroTHERM plus VWL 155/6 - 400 V avec uniTOWER plus | EW4: aroTHERM plus VWL 45/6 - 230 V avec module hydraulique MEH 97/6 | EX4: aroTHERM plus VWL 55/6 - 230 V avec module hydraulique MEH 97/6 | EY4: aroTHERM plus VWL 85/6 - 230 V avec module hydraulique MEH 97/6 | EZ4: aroTHERM plus VWL 125/6 - 230 V avec module hydraulique MEH 97/6 | FA4: aroTHERM plus VWL 155/6 - 230 V avec module hydraulique MEH 97/6 | FB4: aroTHERM plus VWL 125/6 - 400 V avec module hydraulique MEH 97/6 | FC4: aroTHERM plus VWL 155/6 - 400 V avec module hydraulique MEH 97/6 | FD4: aroTHERM plus VWL 45/6 - 230 V avec geoSTOR VIH RW 300/3 BR | FE4: aroTHERM plus VWL 55/6 - 230 V avec geoSTOR VIH RW 300/3 BR | FF4: aroTHERM plus VWL 85/6 - 230 V avec geoSTOR VIH RW 300/3 BR | FG4: aroTHERM plus VWL 125/6 - 230 V avec geoSTOR VIH RW 300/3 BR | FH4: aroTHERM plus VWL 155/6 - 230 V avec geoSTOR VIH RW 300/3 BR | FI4: aroTHERM plus VWL 125/6 - 400 V avec geoSTOR VIH RW 300/3 BR | FJ4: aroTHERM plus VWL 155/6 - 400 V avec geoSTOR VIH RW 300/3 BR | FK4: aroTHERM plus VWL 45/6 - 230 V avec geoSTOR VIH RW 200 | FL4: aroTHERM plus VWL 55/6 - 230 V avec geoSTOR VIH RW 200 | FM4: aroTHERM plus VWL 85/6 - 230 V avec geoSTOR VIH RW 200 | FN4: aroTHERM plus VWL 125/6 - 230 V avec geoSTOR VIH RW 200 | FO4: aroTHERM plus VWL 155/6 - 230 V avec geoSTOR VIH RW 200 | FP4: aroTHERM plus VWL 125/6 - 400 V avec geoSTOR VIH RW 200 | FQ4: aroTHERM plus VWL 155/6 - 400 V avec geoSTOR VIH RW 200
F5: Descriptif produit | H5: Pompe à chaleur air / eau monobloc Inverter Puissance 4,40 kW COP 4,50 - Certifiée NF PAC chauffage n° 414-1400 rkt1 Classe d'efficacité énergétique : A+ | I5: Pompe à chaleur air / eau monobloc Inverter Puissance 5,80 kW COP 4,20 | J5: Pompe à chaleur air / eau monobloc Inverter Puissance 7,1 kW COP 4,1 - Certifiée NF PAC chauffage n° 414-1400 rkt1 Classe d'efficacité énergétique : A++ à 35 °C et A+ à 55 °C | K5: Pompe à chaleur air / eau monobloc Inverter Puissance 7,2 kW COP 3,91 | L5: Pompe à chaleur air / eau monobloc Inverter Puissance 9,8 kW COP 3,8 - Certifiée NF PAC chauffage n° 414-1400 rkt1 Classe d'efficacité énergétique : A+ | M5: Pompe à chaleur air / eau monobloc Inverter Puissance 11,90 kW COP 3,91 | N5: Pompe à chaleur air / eau monobloc Inverter Puissance 14,3 kW COP 3,9 - Certifiée NF PAC chauffage n° 414-1400 rkt1 Classe d'efficacité énergétique : A+ | O5: Pompe à chaleur air / eau monobloc Inverter Puissance 14,50 kW COP 4,06 | P5: Pompe à chaleur air / eau monobloc Inverter Puissance 5,80 kW COP 4,20 | Q5: Pompe à chaleur air / eau monobloc Inverter Puissance 4,70 kW COP 4,70 - Certifiée NF PAC double service Classe d'efficacité énergétique : A++ | R5: Pompe à chaleur air / eau monobloc Inverter Puissance 7,6 kW COP 4,5 - Certifiée NF PAC double service Classe d'efficacité énergétique : A++ | S5: Pompe à chaleur air / eau monobloc Inverter Puissance 7,6 kW COP 4,5 - Certifiée NF PAC double service Classe d'efficacité énergétique : A++ | T5: Pompe à chaleur air / eau monobloc Inverter Puissance 7,6 kW COP 4,5 | U5: Pompe à chaleur air / eau monobloc Inverter Puissance 7,2 kW COP 3,91 | V5: Pompe à chaleur air / eau monobloc Inverter Puissance 10,6 kW COP 4,3 | W5: Pompe à chaleur air / eau monobloc Inverter. Puissance 7,6 kW, COP 4,5 _ Certifiée NF PAC double service _ Classe d'efficacité énergétique : A++/A+ (départ 35°C/55°C) _ Classe d’efficacité énergétique ECS : A _ Profil de puisage : L | X5: Pompe à chaleur air / eau monobloc Inverter Puissance 10,6 kW COP 4,3 Classe d'efficacité énergétique : A+ | Y5: Pompe à chaleur air / eau monobloc Inverter. Puissance 10,6 kW, COP 4,3 - Certifiée NF PAC double service _ Classe d'efficacité énergétique : A+/A+ (départ 35°C/55°C) _ Classe d’efficacité énergétique ECS : A _ Profil de puisage : L | Z5: Pompe à chaleur air / eau monobloc Inverter Puissance 11,90 kW COP 3,91 | AA5: Pompe à chaleur air / eau monobloc Inverter Puissance 14,50 kW COP 4,06 | AB5: Pompe à chaleur air / eau monobloc Inverter Puissance 14,50 kW COP 4,06 Classe d'efficacité énergétique : A++ | AC5: =$H5 -> Pompe à chaleur air / eau monobloc Inverter Puissance 4,40 kW COP 4,50 - Certifiée NF PAC chauffage n° 414-1400 rkt1 Classe d'efficacité énergétique : A+ | AD5: Pompe à chaleur air / eau monobloc Inverter Puissance 5,80 kW COP 4,20 | AE5: =$J5 -> Pompe à chaleur air / eau monobloc Inverter Puissance 7,1 kW COP 4,1 - Certifiée NF PAC chauffage n° 414-1400 rkt1 Classe d'efficacité énergétique : A++ à 35 °C et A+ à 55 °C | AF5: Pompe à chaleur air / eau monobloc Inverter Puissance 7,2 kW COP 3,91 | AG5: =L5 -> Pompe à chaleur air / eau monobloc Inverter Puissance 9,8 kW COP 3,8 - Certifiée NF PAC chauffage n° 414-1400 rkt1 Classe d'efficacité énergétique : A+ | AH5: Pompe à chaleur air / eau monobloc Inverter Puissance 11,90 kW COP 3,91 | AI5: =N5 -> Pompe à chaleur air / eau monobloc Inverter Puissance 14,3 kW COP 3,9 - Certifiée NF PAC chauffage n° 414-1400 rkt1 Classe d'efficacité énergétique : A+ | AJ5: Pompe à chaleur air / eau monobloc Inverter Puissance 14,50 kW COP 4,06 | AK5: Pompe à chaleur géothermique geoTHERM VWS chauffage seul Certifiée NF PAC cahuffage | AL5: Pompe à chaleur géothermique geoTHERM VWS chauffage seul Certifiée NF PAC cahuffage | AM5: Pompe à chaleur géothermique geoTHERM VWS chauffage seul Certifiée NF PAC cahuffage | AN5: Pompe à chaleur géothermique geoTHERM VWS chauffage seul Certifiée NF PAC cahuffage | AO5: Pompe à chaleur géothermique geoTHERM VWS chauffage seul Certifiée NF PAC cahuffage | AP5: Pompe à chaleur géothermique geoTHERM VWS exclusiv chauffage et ECS Certifiée NF PAC cahuffage | AQ5: Pompe à chaleur géothermique geoTHERM VWS exclusiv chauffage et ECS Certifiée NF PAC cahuffage | AR5: Pompe à chaleur géothermique geoTHERM VWS exclusiv chauffage et ECS Certifiée NF PAC cahuffage | AS5: Pompe à chaleur air / eau monobloc Inverter Puissance 5,80 kW COP 4,20 | AT5: Chauffe-eau thermodynamique monovalent de 300 l. Sans appoint, à installer en série avec une chaudière mixte. Classe d'efficacité énergétique : A profil XL | AU5: Chauffe-eau thermodynamique de 300 l avec appoint intégré électrique Classe d'efficacité énergétique : A profil XL | AV5: Chauffe-eau thermodynamique bivalent de 300 l équipé d'un échangeur hydraulique pour l'appoint chaudière. Classe d'efficacité énergétique : A profil XL | AW5: Chauffe-eau thermodynamique monovalent de 150 l. Sans appoint, à installer en série avec une chaudière mixte. Classe d'efficacité énergétique : A profil M | AX5: Chauffe-eau thermodynamique de 150 l avec appoint intégré électrique Classe d'efficacité énergétique : A profil M | AY5: Chauffe-eau thermodynamique monovalent de 150 l. Sans appoint, à installer en série avec une chaudière mixte. | AZ5: Chauffe-eau thermodynamique de 150 l avec appoint intégré électrique | BA5: Chauffe-eau thermodynamique monovalent de 190 l sur air extrait. Sans appoint, à installer en série avec une chaudière mixte. | BB5: Chauffe-eau thermodynamique de 190 l sur air extrait avec appoint intégré électrique | BC5: Chauffe-eau thermodynamique monovalent de 200 l. Sans appoint, à installer en série avec une chaudière mixte. Classe d'efficacité énergétique : A profil M | BD5: Chauffe-eau thermodynamique de 200 l avec appoint intégré électrique Classe d'efficacité énergétique : A profil M | BE5: Chauffe-eau thermodynamique monovalent de 300 l. Sans appoint, à installer en série avec une chaudière mixte. Classe d'efficacité énergétique : A profil L | BF5: Chauffe-eau thermodynamique de 300 l avec appoint intégré électrique Classe d'efficacité énergétique : A profil L | BG5: Chauffe-eau thermodynamique bivalent de 300 l équipé d'un échangeur hydraulique pour l'appoint chaudière. Classe d'efficacité énergétique : A profil L | BH5: Pompe à chaleur air / eau monobloc Inverter Puissance 4,40 kW, COP 4,50 _ Certifiée NF PAC double service _ Classe d'efficacité énergétique chauffage : A+/A+ (départ 35°C/55°C) _ Classe d'efficacité énergétique ECS : A _ Profil de puisage L | BI5: Pompe à chaleur air / eau monobloc Inverter Puissance 7,1 kW, COP 4,1 _ Certifiée NF PAC double service _ Classe d'efficacité énergétique : A++/A+ (départ 35°C/55°C) _ Classe d’efficacité énergétique ECS : A _ Profil de puisage : L | BJ5: Pompe à chaleur air / eau monobloc Inverter Puissance 9,8 kW, COP 3,8 _ Certifiée NF PAC double service _ Classe d'efficacité énergétique : A+/A+ (départ 35°C/55°C) _ Classe d’efficacité énergétique ECS : A _ Profil de puisage : L | BK5: Pompe à chaleur air / eau monobloc Inverter Puissance 14,3 kW, COP 3,9 _ Certifiée NF PAC chauffage _ Classe d'efficacité énergétique : A+/A+ (départ 35°C/55°C) _ Classe d’efficacité énergétique ECS : A _ Profil de puisage : L | BL5: Chauffe-eau thermodynamique monovalent de 300 l. Sans appoint, à installer en série avec une chaudière mixte. Classe d'efficacité énergétique : A profil L | BM5: Chauffe-eau thermodynamique de 300 l avec appoint intégré électrique Classe d'efficacité énergétique : A profil L | BN5: Chauffe-eau thermodynamique bivalent de 300 l équipé d'un échangeur hydraulique pour l'appoint chaudière. Classe d'efficacité énergétique : A profil L | BO5: Chauffe-eau thermodynamique monovalent de 200 l. Sans appoint, à installer en série avec une chaudière mixte. Classe d'efficacité énergétique : A profil L | BP5: Chauffe-eau thermodynamique de 200 l avec appoint intégré électrique Classe d'efficacité énergétique : A profil L | BQ5: Pompe à chaleur géothermique flexoCOMPACT VWF exclusive chauffage et ECS Certifiée HP Keymark double service | BR5: Pompe à chaleur géothermique flexoCOMPACT VWF exclusive chauffage et ECS Certifiée HP Keymark double service | BS5: Pompe à chaleur géothermique flexoCOMPACT VWF exclusive chauffage et ECS Certifiée HP Keymark double service | BT5: Chauffe-eau thermodynamique optimisé de 150 l. Sans appoint, à installer en série avec une chaudière mixte. Classe d'efficacité énergétique : A profil M | BU5: Pompe à chaleur géothermique flexoTHERM VWF exclusive reversible | BV5: Pompe à chaleur géothermique geoTHERM VWS chauffage seul Certifiée NF PAC chauffage | BW5: Pompe à chaleur air / eau split Inverter Puissance 3,10 kW, COP 4,9 _ Certifiée NF PAC double service _ Classe d'efficacité énergétique : A+++/A++ (départ 35 °C/55 °C) _ Classe d'efficacité énergétique ECS : A _ Profil de puisage : L | BX5: Pompe à chaleur air / eau split Inverter Puissance 4,4 kW, COP 4,7 _ Certifiée NF PAC double service _ Classe d'efficacité énergétique : A+++/A++ (départ 35 °C/55 °C) _ Classe d’efficacité énergétique ECS : A _ Profil de puisage : L | BY5: Pompe à chaleur air / eau split Inverter Puissance 5,8 kW, COP 4,6 _ Certifiée NF PAC double service _ Classe d'efficacité énergétique : A++/A++ (départ 35°C/55°C) _ Classe d’efficacité énergétique ECS : A _ Profil de puisage : XL | BZ5: Pompe à chaleur air / eau split Inverter Puissance 9,7 kW, COP 4,6 _ Certifiée NF PAC double service _ Classe d'efficacité énergétique : A+++/A++ (départ 35°C/55°C) _ Classe d’efficacité énergétique ECS : A _ Profil de puisage : XL | CA5: Pompe à chaleur air / eau split Inverter Puissance 10,3 kW, COP 4,5 _ Certifiée NF PAC double service _ Classe d'efficacité énergétique : A+++/A++ (départ 35°C/55°C) _ Classe d’efficacité énergétique ECS : A _ Profil de puisage : XL | CB5: Chauffe-eau thermodynamique optimisé de 100 l. Sans appoint, à installer en série avec une chaudière mixte. Classe d'efficacité énergétique : A+ profil M | CC5: Pompe à chaleur géothermique flexoTHERM VWF exclusive reversible | CD5: Pompe à chaleur géothermique flexoTHERM VWF exclusive reversible | CE5: Pompe à chaleur géothermique flexoTHERM VWF exclusive reversible | CF5: Pompe à chaleur géothermique flexoTHERM VWF exclusive reversible | CG5: Pompe à chaleur géothermique flexoTHERM VWF exclusive reversible | CH5: Pompe à chaleur géothermique flexoTHERM VWF exclusive reversible | CI5: Pompe à chaleur géothermique flexoTHERM VWF exclusive reversible | CJ5: Chauffe-eau thermodynamique de 80 l avec appoint intégré électrique. Raccordement sur conduit collectif concentrique. Classe d'efficacité énergétique : A+ profil M | CK5: Chauffe-eau thermodynamique de 100 l avec appoint intégré électrique. Raccordement sur conduit collectif concentrique. Classe d'efficacité énergétique : A+ profil M | CL5: Chauffe-eau thermodynamique de 150 l avec appoint intégré électrique. Raccordement sur conduit collectif concentrique. Classe d'efficacité énergétique : A+ profil M | CM5: Chauffe-eau thermodynamique monovalent de 150 l. Sans appoint, à installer en série avec une chaudière mixte. Classe d'efficacité énergétique : A+ profil M | CN5: Chauffe-eau thermodynamique de 150 l avec appoint intégré électrique Classe d'efficacité énergétique : A+ profil M | CO5: Chauffe-eau thermodynamique optimisé de 150 l. Sans appoint, à installer en série avec une chaudière mixte. Classe d'efficacité énergétique : A+ profil M | CP5: Chauffe-eau thermodynamique de 200 l avec appoint intégré électrique Classe d'efficacité énergétique : A+ profil L | CQ5: Chauffe-eau thermodynamique de 200 l. Sans appoint, à installer en série avec une chaudière mixte. Classe d'efficacité énergétique : A+ profil L | CR5: Chauffe-eau thermodynamique de 200 l avec appoint intégré électrique Classe d'efficacité énergétique : A+ profil M | CS5: Chauffe-eau thermodynamique de 200 l. Sans appoint, à installer en série avec une chaudière mixte. Classe d'efficacité énergétique : A+ profil M | CT5: Chauffe-eau thermodynamique de 270 l avec appoint intégré électrique Classe d'efficacité énergétique : A+ profil L | CU5: Chauffe-eau thermodynamique monovalent de 270 l. Sans appoint, à installer en série avec une chaudière mixte. Classe d'efficacité énergétique : A+ profil L | CV5: Chauffe-eau thermodynamique bivalent de 270 l équipé d'un échangeur hydraulique pour l'appoint chaudière. Classe d'efficacité énergétique : A+ profil L | CW5: Pompe à chaleur air / eau split Inverter Puissance 3,10 kW, COP 4,9 _ Certifiée HP Keymark chauffage _ Classe d'efficacité énergétique : A+++/A++ (départ 35°C/55°C) | CX5: Pompe à chaleur air / eau split Inverter Puissance 4,40 kW, COP 4,7 _ Certifiée HP Keymark chauffage _ Classe d'efficacité énergétique : A+++/A++ (départ 35°C/55°C) | CY5: Pompe à chaleur air / eau split Inverter Puissance 5,8 kW, COP 4,6 _ Certifiée HP Keymark chauffage _ Classe d'efficacité énergétique : A++/A++ (départ 35°C/55°C) | CZ5: Pompe à chaleur air / eau split Inverter Puissance 9,7 kW, COP 4,6 _ Certifiée HP Keymark chauffage _ Classe d'efficacité énergétique : A+++/A++ (départ 35°C/55°C) | DA5: Pompe à chaleur air / eau split Inverter Puissance 10,3 kW, COP 4,5 _ Certifiée HP Keymark chauffage _ Classe d'efficacité énergétique : A+++/A++ (départ 35°C/55°C) | DB5: Pompe à chaleur air / eau split Inverter Puissance 3,10 kW, COP 4,9 _ Certifiée HP Keymark chauffage _ Classe d'efficacité énergétique : A+++/A++ (départ 35°C/55°C) | DC5: Pompe à chaleur air / eau split Inverter Puissance 4,40 kW, COP 4,7 _ Certifiée HP Keymark chauffage _ Classe d'efficacité énergétique : A+++/A++ (départ 35°C/55°C) | DD5: Pompe à chaleur air / eau split Inverter Puissance 5,8 kW, COP 4,6 _ Certifiée HP Keymark chauffage _ Classe d'efficacité énergétique : A++/A++ (départ 35°C/55°C) | DE5: Pompe à chaleur air / eau split Inverter Puissance 9,7 kW, COP 4,6 _ Certifiée HP Keymark chauffage _ Classe d'efficacité énergétique : A+++/A++ (départ 35°C/55°C) | DF5: Pompe à chaleur air / eau split Inverter Puissance 10,3 kW, COP 4,5 _ Certifiée HP Keymark chauffage _ Classe d'efficacité énergétique : A+++/A++ (départ 35°C/55°C) | DG5: Pompe à chaleur air / eau split Inverter Puissance 3,10 kW, COP 4,9 _ Certifiée HP Keymark chauffage _ Classe d'efficacité énergétique : A+++/A++ (départ 35°C/55°C) | DH5: Pompe à chaleur air / eau split Inverter Puissance 4,40 kW, COP 4,7 _ Certifiée HP Keymark chauffage _ Classe d'efficacité énergétique : A+++/A++ (départ 35°C/55°C) | DI5: Pompe à chaleur air / eau split Inverter Puissance 5,8 kW, COP 4,6 _ Certifiée HP Keymark chauffage _ Classe d'efficacité énergétique : A++/A++ (départ 35°C/55°C) | DJ5: Pompe à chaleur air / eau split Inverter Puissance 9,7 kW, COP 4,6 _ Certifiée HP Keymark chauffage _ Classe d'efficacité énergétique : A+++/A++ (départ 35°C/55°C) | DK5: Pompe à chaleur air / eau split Inverter Puissance 10,3 kW, COP 4,5 _ Certifiée HP Keymark chauffage _ Classe d'efficacité énergétique : A+++/A++ (départ 35°C/55°C) | DL5: Chauffe-eau thermodynamique monovalent de 100 l. Sans appoint, à installer en série avec une chaudière mixte. Classe d'efficacité énergétique : A+ profil M | DM5: Chauffe-eau thermodynamique de 100 l avec appoint intégré électrique Classe d'efficacité énergétique : A+ profil M | DN5: Pompe à chaleur air / eau monobloc Inverter Puissance 4,10 kW, COP 4,6 _ Certifiée NF PAC double service _ Classe d'efficacité énergétique : A+++/A++ (départ 35 °C/55 °C) _ Classe d'efficacité énergétique ECS : A _ Profil de puisage : L | DO5: Pompe à chaleur air / eau monobloc Inverter Puissance 4,2 kW, COP 4,4 _ Certifiée NF PAC double service _ Classe d'efficacité énergétique : A++/A+ (départ 35 °C/55 °C) _ Classe d’efficacité énergétique ECS : A _ Profil de puisage : L | DP5: Pompe à chaleur air / eau monobloc Inverter Puissance 7,8 kW, COP 4,3 _ Certifiée NF PAC double service _ Classe d'efficacité énergétique : A+++/A++ (départ 35°C/55°C) _ Classe d’efficacité énergétique ECS : A _ Profil de puisage : XL | DQ5: Pompe à chaleur air / eau monobloc Inverter Puissance 11,6 kW, COP 4,6 _ Certifiée NF PAC double service _ Classe d'efficacité énergétique : A+++/A++ (départ 35°C/55°C) _ Classe d’efficacité énergétique ECS : A _ Profil de puisage : XL | DR5: Pompe à chaleur air / eau monobloc Inverter Puissance 14,3 kW, COP 4,3 _ Certifiée NF PAC double service _ Classe d'efficacité énergétique : A+++/A++ (départ 35°C/55°C) _ Classe d’efficacité énergétique ECS : A _ Profil de puisage : XL | DS5: Pompe à chaleur air / eau monobloc Inverter Puissance 11,6 kW, COP 4,6 _ Certifiée NF PAC double service _ Classe d'efficacité énergétique : A+++/A++ (départ 35°C/55°C) _ Classe d’efficacité énergétique ECS : A _ Profil de puisage : XL | DT5: Pompe à chaleur air / eau monobloc Inverter Puissance 14,3 kW, COP 4,3 _ Certifiée NF PAC double service _ Classe d'efficacité énergétique : A+++/A++ (départ 35°C/55°C) _ Classe d’efficacité énergétique ECS : A _ Profil de puisage : XL | DU5: Pompe à chaleur air / eau monobloc Inverter Puissance 4,10 kW, COP 4,6 _ Certifiée HP Keymark chauffage _ Classe d'efficacité énergétique : A+++/A++ (départ 35 °C/55 °C) | DV5: Pompe à chaleur air / eau monobloc Inverter Puissance 4,2 kW, COP 4,4 _ Certifiée HP Keymark chauffage _ Classe d'efficacité énergétique : A++/A+ (départ 35 °C/55 °C) | DW5: Pompe à chaleur air / eau monobloc Inverter Puissance 7,8 kW, COP 4,3 _ Certifiée HP Keymark chauffage _ Classe d'efficacité énergétique : A+++/A++ (départ 35°C/55°C) | DX5: Pompe à chaleur air / eau monobloc Inverter Puissance 11,6 kW, COP 4,6 _ Certifiée HP Keymark chauffage _ Classe d'efficacité énergétique : A+++/A++ (départ 35°C/55°C) | DY5: Pompe à chaleur air / eau monobloc Inverter Puissance 14,3 kW, COP 4,3 _ Certifiée HP Keymark chauffage _ Classe d'efficacité énergétique : A+++/A++ (départ 35°C/55°C) | DZ5: Pompe à chaleur air / eau monobloc Inverter Puissance 11,6 kW, COP 4,6 _ Certifiée HP Keymark chauffage _ Classe d'efficacité énergétique : A+++/A++ (départ 35°C/55°C) | EA5: Pompe à chaleur air / eau monobloc Inverter Puissance 14,3 kW, COP 4,3 _ Certifiée HP Keymark chauffage _ Classe d'efficacité énergétique : A+++/A++ (départ 35°C/55°C) | EB5: Pompe à chaleur air / eau monobloc Inverter Puissance 4,10 kW, COP 4,6 _ Certifiée HP Keymark chauffage _ Classe d'efficacité énergétique : A+++/A++ (départ 35 °C/55 °C) | EC5: Pompe à chaleur air / eau monobloc Inverter Puissance 4,2 kW, COP 4,4 _ Certifiée HP Keymark chauffage _ Classe d'efficacité énergétique : A++/A+ (départ 35 °C/55 °C) | ED5: Pompe à chaleur air / eau monobloc Inverter Puissance 7,8 kW, COP 4,3 _ Certifiée HP Keymark chauffage _ Classe d'efficacité énergétique : A+++/A++ (départ 35°C/55°C) | EE5: Pompe à chaleur air / eau monobloc Inverter Puissance 11,6 kW, COP 4,6 _ Certifiée HP Keymark chauffage _ Classe d'efficacité énergétique : A+++/A++ (départ 35°C/55°C) | EF5: Pompe à chaleur air / eau monobloc Inverter Puissance 14,3 kW, COP 4,3 _ Certifiée HP Keymark chauffage _ Classe d'efficacité énergétique : A+++/A++ (départ 35°C/55°C) | EG5: Pompe à chaleur air / eau monobloc Inverter Puissance 11,6 kW, COP 4,6 _ Certifiée HP Keymark chauffage _ Classe d'efficacité énergétique : A+++/A++ (départ 35°C/55°C) | EH5: Pompe à chaleur air / eau monobloc Inverter Puissance 14,3 kW, COP 4,3 _ Certifiée HP Keymark chauffage _ Classe d'efficacité énergétique : A+++/A++ (départ 35°C/55°C) | EI5: Pompe à chaleur air / eau monobloc Inverter Puissance 4,10 kW, COP 4,6 _ Certifiée HP Keymark chauffage _ Classe d'efficacité énergétique : A+++/A++ (départ 35 °C/55 °C) | EJ5: Pompe à chaleur air / eau monobloc Inverter Puissance 4,2 kW, COP 4,4 _ Certifiée HP Keymark chauffage _ Classe d'efficacité énergétique : A++/A+ (départ 35 °C/55 °C) | EK5: Pompe à chaleur air / eau monobloc Inverter Puissance 7,8 kW, COP 4,3 _ Certifiée HP Keymark chauffage _ Classe d'efficacité énergétique : A+++/A++ (départ 35°C/55°C) | EL5: Pompe à chaleur air / eau monobloc Inverter Puissance 11,6 kW, COP 4,6 _ Certifiée HP Keymark chauffage _ Classe d'efficacité énergétique : A+++/A++ (départ 35°C/55°C) | EM5: Pompe à chaleur air / eau monobloc Inverter Puissance 14,3 kW, COP 4,3 _ Certifiée HP Keymark chauffage _ Classe d'efficacité énergétique : A+++/A++ (départ 35°C/55°C) | EN5: Pompe à chaleur air / eau monobloc Inverter Puissance 11,6 kW, COP 4,6 _ Certifiée HP Keymark chauffage _ Classe d'efficacité énergétique : A+++/A++ (départ 35°C/55°C) | EO5: Pompe à chaleur air / eau monobloc Inverter Puissance 14,3 kW, COP 4,3 _ Certifiée HP Keymark chauffage _ Classe d'efficacité énergétique : A+++/A++ (départ 35°C/55°C) | EP5: Pompe à chaleur air / eau monobloc Inverter Puissance 4,10 kW, COP 4,6 _ Certifiée NF PAC double service _ Classe d'efficacité énergétique : A+++/A++ (départ 35 °C/55 °C) _ Classe d'efficacité énergétique ECS : A _ Profil de puisage : L | EQ5: Pompe à chaleur air / eau monobloc Inverter Puissance 4,2 kW, COP 4,4 _ Certifiée NF PAC double service _ Classe d'efficacité énergétique : A++/A+ (départ 35 °C/55 °C) _ Classe d’efficacité énergétique ECS : A _ Profil de puisage : L | ER5: Pompe à chaleur air / eau monobloc Inverter Puissance 7,8 kW, COP 4,3 _ Certifiée NF PAC double service _ Classe d'efficacité énergétique : A+++/A++ (départ 35°C/55°C) _ Classe d’efficacité énergétique ECS : A _ Profil de puisage : XL | ES5: Pompe à chaleur air / eau monobloc Inverter Puissance 11,6 kW, COP 4,6 _ Certifiée NF PAC double service _ Classe d'efficacité énergétique : A+++/A++ (départ 35°C/55°C) _ Classe d’efficacité énergétique ECS : A _ Profil de puisage : XL | ET5: Pompe à chaleur air / eau monobloc Inverter Puissance 14,3 kW, COP 4,3 _ Certifiée NF PAC double service _ Classe d'efficacité énergétique : A+++/A++ (départ 35°C/55°C) _ Classe d’efficacité énergétique ECS : A _ Profil de puisage : XL | EU5: Pompe à chaleur air / eau monobloc Inverter Puissance 11,6 kW, COP 4,6 _ Certifiée NF PAC double service _ Classe d'efficacité énergétique : A+++/A++ (départ 35°C/55°C) _ Classe d’efficacité énergétique ECS : A _ Profil de puisage : XL | EV5: Pompe à chaleur air / eau monobloc Inverter Puissance 14,3 kW, COP 4,3 _ Certifiée NF PAC double service _ Classe d'efficacité énergétique : A+++/A++ (départ 35°C/55°C) _ Classe d’efficacité énergétique ECS : A _ Profil de puisage : XL | EW5: Pompe à chaleur air / eau monobloc Inverter Puissance 4,10 kW, COP 4,6 _ Certifiée HP Keymark chauffage _ Classe d'efficacité énergétique : A+++/A++ (départ 35 °C/55 °C) | EX5: Pompe à chaleur air / eau monobloc Inverter Puissance 4,2 kW, COP 4,4 _ Certifiée HP Keymark chauffage _ Classe d'efficacité énergétique : A++/A+ (départ 35 °C/55 °C) | EY5: Pompe à chaleur air / eau monobloc Inverter Puissance 7,8 kW, COP 4,3 _ Certifiée HP Keymark chauffage _ Classe d'efficacité énergétique : A+++/A++ (départ 35°C/55°C) | EZ5: Pompe à chaleur air / eau monobloc Inverter Puissance 11,6 kW, COP 4,6 _ Certifiée HP Keymark chauffage _ Classe d'efficacité énergétique : A+++/A++ (départ 35°C/55°C) | FA5: Pompe à chaleur air / eau monobloc Inverter Puissance 14,3 kW, COP 4,3 _ Certifiée HP Keymark chauffage _ Classe d'efficacité énergétique : A+++/A++ (départ 35°C/55°C) | FB5: Pompe à chaleur air / eau monobloc Inverter Puissance 11,6 kW, COP 4,6 _ Certifiée HP Keymark chauffage _ Classe d'efficacité énergétique : A+++/A++ (départ 35°C/55°C) | FC5: Pompe à chaleur air / eau monobloc Inverter Puissance 14,3 kW, COP 4,3 _ Certifiée HP Keymark chauffage _ Classe d'efficacité énergétique : A+++/A++ (départ 35°C/55°C) | FD5: Pompe à chaleur air / eau monobloc Inverter Puissance 4,10 kW, COP 4,6 _ Certifiée HP Keymark chauffage _ Classe d'efficacité énergétique : A+++/A++ (départ 35 °C/55 °C) | FE5: Pompe à chaleur air / eau monobloc Inverter Puissance 4,2 kW, COP 4,4 _ Certifiée HP Keymark chauffage _ Classe d'efficacité énergétique : A++/A+ (départ 35 °C/55 °C) | FF5: Pompe à chaleur air / eau monobloc Inverter Puissance 7,8 kW, COP 4,3 _ Certifiée HP Keymark chauffage _ Classe d'efficacité énergétique : A+++/A++ (départ 35°C/55°C) | FG5: Pompe à chaleur air / eau monobloc Inverter Puissance 11,6 kW, COP 4,6 _ Certifiée HP Keymark chauffage _ Classe d'efficacité énergétique : A+++/A++ (départ 35°C/55°C) | FH5: Pompe à chaleur air / eau monobloc Inverter Puissance 14,3 kW, COP 4,3 _ Certifiée HP Keymark chauffage _ Classe d'efficacité énergétique : A+++/A++ (départ 35°C/55°C) | FI5: Pompe à chaleur air / eau monobloc Inverter Puissance 11,6 kW, COP 4,6 _ Certifiée HP Keymark chauffage _ Classe d'efficacité énergétique : A+++/A++ (départ 35°C/55°C) | FJ5: Pompe à chaleur air / eau monobloc Inverter Puissance 14,3 kW, COP 4,3 _ Certifiée HP Keymark chauffage _ Classe d'efficacité énergétique : A+++/A++ (départ 35°C/55°C) | FK5: Pompe à chaleur air / eau monobloc Inverter Puissance 4,10 kW, COP 4,6 _ Certifiée HP Keymark chauffage _ Classe d'efficacité énergétique : A+++/A++ (départ 35 °C/55 °C) | FL5: Pompe à chaleur air / eau monobloc Inverter Puissance 4,2 kW, COP 4,4 _ Certifiée HP Keymark chauffage _ Classe d'efficacité énergétique : A++/A+ (départ 35 °C/55 °C) | FM5: Pompe à chaleur air / eau monobloc Inverter Puissance 7,8 kW, COP 4,3 _ Certifiée HP Keymark chauffage _ Classe d'efficacité énergétique : A+++/A++ (départ 35°C/55°C) | FN5: Pompe à chaleur air / eau monobloc Inverter Puissance 11,6 kW, COP 4,6 _ Certifiée HP Keymark chauffage _ Classe d'efficacité énergétique : A+++/A++ (départ 35°C/55°C) | FO5: Pompe à chaleur air / eau monobloc Inverter Puissance 14,3 kW, COP 4,3 _ Certifiée HP Keymark chauffage _ Classe d'efficacité énergétique : A+++/A++ (départ 35°C/55°C) | FP5: Pompe à chaleur air / eau monobloc Inverter Puissance 11,6 kW, COP 4,6 _ Certifiée HP Keymark chauffage _ Classe d'efficacité énergétique : A+++/A++ (départ 35°C/55°C) | FQ5: Pompe à chaleur air / eau monobloc Inverter Puissance 14,3 kW, COP 4,3 _ Certifiée HP Keymark chauffage _ Classe d'efficacité énergétique : A+++/A++ (départ 35°C/55°C)
